OrganisationNameLabel,OrganisationURI,EffectiveDate,Directorate/ServiceWhereExpenditureIncurred,ServiceCategoryLabel,ServiceCategoryURI,Supplier,SupplierRegisteredCompany Number,PaymentDate,TransactionNumber,NetAmount,IrrecoverableVAT,PurposeOfSpend,ProcurementClassification:ProclassLabel,ProcrementClassification:ProClassCode
South Lakeland District Council,http://opendatacommunities.org/id/district-council/south-lakeland,30/04/2016,ICT Group,Central Services,http://opendatacommunities.org/def/concept/finance/sercop/objective/102,THE DOCUMENT MANAGEMENT GROUP LTD,5210023,11/04/2016,56475,3625,0,Fujitsu FI-5900C for Post Room (Revs &,191200,Facilities Document Archiving & Storage
South Lakeland District Council,http://opendatacommunities.org/id/district-council/south-lakeland,30/04/2016,ICT Group,Central Services,http://opendatacommunities.org/def/concept/finance/sercop/objective/102,MERITEC LTD,3224622,11/04/2016,56626,4500,0,Emergency Web Support Resource covering,391200,Construction Engineering
South Lakeland District Council,http://opendatacommunities.org/id/district-council/south-lakeland,30/04/2016,Development Implementation,Cultural Environmental Regulatory & Planning Services,http://opendatacommunities.org/def/concept/finance/sercop/objective/104,CRUDEN PROPERTY SERVICES LTD,3851237,20/04/2016,56643,15949.95,0,Removal of remaining redundent,391111,Construction Buildings Repair & Mtce
South Lakeland District Council,http://opendatacommunities.org/id/district-council/south-lakeland,30/04/2016,ICT Group,Central Services,http://opendatacommunities.org/def/concept/finance/sercop/objective/102,NDL SOFTWARE LTD,1579602,11/04/2016,56651,12000,0,"Mobile working software, see extra",271510,ICT Application Service Provision
South Lakeland District Council,http://opendatacommunities.org/id/district-council/south-lakeland,30/04/2016,ICT Group,Central Services,http://opendatacommunities.org/def/concept/finance/sercop/objective/102,NORTHGATE PUBLIC SERVICES (UK) LTD,968498,11/04/2016,56655,774,0,SUPPORT & MAINTENANCE Adlib annual,271600,ICT Software Customised & Bespoke
South Lakeland District Council,http://opendatacommunities.org/id/district-council/south-lakeland,30/04/2016,Social Enterprise Admin,Central Services,http://opendatacommunities.org/def/concept/finance/sercop/objective/102,CIVICA UK LTD,1628868,11/04/2016,56773,1269.63,0,ICT SOFTWARE MAINTENANCE FAST GAZATTEER,271600,ICT Software Customised & Bespoke
South Lakeland District Council,http://opendatacommunities.org/id/district-council/south-lakeland,30/04/2016,Social Enterprise Admin,Cultural Environmental Regulatory & Planning Services,http://opendatacommunities.org/def/concept/finance/sercop/objective/104,CIVICA UK LTD,1628868,11/04/2016,56774,4082.23,0,SOFTWARE MAINTENACE 2016-2017,271600,ICT Software Customised & Bespoke
South Lakeland District Council,http://opendatacommunities.org/id/district-council/south-lakeland,30/04/2016,Social Enterprise Admin,Cultural Environmental Regulatory & Planning Services,http://opendatacommunities.org/def/concept/finance/sercop/objective/104,CIVICA UK LTD,1628868,11/04/2016,56774,8164.47,0,SOFTWARE MAINTENACE 2016-2017,271600,ICT Software Customised & Bespoke
South Lakeland District Council,http://opendatacommunities.org/id/district-council/south-lakeland,30/04/2016,Social Enterprise Admin,Central Services,http://opendatacommunities.org/def/concept/finance/sercop/objective/102,CIVICA UK LTD,1628868,11/04/2016,56774,4082.27,0,SOFTWARE MAINTENACE 2016-2017,271600,ICT Software Customised & Bespoke
South Lakeland District Council,http://opendatacommunities.org/id/district-council/south-lakeland,30/04/2016,Business Support Community Services,Internal Trading Accounts,,TAYLOR ENGINEERING & FABRICATIONS LTD,4989359,11/04/2016,56976,241.86,0,Contact,391200,Construction Engineering
South Lakeland District Council,http://opendatacommunities.org/id/district-council/south-lakeland,30/04/2016,Business Support Community Services,Internal Trading Accounts,,ATV CONTRACT SERVICES,,13/04/2016,56981,8487.5,0,Weed Spraying,391311,Construction Open Spaces Repair & Mtce
South Lakeland District Council,http://opendatacommunities.org/id/district-council/south-lakeland,30/04/2016,Business Support Community Services,Internal Trading Accounts,,EK MOTOR FACTORS LTD,838524,11/04/2016,57015,11.04,0,Air filters,381400,Vehicle Mgt Maintenance
South Lakeland District Council,http://opendatacommunities.org/id/district-council/south-lakeland,30/04/2016,Business Support Community Services,Internal Trading Accounts,,EK MOTOR FACTORS LTD,838524,11/04/2016,57016,50.56,0,Air filters,381400,Vehicle Mgt Maintenance
South Lakeland District Council,http://opendatacommunities.org/id/district-council/south-lakeland,30/04/2016,Business Support Community Services,Internal Trading Accounts,,EK MOTOR FACTORS LTD,838524,11/04/2016,57017,11.11,0,Air filters,381400,Vehicle Mgt Maintenance
South Lakeland District Council,http://opendatacommunities.org/id/district-council/south-lakeland,30/04/2016,Business Support Community Services,Internal Trading Accounts,,EK MOTOR FACTORS LTD,838524,11/04/2016,57018,29.1,0,Air filters,381400,Vehicle Mgt Maintenance
South Lakeland District Council,http://opendatacommunities.org/id/district-council/south-lakeland,30/04/2016,ICT Group,Central Services,http://opendatacommunities.org/def/concept/finance/sercop/objective/102,MLL Telecom Ltd,2657917,11/04/2016,57026,26682,0,"South Lakeland House MPLS Annual Rental,",271700,ICT Telecommunications Fixed
South Lakeland District Council,http://opendatacommunities.org/id/district-council/south-lakeland,30/04/2016,Revenues and Benefits,Central Services,http://opendatacommunities.org/def/concept/finance/sercop/objective/102,MERITEC LTD,3224622,06/04/2016,57195,279,0,2015 -2016 RAB Processing Contract and,391200,Construction Engineering
South Lakeland District Council,http://opendatacommunities.org/id/district-council/south-lakeland,30/04/2016,Revenues and Benefits,Central Services,http://opendatacommunities.org/def/concept/finance/sercop/objective/102,NEWSQUEST MEDIA GROUP LTD,3102566,06/04/2016,57196,1085,0,Public Notice - SLDC Council Tax 2016-17,191000,Facilities Advertising
South Lakeland District Council,http://opendatacommunities.org/id/district-council/south-lakeland,30/04/2016,Business Support Community Services,Cultural Environmental Regulatory & Planning Services,http://opendatacommunities.org/def/concept/finance/sercop/objective/104,UNITED UTILITIES WATER PLC,2366678,11/04/2016,57197,491.6,0,Private Water Analysis - January 2016,371300,Utilities Water
South Lakeland District Council,http://opendatacommunities.org/id/district-council/south-lakeland,30/04/2016,Business Support Community Services,Cultural Environmental Regulatory & Planning Services,http://opendatacommunities.org/def/concept/finance/sercop/objective/104,UNITED UTILITIES WATER PLC,2366678,11/04/2016,57198,911.5,0,Private Water Analysis - February 2016,371300,Utilities Water
South Lakeland District Council,http://opendatacommunities.org/id/district-council/south-lakeland,30/04/2016,ICT Group,Central Services,http://opendatacommunities.org/def/concept/finance/sercop/objective/102,LAN2LAN Limited,,06/04/2016,57199,98,0,"Fortinet FortiWifi 60D Appliance, As per",279999,ICT Not Elsewhere Classified
South Lakeland District Council,http://opendatacommunities.org/id/district-council/south-lakeland,30/04/2016,ICT Group,Highways & Transport Services,http://opendatacommunities.org/def/concept/finance/sercop/objective/107,LAN2LAN Limited,,06/04/2016,57199,554,0,"Fortinet FortiWifi 60D Appliance, As per",279999,ICT Not Elsewhere Classified
South Lakeland District Council,http://opendatacommunities.org/id/district-council/south-lakeland,30/04/2016,Kendal Town Hall,Highways & Transport Services,http://opendatacommunities.org/def/concept/finance/sercop/objective/107,THE SIGN MAN,5748839,06/04/2016,57200,110,0,Supply and installation of 3 A4 signs,102400,Building Signage
South Lakeland District Council,http://opendatacommunities.org/id/district-council/south-lakeland,30/04/2016,Business Support Community Services,Cultural Environmental Regulatory & Planning Services,http://opendatacommunities.org/def/concept/finance/sercop/objective/104,Ulverston BID Company Ltd,9761005,06/04/2016,57201,2000,0,Ulverston Christmas Festival 2015,201700,Financial Services Grants
South Lakeland District Council,http://opendatacommunities.org/id/district-council/south-lakeland,30/04/2016,Policy & Partnerships,Cultural Environmental Regulatory & Planning Services,http://opendatacommunities.org/def/concept/finance/sercop/objective/104,GRANGE OVER SANDS TOWN COUNCIL,,06/04/2016,57203,1000,0,A consultation and follow up business,908000,Public Bodies Council support services
South Lakeland District Council,http://opendatacommunities.org/id/district-council/south-lakeland,30/04/2016,Social Enterprise Admin,Cultural Environmental Regulatory & Planning Services,http://opendatacommunities.org/def/concept/finance/sercop/objective/104,Cleartrack (EvL) Ltd,3881690,06/04/2016,57204,440,0,Tree works at Ulverston,199999,Facilities Not Elsewhere Classified
South Lakeland District Council,http://opendatacommunities.org/id/district-council/south-lakeland,30/04/2016,Electoral Services,Central Services,http://opendatacommunities.org/def/concept/finance/sercop/objective/102,Zest Publication Ltd,,06/04/2016,57205,125,0,Advert in April Local Choice Electoral,261200,HR Professional & Advisory Services
South Lakeland District Council,http://opendatacommunities.org/id/district-council/south-lakeland,30/04/2016,Electoral Services,Central Services,http://opendatacommunities.org/def/concept/finance/sercop/objective/102,Zest Publication Ltd,,06/04/2016,57205,125,0,Advert in April Local Choice Electoral,261200,HR Professional & Advisory Services
South Lakeland District Council,http://opendatacommunities.org/id/district-council/south-lakeland,30/04/2016,Electoral Services,Central Services,http://opendatacommunities.org/def/concept/finance/sercop/objective/102,Zest Publication Ltd,,06/04/2016,57206,125,0,Advert in Local Choice for March - Full,261200,HR Professional & Advisory Services
South Lakeland District Council,http://opendatacommunities.org/id/district-council/south-lakeland,30/04/2016,Electoral Services,Central Services,http://opendatacommunities.org/def/concept/finance/sercop/objective/102,Zest Publication Ltd,,06/04/2016,57206,125,0,Advert in Local Choice for March - Full,261200,HR Professional & Advisory Services
South Lakeland District Council,http://opendatacommunities.org/id/district-council/south-lakeland,30/04/2016,Electoral Services,Central Services,http://opendatacommunities.org/def/concept/finance/sercop/objective/102,HALAROSE LIMITED,1362834,06/04/2016,57207,7566.77,0,Annual Support & maintenance for Avant,271600,ICT Software Customised & Bespoke
South Lakeland District Council,http://opendatacommunities.org/id/district-council/south-lakeland,30/04/2016,Electoral Services,Central Services,http://opendatacommunities.org/def/concept/finance/sercop/objective/102,HALAROSE LIMITED,1362834,06/04/2016,57208,10703.52,0,Annual Maintenance for EROS,271600,ICT Software Customised & Bespoke
South Lakeland District Council,http://opendatacommunities.org/id/district-council/south-lakeland,30/04/2016,Kendal Town Hall,Central Services,http://opendatacommunities.org/def/concept/finance/sercop/objective/102,BERENDSEN UK LTD,228604,06/04/2016,57209,70.35,0,Monthly rental of anti- slip mats for,161000,Domestic Goods Commercial
South Lakeland District Council,http://opendatacommunities.org/id/district-council/south-lakeland,30/04/2016,Kendal Town Hall,Cultural Environmental Regulatory & Planning Services,http://opendatacommunities.org/def/concept/finance/sercop/objective/104,BERENDSEN UK LTD,228604,06/04/2016,57209,19.67,0,Monthly rental of anti- slip mats for,161000,Domestic Goods Commercial
South Lakeland District Council,http://opendatacommunities.org/id/district-council/south-lakeland,30/04/2016,Business Support Community Services,Cultural Environmental Regulatory & Planning Services,http://opendatacommunities.org/def/concept/finance/sercop/objective/104,CONCEPT ENGINEERING LIMITED,859061,06/04/2016,57210,96.5,0,"6"" through bag for smoke testing",221000,Health & Safety� Products
South Lakeland District Council,http://opendatacommunities.org/id/district-council/south-lakeland,30/04/2016,Social Enterprise Admin,Central Services,http://opendatacommunities.org/def/concept/finance/sercop/objective/102,PHS GROUP PLC,,06/04/2016,57212,20,0,1 waterlogic environmental charge,131312,Cleaning & Janitorial Washroom Sanitat
South Lakeland District Council,http://opendatacommunities.org/id/district-council/south-lakeland,30/04/2016,Lake Wardens,Cultural Environmental Regulatory & Planning Services,http://opendatacommunities.org/def/concept/finance/sercop/objective/104,Harmony EPOS Solutions Ltd,9266671,06/04/2016,57213,225,0,Annual Service Contracts for Uniwell,111100,Catering Equipment & Utensils
South Lakeland District Council,http://opendatacommunities.org/id/district-council/south-lakeland,30/04/2016,Social Enterprise Admin,Cultural Environmental Regulatory & Planning Services,http://opendatacommunities.org/def/concept/finance/sercop/objective/104,ALLSTAR BUSINESS SOLUTIONS LTD (NCR),2631112,01/04/2016,57214,53.91,0,Parks Fuel March 2016,381600,Vehicle Mgt Leasing
South Lakeland District Council,http://opendatacommunities.org/id/district-council/south-lakeland,30/04/2016,Social Enterprise Admin,Highways & Transport Services,http://opendatacommunities.org/def/concept/finance/sercop/objective/107,ALLSTAR BUSINESS SOLUTIONS LTD (NCR),2631112,01/04/2016,57215,115.29,0,Fuel for car parks' vehicles starting 1,381600,Vehicle Mgt Leasing
South Lakeland District Council,http://opendatacommunities.org/id/district-council/south-lakeland,30/04/2016,Social Enterprise Admin,Highways & Transport Services,http://opendatacommunities.org/def/concept/finance/sercop/objective/107,ALLSTAR BUSINESS SOLUTIONS LTD (NCR),2631112,01/04/2016,57215,250,0,Fuel for car parks' vehicles starting 1,381600,Vehicle Mgt Leasing
South Lakeland District Council,http://opendatacommunities.org/id/district-council/south-lakeland,30/04/2016,Social Enterprise Admin,Cultural Environmental Regulatory & Planning Services,http://opendatacommunities.org/def/concept/finance/sercop/objective/104,ALLSTAR BUSINESS SOLUTIONS LTD (NCR),2631112,01/04/2016,57215,120,0,Fuel for car parks' vehicles starting 1,381600,Vehicle Mgt Leasing
South Lakeland District Council,http://opendatacommunities.org/id/district-council/south-lakeland,30/04/2016,Human Resources,Central Services,http://opendatacommunities.org/def/concept/finance/sercop/objective/102,FORBES SOLICITORS,,11/04/2016,57216,411,0,General Legal advice,281300,Legal Services Legal Opinion
South Lakeland District Council,http://opendatacommunities.org/id/district-council/south-lakeland,30/04/2016,Human Resources,Central Services,http://opendatacommunities.org/def/concept/finance/sercop/objective/102,FORBES SOLICITORS,,11/04/2016,57217,431.5,0,general legal advice ref:15.3232,281300,Legal Services Legal Opinion
South Lakeland District Council,http://opendatacommunities.org/id/district-council/south-lakeland,30/04/2016,Business Support Community Services,Internal Trading Accounts,,HAKO MACHINES LIMITED,1414225,11/04/2016,57218,5779.54,0,Hire of KX14 KHP 01/04/16 - 31/03/17,131000,Cleaning & Janitorial Cleaning Materials
South Lakeland District Council,http://opendatacommunities.org/id/district-council/south-lakeland,30/04/2016,Business Support Community Services,Internal Trading Accounts,,HAKO MACHINES LIMITED,1414225,11/04/2016,57219,5779.54,0,Hire of KX14 KHP 01/04/16 - 31/03/17,131000,Cleaning & Janitorial Cleaning Materials
South Lakeland District Council,http://opendatacommunities.org/id/district-council/south-lakeland,30/04/2016,Business Support Community Services,Internal Trading Accounts,,HAKO MACHINES LIMITED,1414225,11/04/2016,57220,11559.08,0,Hire of KX14 KHP 01/04/16 - 31/03/17,131000,Cleaning & Janitorial Cleaning Materials
South Lakeland District Council,http://opendatacommunities.org/id/district-council/south-lakeland,30/04/2016,Business Support Community Services,Environment Regulatory,,Great Green Systems Ltd,6632263,11/04/2016,57221,634.2,0,Replaces order 24352.,381206,Vehicle Mgt Heavy Construction Equip Pur
South Lakeland District Council,http://opendatacommunities.org/id/district-council/south-lakeland,30/04/2016,Business Support Community Services,Internal Trading Accounts,,GREENCHEM SOLUTIONS LTD,5175801,11/04/2016,57222,377.75,0,AdBlue,189999,Environmental Services Not Elsewhere Cla
South Lakeland District Council,http://opendatacommunities.org/id/district-council/south-lakeland,30/04/2016,Business Support Community Services,Internal Trading Accounts,,Driver Hire Lancaster,7762440,11/04/2016,57223,630.4,0,Agency driver - March / April 2016,380000,Vehicle Management
South Lakeland District Council,http://opendatacommunities.org/id/district-council/south-lakeland,30/04/2016,Business Support Community Services,Internal Trading Accounts,,BERENDSEN UK LTD,228604,11/04/2016,57224,180.38,0,Workwear hire 29/03/16 - 28/03/17,161000,Domestic Goods Commercial
South Lakeland District Council,http://opendatacommunities.org/id/district-council/south-lakeland,30/04/2016,Business Support Community Services,Cultural Environmental Regulatory & Planning Services,http://opendatacommunities.org/def/concept/finance/sercop/objective/104,OCS GROUP LTD T/A CANNON HYGIENE LTD,1298292,27/04/2016,57225,2127.1,0,Clinical waste collections - Mar,131011,Cleaning & Janitorial Cleaning Materials
South Lakeland District Council,http://opendatacommunities.org/id/district-council/south-lakeland,30/04/2016,Business Support Community Services,Cultural Environmental Regulatory & Planning Services,http://opendatacommunities.org/def/concept/finance/sercop/objective/104,OCS GROUP LTD T/A CANNON HYGIENE LTD,1298292,11/04/2016,57226,433.19,0,Clinical waste collections - 2016/17,131011,Cleaning & Janitorial Cleaning Materials
South Lakeland District Council,http://opendatacommunities.org/id/district-council/south-lakeland,30/04/2016,Business Support Community Services,Internal Trading Accounts,,ALLSTAR BUSINESS SOLUTIONS LTD (NCR),2631112,01/04/2016,57227,3322.4,0,Fuel to 31/03,381600,Vehicle Mgt Leasing
South Lakeland District Council,http://opendatacommunities.org/id/district-council/south-lakeland,30/04/2016,Business Support Community Services,Internal Trading Accounts,,ALLSTAR BUSINESS SOLUTIONS LTD (NCR),2631112,01/04/2016,57227,58.3,0,Fuel to 31/03,381600,Vehicle Mgt Leasing
South Lakeland District Council,http://opendatacommunities.org/id/district-council/south-lakeland,30/04/2016,Business Support Community Services,Internal Trading Accounts,,ALLSTAR BUSINESS SOLUTIONS LTD (NCR),2631112,01/04/2016,57227,13580.36,0,Fuel to 31/03,381600,Vehicle Mgt Leasing
South Lakeland District Council,http://opendatacommunities.org/id/district-council/south-lakeland,30/04/2016,Business Support Community Services,Internal Trading Accounts,,Collett Transport Services,2843547,11/04/2016,57228,72.84,0,Damaged rear light,361000,Public Transport Fleet Management
South Lakeland District Council,http://opendatacommunities.org/id/district-council/south-lakeland,30/04/2016,Business Support Community Services,Internal Trading Accounts,,HAKO MACHINES LIMITED,1414225,11/04/2016,57229,120.17,0,Wear skirt,131000,Cleaning & Janitorial Cleaning Materials
South Lakeland District Council,http://opendatacommunities.org/id/district-council/south-lakeland,30/04/2016,Business Support Community Services,Internal Trading Accounts,,HAKO MACHINES LIMITED,1414225,11/04/2016,57230,4626.7,0,Hire of KX14 KHP 01/04/16 - 31/03/17,131000,Cleaning & Janitorial Cleaning Materials
South Lakeland District Council,http://opendatacommunities.org/id/district-council/south-lakeland,30/04/2016,Legal Services,Central Services,http://opendatacommunities.org/def/concept/finance/sercop/objective/102,RICHARDS OF KENDAL,,18/04/2016,57232,2387,0,Cost of office moves relating to :-,191900,Facilities Removals
South Lakeland District Council,http://opendatacommunities.org/id/district-council/south-lakeland,30/04/2016,Business Support Community Services,Central Services,http://opendatacommunities.org/def/concept/finance/sercop/objective/102,ARCO LIMITED,133804,11/04/2016,57233,12.51,0,Uvex spectacles,141100,Clothing Protective
South Lakeland District Council,http://opendatacommunities.org/id/district-council/south-lakeland,30/04/2016,Social Enterprise Admin,Highways & Transport Services,http://opendatacommunities.org/def/concept/finance/sercop/objective/107,ARCO LIMITED,133804,11/04/2016,57234,7.53,0,5ltr Arco four seasons screenwash,141100,Clothing Protective
South Lakeland District Council,http://opendatacommunities.org/id/district-council/south-lakeland,30/04/2016,Human Resources,Central Services,http://opendatacommunities.org/def/concept/finance/sercop/objective/102,EMPLOYMENT PAGES LTD,7363099,11/04/2016,57235,673.2,0,Employment Pages Advert � Housing,261400,HR Temporary & Agency Staff
South Lakeland District Council,http://opendatacommunities.org/id/district-council/south-lakeland,30/04/2016,Policy & Partnerships,Cultural Environmental Regulatory & Planning Services,http://opendatacommunities.org/def/concept/finance/sercop/objective/104,GRANTS- MISCELLANEOUS,,11/04/2016,57237,1000,0,To supply and fit a handrail on the,201700,Financial Services Grants
South Lakeland District Council,http://opendatacommunities.org/id/district-council/south-lakeland,30/04/2016,Business Support Community Services,Internal Trading Accounts,,Hydrodec (UK) Ltd T/A OSS Group,8652156,11/04/2016,57238,110,0,Oil disposal,182015,Environment Waste Mgt Waste Disposal
South Lakeland District Council,http://opendatacommunities.org/id/district-council/south-lakeland,30/04/2016,Lake Wardens,Cultural Environmental Regulatory & Planning Services,http://opendatacommunities.org/def/concept/finance/sercop/objective/104,RICKERBY LTD,4985069,11/04/2016,57239,208.83,0,2 x Fuel Filters,381000,Vehicle Mgt Commercial
South Lakeland District Council,http://opendatacommunities.org/id/district-council/south-lakeland,30/04/2016,Lake Wardens,Central Services,http://opendatacommunities.org/def/concept/finance/sercop/objective/102,SHORROCK TRICHEM,4179799,11/04/2016,57240,278.64,0,5 x Large Plastic Jumbo Dispensers,131312,Cleaning & Janitorial Washroom Sanitat
South Lakeland District Council,http://opendatacommunities.org/id/district-council/south-lakeland,30/04/2016,Financial Services,Central Services,http://opendatacommunities.org/def/concept/finance/sercop/objective/102,KING & SHAXSON LTD,869780,11/04/2016,57241,150.09,0,Custodian Fees 15/16,209999,Financial Services Not Elsewhere Classif
South Lakeland District Council,http://opendatacommunities.org/id/district-council/south-lakeland,30/04/2016,Policy & Partnerships,Cultural Environmental Regulatory & Planning Services,http://opendatacommunities.org/def/concept/finance/sercop/objective/104,HAWKSHEAD PARISH COUNCIL,,11/04/2016,57243,1000,0,The Spout House Spring - to understand,908000,Public Bodies Council support services
South Lakeland District Council,http://opendatacommunities.org/id/district-council/south-lakeland,30/04/2016,Policy & Partnerships,Cultural Environmental Regulatory & Planning Services,http://opendatacommunities.org/def/concept/finance/sercop/objective/104,GRANTS- MISCELLANEOUS,,06/04/2016,57244,15000,0,2014 LIPs Grant to Flookburgh,201700,Financial Services Grants
South Lakeland District Council,http://opendatacommunities.org/id/district-council/south-lakeland,30/04/2016,Financial Services,External Trading Accounts,,ENVIRONMENT AGENCY,,11/04/2016,57245,1026,0,Summerlands Septic Tank 16/17,202100,Financial Services Subscriptions
South Lakeland District Council,http://opendatacommunities.org/id/district-council/south-lakeland,30/04/2016,Policy & Partnerships,Cultural Environmental Regulatory & Planning Services,http://opendatacommunities.org/def/concept/finance/sercop/objective/104,LOWER HOLKER PARISH COUNCIL,,11/04/2016,57246,700,0,The money will be ring-fenced for road,908000,Public Bodies Council support services
South Lakeland District Council,http://opendatacommunities.org/id/district-council/south-lakeland,30/04/2016,Social Enterprise Admin,Highways & Transport Services,http://opendatacommunities.org/def/concept/finance/sercop/objective/107,Masterstaff Limited,2777593,11/04/2016,57249,366.3,0,Staff for Westmorland SC car park inc,261300,HR Recruitment & Assessment
South Lakeland District Council,http://opendatacommunities.org/id/district-council/south-lakeland,30/04/2016,Revenues and Benefits,SLDC as Agent,,ROYAL MAIL GROUP PLC,,11/04/2016,57250,1988.61,0,2015-2016 Postal Charges a/c 0198123013,301200,Mail Services� Postage
South Lakeland District Council,http://opendatacommunities.org/id/district-council/south-lakeland,30/04/2016,Financial Services,Central Services,http://opendatacommunities.org/def/concept/finance/sercop/objective/102,CIPP,4227998,06/04/2016,57251,390,0,P11D Expenses and Benefits course D,261500,HR Training & Conferences
South Lakeland District Council,http://opendatacommunities.org/id/district-council/south-lakeland,30/04/2016,Financial Services,Central Services,http://opendatacommunities.org/def/concept/finance/sercop/objective/102,CIPP,4227998,06/04/2016,57252,390,0,P11D Expenses and Benefits course D,261500,HR Training & Conferences
South Lakeland District Council,http://opendatacommunities.org/id/district-council/south-lakeland,30/04/2016,Business Support Community Services,Housing Services,http://opendatacommunities.org/def/concept/finance/sercop/objective/108,Landlord,,06/04/2016,57253,500,0,Monthly rent ,250010,Housing Letting Agents
South Lakeland District Council,http://opendatacommunities.org/id/district-council/south-lakeland,30/04/2016,Business Support Community Services,Housing Services,http://opendatacommunities.org/def/concept/finance/sercop/objective/108,Landlord,,06/04/2016,57254,400,0,Monthly rent ,250000,Housing
South Lakeland District Council,http://opendatacommunities.org/id/district-council/south-lakeland,30/04/2016,Business Support Community Services,Housing Services,http://opendatacommunities.org/def/concept/finance/sercop/objective/108,Landlord,,06/04/2016,57255,600,0,Monthly rent ,250000,Housing
South Lakeland District Council,http://opendatacommunities.org/id/district-council/south-lakeland,30/04/2016,Business Support Community Services,Housing Services,http://opendatacommunities.org/def/concept/finance/sercop/objective/108,Landlord,,06/04/2016,57256,400,0,Monthly rent ,250010,Housing Letting Agents
South Lakeland District Council,http://opendatacommunities.org/id/district-council/south-lakeland,30/04/2016,Social Enterprise Admin,Central Services,http://opendatacommunities.org/def/concept/finance/sercop/objective/102,CUMBRIA COUNTY COUNCIL,,11/04/2016,57257,3396.9,0,LAND SEARCH CHARGE SEARCH ENQUIRIES CCC,908000,Public Bodies Council support services
South Lakeland District Council,http://opendatacommunities.org/id/district-council/south-lakeland,30/04/2016,Financial Services,Central Services,http://opendatacommunities.org/def/concept/finance/sercop/objective/102,CUMBRIA LGPS,,18/04/2016,57258,73644.59,0,Qtr Contributions re past pensions April,908999,Public Bodies Not Elsewhere Classified
South Lakeland District Council,http://opendatacommunities.org/id/district-council/south-lakeland,30/04/2016,Social Enterprise Admin,Cultural Environmental Regulatory & Planning Services,http://opendatacommunities.org/def/concept/finance/sercop/objective/104,FURNESS NEWSPAPERS LTD,1155841,11/04/2016,57259,103.6,0,PUBLIC NOTICES FOR PLANNING 1 APRIL 2015,191000,Facilities Advertising
South Lakeland District Council,http://opendatacommunities.org/id/district-council/south-lakeland,30/04/2016,Business Support Community Services,Internal Trading Accounts,,TAYLOR ENGINEERING & FABRICATIONS LTD,4989359,11/04/2016,57260,24.95,0,Contact,391200,Construction Engineering
South Lakeland District Council,http://opendatacommunities.org/id/district-council/south-lakeland,30/04/2016,Business Support Community Services,Internal Trading Accounts,,THOMAS GRAHAM & SONS (IRON & STEEL) LTD,656879,11/04/2016,57261,7.42,0,Oil,101400,Building General Materials
South Lakeland District Council,http://opendatacommunities.org/id/district-council/south-lakeland,30/04/2016,Policy & Partnerships,Cultural Environmental Regulatory & Planning Services,http://opendatacommunities.org/def/concept/finance/sercop/objective/104,SKELWITH PARISH COUNCIL,,11/04/2016,57262,200,0,New laptop - enable the clerk to keep,908000,Public Bodies Council support services
South Lakeland District Council,http://opendatacommunities.org/id/district-council/south-lakeland,30/04/2016,Social Enterprise Admin,Cultural Environmental Regulatory & Planning Services,http://opendatacommunities.org/def/concept/finance/sercop/objective/104,THOMSON REUTERS (PROFESSIONAL) UK LTD,1679046,11/04/2016,57263,58,0,PLANNING CONT THEIR ENFORCEMENT REL 17 &,202100,Financial Services Subscriptions
South Lakeland District Council,http://opendatacommunities.org/id/district-council/south-lakeland,30/04/2016,Development Implementation,Cultural Environmental Regulatory & Planning Services,http://opendatacommunities.org/def/concept/finance/sercop/objective/104,ADECCO UK LIMITED,593232,11/04/2016,57264,537.81,0,Economic Development Project Officer -,261400,HR Temporary & Agency Staff
South Lakeland District Council,http://opendatacommunities.org/id/district-council/south-lakeland,30/04/2016,Social Enterprise Admin,Central Services,http://opendatacommunities.org/def/concept/finance/sercop/objective/102,ADECCO UK LIMITED,593232,11/04/2016,57265,98.56,0,To supply 2 months,261400,HR Temporary & Agency Staff
South Lakeland District Council,http://opendatacommunities.org/id/district-council/south-lakeland,30/04/2016,Development Implementation,Cultural Environmental Regulatory & Planning Services,http://opendatacommunities.org/def/concept/finance/sercop/objective/104,ADECCO UK LIMITED,593232,11/04/2016,57266,502.98,0,Economic Development Project Officer -,261400,HR Temporary & Agency Staff
South Lakeland District Council,http://opendatacommunities.org/id/district-council/south-lakeland,30/04/2016,Business Support Community Services,Central Services,http://opendatacommunities.org/def/concept/finance/sercop/objective/102,RH Environmental Limited,,11/04/2016,57267,279,0,PWS Workshop and Conference,202100,Financial Services Subscriptions
South Lakeland District Council,http://opendatacommunities.org/id/district-council/south-lakeland,30/04/2016,Human Resources,Central Services,http://opendatacommunities.org/def/concept/finance/sercop/objective/102,JK CONNECT CONSULTING,,11/04/2016,57275,500,0, 1:1,151000,Consultancy Business
South Lakeland District Council,http://opendatacommunities.org/id/district-council/south-lakeland,30/04/2016,Business Support Community Services,Internal Trading Accounts,,Preston Trade Parts Specialists,,11/04/2016,57276,65.01,0,Catch,381400,Vehicle Mgt Maintenance
South Lakeland District Council,http://opendatacommunities.org/id/district-council/south-lakeland,30/04/2016,Business Support Community Services,Internal Trading Accounts,,BRIAN ARMISTEAD LTD T/A SINKFALL RECYCLI,4133280,11/04/2016,57277,812.8,0,Green waste tipping - w/e 25/03 & w/e,391110,Construction Buildings Construction
South Lakeland District Council,http://opendatacommunities.org/id/district-council/south-lakeland,30/04/2016,Business Support Community Services,Internal Trading Accounts,,CUMBRIA WASTE RECYCLING LTD,3162439,11/04/2016,57278,216,0,Skip emptying at Ecclerigg & Ulverston,182012,Environment Waste Management Recycling
South Lakeland District Council,http://opendatacommunities.org/id/district-council/south-lakeland,30/04/2016,Legal Services,Central Services,http://opendatacommunities.org/def/concept/finance/sercop/objective/102,WEIGHTMANS LLP,OC326117,11/04/2016,57279,1060,0,Fees for,281300,Legal Services Legal Opinion
South Lakeland District Council,http://opendatacommunities.org/id/district-council/south-lakeland,30/04/2016,Policy & Partnerships,Cultural Environmental Regulatory & Planning Services,http://opendatacommunities.org/def/concept/finance/sercop/objective/104,HAVERTHWAITE PARISH COUNCIL,,11/04/2016,57280,1000,0,To improve access to the subway.,908000,Public Bodies Council support services
South Lakeland District Council,http://opendatacommunities.org/id/district-council/south-lakeland,30/04/2016,ICT Group,Central Services,http://opendatacommunities.org/def/concept/finance/sercop/objective/102,HALAROSE LIMITED,1362834,11/04/2016,57282,520,0,Avantguard server migration,271600,ICT Software Customised & Bespoke
South Lakeland District Council,http://opendatacommunities.org/id/district-council/south-lakeland,30/04/2016,Business Support Community Services,Cultural Environmental Regulatory & Planning Services,http://opendatacommunities.org/def/concept/finance/sercop/objective/104,ARCO LIMITED,133804,11/04/2016,57284,21.1,0,Emergency horns,141100,Clothing Protective
South Lakeland District Council,http://opendatacommunities.org/id/district-council/south-lakeland,30/04/2016,Business Support Community Services,Internal Trading Accounts,,ARCO LIMITED,133804,13/04/2016,57285,1267.14,0,Cleaning materials,141100,Clothing Protective
South Lakeland District Council,http://opendatacommunities.org/id/district-council/south-lakeland,30/04/2016,Business Support Community Services,Internal Trading Accounts,,A & W COMMERCIALS LTD,2630625,13/04/2016,57286,188.6,0,Repair hiab,381400,Vehicle Mgt Maintenance
South Lakeland District Council,http://opendatacommunities.org/id/district-council/south-lakeland,30/04/2016,Business Support Community Services,Internal Trading Accounts,,A & W COMMERCIALS LTD,2630625,11/04/2016,57287,76,0,Hose,381400,Vehicle Mgt Maintenance
South Lakeland District Council,http://opendatacommunities.org/id/district-council/south-lakeland,30/04/2016,Business Support Community Services,Internal Trading Accounts,,A & W COMMERCIALS LTD,2630625,13/04/2016,57288,76,0,Test lift,381400,Vehicle Mgt Maintenance
South Lakeland District Council,http://opendatacommunities.org/id/district-council/south-lakeland,30/04/2016,Business Support Community Services,Internal Trading Accounts,,BRIAN ARMISTEAD LTD T/A SINKFALL RECYCLI,4133280,11/04/2016,57289,513.73,0,Green waste tipping - 2016/17,391110,Construction Buildings Construction
South Lakeland District Council,http://opendatacommunities.org/id/district-council/south-lakeland,30/04/2016,Business Support Community Services,Internal Trading Accounts,,ARCO LIMITED,133804,13/04/2016,57290,12.07,0,Cleaning materials,141100,Clothing Protective
South Lakeland District Council,http://opendatacommunities.org/id/district-council/south-lakeland,30/04/2016,Business Support Community Services,Internal Trading Accounts,,ARCO LIMITED,133804,13/04/2016,57291,33.86,0,Cleaning materials,141100,Clothing Protective
South Lakeland District Council,http://opendatacommunities.org/id/district-council/south-lakeland,30/04/2016,Development Implementation,Planning and Development,,CRUDEN PROPERTY SERVICES LTD,3851237,18/04/2016,57292,150,0,Installation of Electricity Cable at,391111,Construction Buildings Repair & Mtce
South Lakeland District Council,http://opendatacommunities.org/id/district-council/south-lakeland,30/04/2016,Customer Services,Central Services,http://opendatacommunities.org/def/concept/finance/sercop/objective/102,Giles Brown,,11/04/2016,57293,220,0,Covering comms desk,261400,HR Temporary & Agency Staff
South Lakeland District Council,http://opendatacommunities.org/id/district-council/south-lakeland,30/04/2016,Customer Services,Central Services,http://opendatacommunities.org/def/concept/finance/sercop/objective/102,Giles Brown,,11/04/2016,57294,220,0,Covering comms desk,261400,HR Temporary & Agency Staff
South Lakeland District Council,http://opendatacommunities.org/id/district-council/south-lakeland,30/04/2016,Printing Section,Central Services,http://opendatacommunities.org/def/concept/finance/sercop/objective/102,PRESCO UK LTD,5923806,11/04/2016,57295,16.11,0,5/16th 100 Wires in silver - Renze,191600,Facilities Printing
South Lakeland District Council,http://opendatacommunities.org/id/district-council/south-lakeland,30/04/2016,Printing Section,Central Services,http://opendatacommunities.org/def/concept/finance/sercop/objective/102,PRESCO UK LTD,5923806,11/04/2016,57295,44.91,0,5/16th 100 Wires in silver - Renze,191600,Facilities Printing
South Lakeland District Council,http://opendatacommunities.org/id/district-council/south-lakeland,30/04/2016,Social Enterprise Admin,Central Services,http://opendatacommunities.org/def/concept/finance/sercop/objective/102,LLCI LTD,6792908,11/04/2016,57296,115,0,SUBSCRIPTION TO LLCI 2016/2017,202100,Financial Services Subscriptions
South Lakeland District Council,http://opendatacommunities.org/id/district-council/south-lakeland,30/04/2016,Social Enterprise Admin,Highways & Transport Services,http://opendatacommunities.org/def/concept/finance/sercop/objective/107,BEMROSE BOOTH PARAGON LTD,4891375,18/04/2016,57297,1128.75,0,"187,500 Aura self-adhesive pay and",191600,Facilities Printing
South Lakeland District Council,http://opendatacommunities.org/id/district-council/south-lakeland,30/04/2016,Environment and Housing,Housing Services,http://opendatacommunities.org/def/concept/finance/sercop/objective/108,FERRET INFORMATION SYSTEMS LTD,2126033,11/04/2016,57298,150,0,Ferret Training Course for DFGs - Fleur,271600,ICT Software Customised & Bespoke
South Lakeland District Council,http://opendatacommunities.org/id/district-council/south-lakeland,30/04/2016,Human Resources,Central Services,http://opendatacommunities.org/def/concept/finance/sercop/objective/102,MIDLAND SOFTWARE LTD,1852206,11/04/2016,57299,1023.94,0,5 days Consultancy from Midland,271600,ICT Software Customised & Bespoke
South Lakeland District Council,http://opendatacommunities.org/id/district-council/south-lakeland,30/04/2016,Human Resources,Central Services,http://opendatacommunities.org/def/concept/finance/sercop/objective/102,MIDLAND SOFTWARE LTD,1852206,11/04/2016,57300,-774.17,0,5 days Consultancy from Midland,271600,ICT Software Customised & Bespoke
South Lakeland District Council,http://opendatacommunities.org/id/district-council/south-lakeland,30/04/2016,ICT Group,Central Services,http://opendatacommunities.org/def/concept/finance/sercop/objective/102,PROBRAND LTD,2653446,11/04/2016,57301,471.84,0,PAM030/84692-02      Plantronics -,271600,ICT Software Customised & Bespoke
South Lakeland District Council,http://opendatacommunities.org/id/district-council/south-lakeland,30/04/2016,ICT Group,Central Services,http://opendatacommunities.org/def/concept/finance/sercop/objective/102,PROBRAND LTD,2653446,11/04/2016,57301,3.85,0,PAM030/84692-02      Plantronics -,271600,ICT Software Customised & Bespoke
South Lakeland District Council,http://opendatacommunities.org/id/district-council/south-lakeland,30/04/2016,Revenues and Benefits,Central Services,http://opendatacommunities.org/def/concept/finance/sercop/objective/102,CIVICA UK LTD,1628868,11/04/2016,57303,1306.42,0,Subsidy claims module & PTC,271600,ICT Software Customised & Bespoke
South Lakeland District Council,http://opendatacommunities.org/id/district-council/south-lakeland,30/04/2016,Lake Wardens,Cultural Environmental Regulatory & Planning Services,http://opendatacommunities.org/def/concept/finance/sercop/objective/104,RS COMPONENTS LTD,1002091,11/04/2016,57304,7.19,0,1 x Bottle of Loctite Sealant Liquid.,101100,Building Electrical
South Lakeland District Council,http://opendatacommunities.org/id/district-council/south-lakeland,30/04/2016,Electoral Services,Central Services,http://opendatacommunities.org/def/concept/finance/sercop/objective/102,NEWSQUEST MEDIA GROUP LTD,3102566,13/04/2016,57310,292.78,0,Advert Westmorland Gazette Week,191000,Facilities Advertising
South Lakeland District Council,http://opendatacommunities.org/id/district-council/south-lakeland,30/04/2016,Social Enterprise Admin,Cultural Environmental Regulatory & Planning Services,http://opendatacommunities.org/def/concept/finance/sercop/objective/104,NEWSQUEST MEDIA GROUP LTD,3102566,11/04/2016,57311,113,0,PUBLIC NOTICES FOR PLANNING 1 APRIL - 31,191000,Facilities Advertising
South Lakeland District Council,http://opendatacommunities.org/id/district-council/south-lakeland,30/04/2016,Coronation Hall,Cultural Environmental Regulatory & Planning Services,http://opendatacommunities.org/def/concept/finance/sercop/objective/104,CHEMICAL DESIGN,,11/04/2016,57315,450,0,Design of 12 page brochure with images,131010,Cleaning & Janitorial Cleaning Materials
South Lakeland District Council,http://opendatacommunities.org/id/district-council/south-lakeland,30/04/2016,Legal Services,Central Services,http://opendatacommunities.org/def/concept/finance/sercop/objective/102,MARGARET BARROW INTERIORS LTD T/A MBI,,20/04/2016,57316,1585,0,3 x cabinets our ref:  I. Booth,211200,Furniture & Soft Furn Office Furniture
South Lakeland District Council,http://opendatacommunities.org/id/district-council/south-lakeland,30/04/2016,Business Support Community Services,Housing Services,http://opendatacommunities.org/def/concept/finance/sercop/objective/108,GATES TRAVEL SERVICE,,13/04/2016,57317,17.6,0,Train ticket for Zoe Pique leaving from,261600,HR Travel & Subsistence
South Lakeland District Council,http://opendatacommunities.org/id/district-council/south-lakeland,30/04/2016,Policy & Partnerships,Cultural Environmental Regulatory & Planning Services,http://opendatacommunities.org/def/concept/finance/sercop/objective/104,GRANTS- MISCELLANEOUS,,11/04/2016,57318,200,0,The funding will allow the group to,201700,Financial Services Grants
South Lakeland District Council,http://opendatacommunities.org/id/district-council/south-lakeland,30/04/2016,Business Support Community Services,Cultural Environmental Regulatory & Planning Services,http://opendatacommunities.org/def/concept/finance/sercop/objective/104,N WESTERN INSHORE FISHERIES &,,11/04/2016,57322,1087.9,0,Collection of cockle samples on,111200,Catering Food & Beverages
South Lakeland District Council,http://opendatacommunities.org/id/district-council/south-lakeland,30/04/2016,Business Support Community Services,Housing Services,http://opendatacommunities.org/def/concept/finance/sercop/objective/108,James Andrews Recruitment Solutions,6834852,11/04/2016,57323,481.25,0,Payment for - Housing,261400,HR Temporary & Agency Staff
South Lakeland District Council,http://opendatacommunities.org/id/district-council/south-lakeland,30/04/2016,Kendal Town Hall,Cultural Environmental Regulatory & Planning Services,http://opendatacommunities.org/def/concept/finance/sercop/objective/104,CUMBRIA - C P CATERING EQUIPMENT LTD,,11/04/2016,57324,38.24,0,2000 7oz plastic glasses for KTH,111100,Catering Equipment & Utensils
South Lakeland District Council,http://opendatacommunities.org/id/district-council/south-lakeland,30/04/2016,Human Resources,Central Services,http://opendatacommunities.org/def/concept/finance/sercop/objective/102,DISCLOSURE AND BARRING SERVICE,,25/04/2016,57325,44,0,Disclosure checks,202100,Financial Services Subscriptions
South Lakeland District Council,http://opendatacommunities.org/id/district-council/south-lakeland,30/04/2016,Human Resources,SLDC as Agent,,DISCLOSURE AND BARRING SERVICE,,25/04/2016,57325,308,0,Disclosure checks,202100,Financial Services Subscriptions
South Lakeland District Council,http://opendatacommunities.org/id/district-council/south-lakeland,30/04/2016,Business Support Community Services,Internal Trading Accounts,,VOLVO GROUP UK LTD,2190944,13/04/2016,57326,85,0,Paper rolls,381000,Vehicle Mgt Commercial
South Lakeland District Council,http://opendatacommunities.org/id/district-council/south-lakeland,30/04/2016,Business Support Community Services,Internal Trading Accounts,,SOMERS TOTALKARE LTD,5256574,13/04/2016,57327,1188,0,Service lifts,381300,Vehicle Mgt Industrial
South Lakeland District Council,http://opendatacommunities.org/id/district-council/south-lakeland,30/04/2016,Revenues and Benefits,Central Services,http://opendatacommunities.org/def/concept/finance/sercop/objective/102,UK PAYMENTS ADMINISTRATION LTD,1935025,11/04/2016,57328,30,0,Annual maintenance fee 2016 - 2017,202100,Financial Services Subscriptions
South Lakeland District Council,http://opendatacommunities.org/id/district-council/south-lakeland,30/04/2016,Legal Services,Central Services,http://opendatacommunities.org/def/concept/finance/sercop/objective/102,Whiteheads Solicitors Ltd,5954961,11/04/2016,57329,997,0,Fees requested ,281300,Legal Services Legal Opinion
South Lakeland District Council,http://opendatacommunities.org/id/district-council/south-lakeland,30/04/2016,Social Enterprise Admin,Cultural Environmental Regulatory & Planning Services,http://opendatacommunities.org/def/concept/finance/sercop/objective/104,Pell Frischmann Consulting Engineers,4403030,11/04/2016,57330,1500,0,"LAND AT BRIGSTEER ROAD, KENDAL -",152200,Consultancy Technical & Feasibility
South Lakeland District Council,http://opendatacommunities.org/id/district-council/south-lakeland,30/04/2016,Social Enterprise Admin,External Trading Accounts,,J S Cleaning Services,,11/04/2016,57331,1056,0,"Cleaning Ulverston Market Hall, Town",131010,Cleaning & Janitorial Cleaning Materials
South Lakeland District Council,http://opendatacommunities.org/id/district-council/south-lakeland,30/04/2016,Coronation Hall,Cultural Environmental Regulatory & Planning Services,http://opendatacommunities.org/def/concept/finance/sercop/objective/104,Ulverston Amateur Operatic Society,,11/04/2016,57332,55,0,Stewards for Friday Night Live on 5,291300,Arts & Leisure Services Performing Arts
South Lakeland District Council,http://opendatacommunities.org/id/district-council/south-lakeland,30/04/2016,Coronation Hall,Cultural Environmental Regulatory & Planning Services,http://opendatacommunities.org/def/concept/finance/sercop/objective/104,Ulverston Amateur Operatic Society,,11/04/2016,57333,55,0,Stewards for Friday Night Live on 5,291300,Arts & Leisure Services Performing Arts
South Lakeland District Council,http://opendatacommunities.org/id/district-council/south-lakeland,30/04/2016,Coronation Hall,Cultural Environmental Regulatory & Planning Services,http://opendatacommunities.org/def/concept/finance/sercop/objective/104,Ulverston Amateur Operatic Society,,11/04/2016,57334,55,0,Stewards for Friday Night Live on 5,291300,Arts & Leisure Services Performing Arts
South Lakeland District Council,http://opendatacommunities.org/id/district-council/south-lakeland,30/04/2016,Coronation Hall,External Trading Accounts,,SHORROCK TRICHEM,4179799,11/04/2016,57335,530.88,0,Green C-fold hand towels (3600) code,131312,Cleaning & Janitorial Washroom Sanitat
South Lakeland District Council,http://opendatacommunities.org/id/district-council/south-lakeland,30/04/2016,Legal Services,Central Services,http://opendatacommunities.org/def/concept/finance/sercop/objective/102,Freeths LLP,,11/04/2016,57336,219,0,Matters relating to the case of Mr,280000,Legal Services
South Lakeland District Council,http://opendatacommunities.org/id/district-council/south-lakeland,30/04/2016,Business Support Community Services,Housing Services,http://opendatacommunities.org/def/concept/finance/sercop/objective/108,Whiteheads Solicitors Ltd,5954961,11/04/2016,57337,347.6,0,Professional charges arising between the,281300,Legal Services Legal Opinion
South Lakeland District Council,http://opendatacommunities.org/id/district-council/south-lakeland,30/04/2016,ICT Group,Central Services,http://opendatacommunities.org/def/concept/finance/sercop/objective/102,CABLE & WIRELESS UK (VODAFONE),,25/04/2016,57338,2881.02,0,Gsi Convergence Framework,271700,ICT Telecommunications Fixed
South Lakeland District Council,http://opendatacommunities.org/id/district-council/south-lakeland,30/04/2016,Social Enterprise Admin,Transport,http://opendatacommunities.org/def/concept/finance/sercop/objective/107,VOLKERLASER LTD,3892871,11/04/2016,57342,1522.85,0,Concrete works at WSC car park,101400,Building General Materials
South Lakeland District Council,http://opendatacommunities.org/id/district-council/south-lakeland,30/04/2016,Development Management,Cultural Environmental Regulatory & Planning Services,http://opendatacommunities.org/def/concept/finance/sercop/objective/104,LABC,,11/04/2016,57343,1205.49,0,LABC Service Fee 2016-17,202100,Financial Services Subscriptions
South Lakeland District Council,http://opendatacommunities.org/id/district-council/south-lakeland,30/04/2016,Development Management,Cultural Environmental Regulatory & Planning Services,http://opendatacommunities.org/def/concept/finance/sercop/objective/104,LABC,,11/04/2016,57343,723.3,0,LABC Service Fee 2016-17,202100,Financial Services Subscriptions
South Lakeland District Council,http://opendatacommunities.org/id/district-council/south-lakeland,30/04/2016,Business Support Community Services,Internal Trading Accounts,,FURNESS FLUID POWER LTD,5675728,13/04/2016,57344,73.78,0,Repair hose,260000,HR
South Lakeland District Council,http://opendatacommunities.org/id/district-council/south-lakeland,30/04/2016,Social Enterprise Admin,Central Services,http://opendatacommunities.org/def/concept/finance/sercop/objective/102,B & J METALS (SKIP HIRE) LTD,4634318,25/04/2016,57345,280,0,I  16yd skip to be delivered to top deck,182011,Environment Waste Management Consumables
South Lakeland District Council,http://opendatacommunities.org/id/district-council/south-lakeland,30/04/2016,Social Enterprise Admin,Central Services,http://opendatacommunities.org/def/concept/finance/sercop/objective/102,B & J METALS (SKIP HIRE) LTD,4634318,25/04/2016,57345,560,0,I  16yd skip to be delivered to top deck,182011,Environment Waste Management Consumables
South Lakeland District Council,http://opendatacommunities.org/id/district-council/south-lakeland,30/04/2016,Legal Services,Internal Trading Accounts,,PENNINGTONS (KENDAL) LIMITED,434649,20/04/2016,57346,2500,0,Annual Charge for use of Link Road at,182013,Environment Waste Mgt Waste Collection
South Lakeland District Council,http://opendatacommunities.org/id/district-council/south-lakeland,30/04/2016,ICT Group,Central Services,http://opendatacommunities.org/def/concept/finance/sercop/objective/102,System People Ltd,,11/04/2016,57347,576,0,Agency hire for Ryan Armsrong,271100,ICT Consumables
South Lakeland District Council,http://opendatacommunities.org/id/district-council/south-lakeland,30/04/2016,Business Support Community Services,Internal Trading Accounts,,CALIBRATION & CONSULTANCY SERV (UK) LTD,,13/04/2016,57348,834.5,0,Tools,159999,Consultancy Not Elsewhere Classified
South Lakeland District Council,http://opendatacommunities.org/id/district-council/south-lakeland,30/04/2016,Financial Services,Central Services,http://opendatacommunities.org/def/concept/finance/sercop/objective/102,CAPITA TREASURY SOLUTIONS LTD,2652033,11/04/2016,57350,7450,0,Treasury Advice provided by capita 16/17,209999,Financial Services Not Elsewhere Classif
South Lakeland District Council,http://opendatacommunities.org/id/district-council/south-lakeland,30/04/2016,Social Enterprise Admin,Central Services,http://opendatacommunities.org/def/concept/finance/sercop/objective/102,Southerns Office Interiors Ltd,3478080,11/04/2016,57351,1242.2,0,Laptop Shelf,211200,Furniture & Soft Furn Office Furniture
South Lakeland District Council,http://opendatacommunities.org/id/district-council/south-lakeland,30/04/2016,Development Implementation,Cultural Environmental Regulatory & Planning Services,http://opendatacommunities.org/def/concept/finance/sercop/objective/104,ADECCO UK LIMITED,593232,11/04/2016,57352,123.61,0,Economic Development Project Officer -,261400,HR Temporary & Agency Staff
South Lakeland District Council,http://opendatacommunities.org/id/district-council/south-lakeland,30/04/2016,Development Implementation,Cultural Environmental Regulatory & Planning Services,http://opendatacommunities.org/def/concept/finance/sercop/objective/104,ADECCO UK LIMITED,593232,11/04/2016,57353,255.75,0,Economic Development Project Officer -,261400,HR Temporary & Agency Staff
South Lakeland District Council,http://opendatacommunities.org/id/district-council/south-lakeland,30/04/2016,Financial Services,Central Services,http://opendatacommunities.org/def/concept/finance/sercop/objective/102,CIPFA,2376684,11/04/2016,57354,2030,0,Annul Subs Renewal -Better Governance,202100,Financial Services Subscriptions
South Lakeland District Council,http://opendatacommunities.org/id/district-council/south-lakeland,30/04/2016,Revenues and Benefits,Central Services,http://opendatacommunities.org/def/concept/finance/sercop/objective/102,PITNEY BOWES LTD,182037,11/04/2016,57355,581.7,0,2015-2016   Stationery & office,301200,Mail Services� Postage
South Lakeland District Council,http://opendatacommunities.org/id/district-council/south-lakeland,30/04/2016,Revenues and Benefits,SLDC as Agent,,ROYAL MAIL GROUP PLC,,11/04/2016,57360,1161.03,0,2016 - 17  Postal Charges a/c 0198123013,301200,Mail Services� Postage
South Lakeland District Council,http://opendatacommunities.org/id/district-council/south-lakeland,30/04/2016,Electoral Services,Central Services,http://opendatacommunities.org/def/concept/finance/sercop/objective/102,ROYAL MAIL GROUP PLC,,11/04/2016,57361,0.9,0,Postage,301200,Mail Services� Postage
South Lakeland District Council,http://opendatacommunities.org/id/district-council/south-lakeland,30/04/2016,Revenues and Benefits,Central Services,http://opendatacommunities.org/def/concept/finance/sercop/objective/102,ROYAL MAIL GROUP PLC,,11/04/2016,57362,97.28,0,2016 - 2017  Postal Charges a/c,301200,Mail Services� Postage
South Lakeland District Council,http://opendatacommunities.org/id/district-council/south-lakeland,30/04/2016,Business Support Community Services,Transport Planning Policy,http://opendatacommunities.org/def/concept/finance/sercop/objective/107,ARCO LIMITED,133804,13/04/2016,57363,15.38,0,Cleaning materials,141100,Clothing Protective
South Lakeland District Council,http://opendatacommunities.org/id/district-council/south-lakeland,30/04/2016,Business Support Community Services,Internal Trading Accounts,,ARCO LIMITED,133804,13/04/2016,57363,11.98,0,Cleaning materials,141100,Clothing Protective
South Lakeland District Council,http://opendatacommunities.org/id/district-council/south-lakeland,30/04/2016,Business Support Community Services,Internal Trading Accounts,,ARCO LIMITED,133804,13/04/2016,57364,22.12,0,Cleaning materials,141100,Clothing Protective
South Lakeland District Council,http://opendatacommunities.org/id/district-council/south-lakeland,30/04/2016,Business Support Community Services,Transport Planning Policy,http://opendatacommunities.org/def/concept/finance/sercop/objective/107,ARCO LIMITED,133804,13/04/2016,57365,5.6,0,Cleaning materials,141100,Clothing Protective
South Lakeland District Council,http://opendatacommunities.org/id/district-council/south-lakeland,30/04/2016,Social Enterprise Admin,Highways & Transport Services,http://opendatacommunities.org/def/concept/finance/sercop/objective/107,ARCO LIMITED,133804,11/04/2016,57366,23.22,0,5ltr Arco four seasons screenwash,141100,Clothing Protective
South Lakeland District Council,http://opendatacommunities.org/id/district-council/south-lakeland,30/04/2016,Business Support Community Services,Transport Planning Policy,http://opendatacommunities.org/def/concept/finance/sercop/objective/107,ARCO LIMITED,133804,13/04/2016,57367,53.7,0,Cleaning materials,141100,Clothing Protective
South Lakeland District Council,http://opendatacommunities.org/id/district-council/south-lakeland,30/04/2016,Business Support Community Services,Internal Trading Accounts,,ARCO LIMITED,133804,13/04/2016,57367,72.68,0,Cleaning materials,141100,Clothing Protective
South Lakeland District Council,http://opendatacommunities.org/id/district-council/south-lakeland,30/04/2016,Business Support Community Services,Internal Trading Accounts,,ARCO LIMITED,133804,13/04/2016,57367,662.49,0,Cleaning materials,141100,Clothing Protective
South Lakeland District Council,http://opendatacommunities.org/id/district-council/south-lakeland,30/04/2016,Social Enterprise Admin,Cultural Environmental Regulatory & Planning Services,http://opendatacommunities.org/def/concept/finance/sercop/objective/104,B & J METALS (SKIP HIRE) LTD,4634318,13/04/2016,57368,855,0,Grounds waste disposal - Sandylands Road,182011,Environment Waste Management Consumables
South Lakeland District Council,http://opendatacommunities.org/id/district-council/south-lakeland,30/04/2016,Business Support Community Services,Transport Planning Policy,http://opendatacommunities.org/def/concept/finance/sercop/objective/107,ARCO LIMITED,133804,18/04/2016,57369,24.7,0,Cleaning materials,141100,Clothing Protective
South Lakeland District Council,http://opendatacommunities.org/id/district-council/south-lakeland,30/04/2016,Coronation Hall,External Trading Accounts,,SHORROCK TRICHEM,4179799,11/04/2016,57370,9.21,0,Green C-fold hand towels (3600) code,131312,Cleaning & Janitorial Washroom Sanitat
South Lakeland District Council,http://opendatacommunities.org/id/district-council/south-lakeland,30/04/2016,Human Resources,Central Services,http://opendatacommunities.org/def/concept/finance/sercop/objective/102,KENDAL COLLEGE,,11/04/2016,57375,350,0,29.04.15 13:3015:00 E-Forms,908999,Public Bodies Not Elsewhere Classified
South Lakeland District Council,http://opendatacommunities.org/id/district-council/south-lakeland,30/04/2016,Kendal Town Hall,Cultural Environmental Regulatory & Planning Services,http://opendatacommunities.org/def/concept/finance/sercop/objective/104,TRUVOX INTERNATIONAL LIMITED,731273,11/04/2016,57376,223.45,0,Call out to service truvox floor,130000,Cleanine & Janitorial
South Lakeland District Council,http://opendatacommunities.org/id/district-council/south-lakeland,30/04/2016,Kendal Town Hall,Cultural Environmental Regulatory & Planning Services,http://opendatacommunities.org/def/concept/finance/sercop/objective/104,TRUVOX INTERNATIONAL LIMITED,731273,11/04/2016,57377,-80,0,Call out to service truvox floor,130000,Cleanine & Janitorial
South Lakeland District Council,http://opendatacommunities.org/id/district-council/south-lakeland,30/04/2016,Policy & Partnerships,Central Services,http://opendatacommunities.org/def/concept/finance/sercop/objective/102,LOCAL GOVERNMENT ASSOCIATION,,11/04/2016,57378,10320.32,0,LGA membership renewal,202100,Financial Services Subscriptions
South Lakeland District Council,http://opendatacommunities.org/id/district-council/south-lakeland,30/04/2016,Financial Services,Central Services,http://opendatacommunities.org/def/concept/finance/sercop/objective/102,CIPFA,2376684,11/04/2016,57379,2680,0,TISonline full subscription 01 April,202100,Financial Services Subscriptions
South Lakeland District Council,http://opendatacommunities.org/id/district-council/south-lakeland,30/04/2016,Financial Services,Central Services,http://opendatacommunities.org/def/concept/finance/sercop/objective/102,NORTH KESTEVEN DISTRICT COUNCIL,,11/04/2016,57380,2645,0,Rural Services Network - Service Charge,908000,Public Bodies Council support services
South Lakeland District Council,http://opendatacommunities.org/id/district-council/south-lakeland,30/04/2016,Human Resources,Central Services,http://opendatacommunities.org/def/concept/finance/sercop/objective/102,BUSY BEES BENEFITS LTD,6758298,11/04/2016,57382,14.46,0,child care vouchers,202100,Financial Services Subscriptions
South Lakeland District Council,http://opendatacommunities.org/id/district-council/south-lakeland,30/04/2016,Human Resources,Non-Service Payments,,BUSY BEES BENEFITS LTD,6758298,11/04/2016,57383,413,0,child care vouchers,202100,Financial Services Subscriptions
South Lakeland District Council,http://opendatacommunities.org/id/district-council/south-lakeland,30/04/2016,Human Resources,Central Services,http://opendatacommunities.org/def/concept/finance/sercop/objective/102,COMPUTERSHARE VOUCHER SERVICES LTD,4968447,11/04/2016,57384,43.28,0,child care vouchers,202100,Financial Services Subscriptions
South Lakeland District Council,http://opendatacommunities.org/id/district-council/south-lakeland,30/04/2016,Human Resources,Non-Service Payments,,COMPUTERSHARE VOUCHER SERVICES LTD,4968447,11/04/2016,57385,1154,0,child care vouchers,202100,Financial Services Subscriptions
South Lakeland District Council,http://opendatacommunities.org/id/district-council/south-lakeland,30/04/2016,Policy & Partnerships,Cultural Environmental Regulatory & Planning Services,http://opendatacommunities.org/def/concept/finance/sercop/objective/104,GRANTS- MISCELLANEOUS,,11/04/2016,57386,300,0,To be spent on the continuation of the,201700,Financial Services Grants
South Lakeland District Council,http://opendatacommunities.org/id/district-council/south-lakeland,30/04/2016,Business Support Community Services,Housing Services,http://opendatacommunities.org/def/concept/finance/sercop/objective/108,Landlord,,11/04/2016,57387,400,0,Monthly rent ,250000,Housing
South Lakeland District Council,http://opendatacommunities.org/id/district-council/south-lakeland,30/04/2016,Business Support Community Services,Housing Services,http://opendatacommunities.org/def/concept/finance/sercop/objective/108,Landlord,,11/04/2016,57388,520,0,Monthly rent ,202000,Financial Services Rents
South Lakeland District Council,http://opendatacommunities.org/id/district-council/south-lakeland,30/04/2016,Business Support Community Services,Housing Services,http://opendatacommunities.org/def/concept/finance/sercop/objective/108,Landlord,,11/04/2016,57389,520,0,Monthly rent ,202000,Financial Services Rents
South Lakeland District Council,http://opendatacommunities.org/id/district-council/south-lakeland,30/04/2016,Business Support Community Services,Housing Services,http://opendatacommunities.org/def/concept/finance/sercop/objective/108,Landlord,7121028,11/04/2016,57390,400,0,Monthly rent ,202000,Financial Services Rents
South Lakeland District Council,http://opendatacommunities.org/id/district-council/south-lakeland,30/04/2016,Business Support Community Services,Housing Services,http://opendatacommunities.org/def/concept/finance/sercop/objective/108,Landlord,,11/04/2016,57391,500,0,Monthly rent ,202000,Financial Services Rents
South Lakeland District Council,http://opendatacommunities.org/id/district-council/south-lakeland,30/04/2016,Business Support Community Services,Housing Services,http://opendatacommunities.org/def/concept/finance/sercop/objective/108,Landlord,,11/04/2016,57392,520,0,Monthly rent ,202000,Financial Services Rents
South Lakeland District Council,http://opendatacommunities.org/id/district-council/south-lakeland,30/04/2016,Business Support Community Services,Housing Services,http://opendatacommunities.org/def/concept/finance/sercop/objective/108,Landlord,,11/04/2016,57393,520,0,Monthly rent ,202000,Financial Services Rents
South Lakeland District Council,http://opendatacommunities.org/id/district-council/south-lakeland,30/04/2016,Business Support Community Services,Housing Services,http://opendatacommunities.org/def/concept/finance/sercop/objective/108,Landlord,,11/04/2016,57394,600,0,Monthly rent ,250000,Housing
South Lakeland District Council,http://opendatacommunities.org/id/district-council/south-lakeland,30/04/2016,Environment and Housing,Housing,http://opendatacommunities.org/def/concept/finance/sercop/objective/108,ENVIRONMENT & HOUSING GRANTS,,11/04/2016,57395,663.28,0,"Lyth, Kendal",201700,Financial Services Grants
South Lakeland District Council,http://opendatacommunities.org/id/district-council/south-lakeland,30/04/2016,Business Support Community Services,Internal Trading Accounts,,TECHNIJET LTD,2776601,13/04/2016,57396,81.36,0,Service & repair pressure washers,139999,Cleaning & Janitorial Not Elsewhere Clas
South Lakeland District Council,http://opendatacommunities.org/id/district-council/south-lakeland,30/04/2016,Business Support Community Services,Internal Trading Accounts,,TEAL PATENTS LTD,3212208,13/04/2016,57397,233.1,0,Tealwash,111100,Catering Equipment & Utensils
South Lakeland District Council,http://opendatacommunities.org/id/district-council/south-lakeland,30/04/2016,Business Support Community Services,Internal Trading Accounts,,Masterstaff Limited,2777593,11/04/2016,57398,3360.06,0,Agency staff - February 2016,261300,HR Recruitment & Assessment
South Lakeland District Council,http://opendatacommunities.org/id/district-council/south-lakeland,30/04/2016,Business Support Community Services,Internal Trading Accounts,,BRIAN ARMISTEAD LTD T/A SINKFALL RECYCLI,4133280,13/04/2016,57399,750.4,0,Green waste tipping - w/e 25/03 & w/e,391110,Construction Buildings Construction
South Lakeland District Council,http://opendatacommunities.org/id/district-council/south-lakeland,30/04/2016,Lake Wardens,SLDC as Agent,,LAKE DISTRICT NATIONAL PARK AUTHORITY,,25/04/2016,57400,2562,0,Monthly Invoices for 2015/2016 for boat,201700,Financial Services Grants
South Lakeland District Council,http://opendatacommunities.org/id/district-council/south-lakeland,30/04/2016,Business Support Community Services,Internal Trading Accounts,,AINSWORTH'S GARAGE,,18/04/2016,57401,382.5,0,Recover SL020,381400,Vehicle Mgt Maintenance
South Lakeland District Council,http://opendatacommunities.org/id/district-council/south-lakeland,30/04/2016,Social Enterprise Admin,Central Services,http://opendatacommunities.org/def/concept/finance/sercop/objective/102,LAKE DISTRICT NATIONAL PARK AUTHORITY,,13/04/2016,57402,3392.5,0,LAND CHARGE SEARCH ENQUIRIES LDNPA,201700,Financial Services Grants
South Lakeland District Council,http://opendatacommunities.org/id/district-council/south-lakeland,30/04/2016,ICT Group,Central Services,http://opendatacommunities.org/def/concept/finance/sercop/objective/102,Insight Direct (Uk) Ltd,2579852,13/04/2016,57403,12.45,0,5 x USB to micro USB 0.5m cables,271200,ICT Hardware
South Lakeland District Council,http://opendatacommunities.org/id/district-council/south-lakeland,30/04/2016,Lake Wardens,Cultural Environmental Regulatory & Planning Services,http://opendatacommunities.org/def/concept/finance/sercop/objective/104,ENVIROFIRST LTD,5999123,13/04/2016,57404,25.76,0,Rental & Emptying of Re-Cycling Bins at,182012,Environment Waste Management Recycling
South Lakeland District Council,http://opendatacommunities.org/id/district-council/south-lakeland,30/04/2016,Kendal Town Hall,Transport,http://opendatacommunities.org/def/concept/finance/sercop/objective/107,AJN Refurbishment Services Ltd,8248260,13/04/2016,57405,5752.37,0,Phase 3 (Grange-over-Sands and Kirkby,191700,Facilities Property Management
South Lakeland District Council,http://opendatacommunities.org/id/district-council/south-lakeland,30/04/2016,Policy & Partnerships,Cultural Environmental Regulatory & Planning Services,http://opendatacommunities.org/def/concept/finance/sercop/objective/104,ARNSIDE/SILVERDALE AONB-LANC CITY COUNC,,27/04/2016,57406,11500,0,Community organisation funding 2015-17 -,201700,Financial Services Grants
South Lakeland District Council,http://opendatacommunities.org/id/district-council/south-lakeland,30/04/2016,Social Enterprise Admin,Cultural Environmental Regulatory & Planning Services,http://opendatacommunities.org/def/concept/finance/sercop/objective/104,NEWSQUEST MEDIA GROUP LTD,3102566,13/04/2016,57407,95,0,PUBLIC NOTICES FOR PLANNING 1 APRIL - 31,191000,Facilities Advertising
South Lakeland District Council,http://opendatacommunities.org/id/district-council/south-lakeland,30/04/2016,Social Enterprise Admin,Highways & Transport Services,http://opendatacommunities.org/def/concept/finance/sercop/objective/107,METRIC GROUP LIMITED,2560839,25/04/2016,57408,693,0,Web hosting and web tariff editor for 66,359999,Street & Traffic Not Elsewhere Classifie
South Lakeland District Council,http://opendatacommunities.org/id/district-council/south-lakeland,30/04/2016,Printing Section,Central Services,http://opendatacommunities.org/def/concept/finance/sercop/objective/102,ROSEFOX PAPER LIMITED,1655083,25/04/2016,57409,36.76,0,SRA3 Target 100gsm,341000,Stationery Paper
South Lakeland District Council,http://opendatacommunities.org/id/district-council/south-lakeland,30/04/2016,Social Enterprise Admin,Highways & Transport Services,http://opendatacommunities.org/def/concept/finance/sercop/objective/107,G4S SECURE SOLUTIONS (UK) LTD,1046019,13/04/2016,57410,874.84,0,Patrol Services for South Lakeland House,192213,Facilities Security Manned Guarding
South Lakeland District Council,http://opendatacommunities.org/id/district-council/south-lakeland,30/04/2016,Social Enterprise Admin,SLDC as Agent,,PAY BY PHONE (PAYPOINT),,13/04/2016,57411,219.06,0,Pay-by-phone charges from 1 April 2015,351400,Street & Traffic Traffic Control
South Lakeland District Council,http://opendatacommunities.org/id/district-council/south-lakeland,30/04/2016,Business Support Community Services,Internal Trading Accounts,,K & S Commercial Ltd,9068885,25/04/2016,57412,102,0,Battery,381400,Vehicle Mgt Maintenance
South Lakeland District Council,http://opendatacommunities.org/id/district-council/south-lakeland,30/04/2016,Business Support Community Services,Housing Services,http://opendatacommunities.org/def/concept/finance/sercop/objective/108,THE JAMES COCHRANE PRACTICE,,13/04/2016,57413,25,0,Medical advice ,311600,Healthcare Services
South Lakeland District Council,http://opendatacommunities.org/id/district-council/south-lakeland,30/04/2016,Social Enterprise Admin,Highways & Transport Services,http://opendatacommunities.org/def/concept/finance/sercop/objective/107,CREDIT CALL LTD (NCR),,01/04/2016,57414,646.58,0,Credit Call Commission 2015/16,209999,Financial Services Not Elsewhere Classif
South Lakeland District Council,http://opendatacommunities.org/id/district-council/south-lakeland,30/04/2016,Business Support Community Services,Housing Services,http://opendatacommunities.org/def/concept/finance/sercop/objective/108,NOWMEDICAL,4338252,13/04/2016,57415,50,0,Medical report ,311600,Healthcare Services
South Lakeland District Council,http://opendatacommunities.org/id/district-council/south-lakeland,30/04/2016,Business Support Community Services,Housing Services,http://opendatacommunities.org/def/concept/finance/sercop/objective/108,CAPTAIN FRENCH SURGERY,,13/04/2016,57417,25,0,Medical report ,311600,Healthcare Services
South Lakeland District Council,http://opendatacommunities.org/id/district-council/south-lakeland,30/04/2016,Business Support Community Services,Housing Services,http://opendatacommunities.org/def/concept/finance/sercop/objective/108,THE JAMES COCHRANE PRACTICE,,13/04/2016,57419,20,0,Medical report ,311600,Healthcare Services
South Lakeland District Council,http://opendatacommunities.org/id/district-council/south-lakeland,30/04/2016,Lake Wardens,Cultural Environmental Regulatory & Planning Services,http://opendatacommunities.org/def/concept/finance/sercop/objective/104,TECHNIJET LTD,2776601,13/04/2016,57421,42.96,0,Bi-Annual Service of Pressure Washers,139999,Cleaning & Janitorial Not Elsewhere Clas
South Lakeland District Council,http://opendatacommunities.org/id/district-council/south-lakeland,30/04/2016,Lake Wardens,Cultural Environmental Regulatory & Planning Services,http://opendatacommunities.org/def/concept/finance/sercop/objective/104,TECHNIJET LTD,2776601,18/04/2016,57422,103.87,0,Bi-Annual Service of Pressure Washers,139999,Cleaning & Janitorial Not Elsewhere Clas
South Lakeland District Council,http://opendatacommunities.org/id/district-council/south-lakeland,30/04/2016,Human Resources,Central Services,http://opendatacommunities.org/def/concept/finance/sercop/objective/102,IOSH SERVICES LTD,1816826,25/04/2016,57427,190,0,7 delegates @ 20,221100,Health & Safety� Maintenance
South Lakeland District Council,http://opendatacommunities.org/id/district-council/south-lakeland,30/04/2016,Social Enterprise Admin,Central Services,http://opendatacommunities.org/def/concept/finance/sercop/objective/102,B & J METALS (SKIP HIRE) LTD,4634318,25/04/2016,57428,-280,0,I  16yd skip to be delivered to top deck,182011,Environment Waste Management Consumables
South Lakeland District Council,http://opendatacommunities.org/id/district-council/south-lakeland,30/04/2016,Social Enterprise Admin,Central Services,http://opendatacommunities.org/def/concept/finance/sercop/objective/102,ENVIROFIRST LTD,5999123,25/04/2016,57429,238.79,0,Lowther Street Wheelie bin mixed,182012,Environment Waste Management Recycling
South Lakeland District Council,http://opendatacommunities.org/id/district-council/south-lakeland,30/04/2016,Human Resources,Central Services,http://opendatacommunities.org/def/concept/finance/sercop/objective/102,Taylors Solicitors,,25/04/2016,57430,100,0,Settlement Agreement,280000,Legal Services
South Lakeland District Council,http://opendatacommunities.org/id/district-council/south-lakeland,30/04/2016,Human Resources,Central Services,http://opendatacommunities.org/def/concept/finance/sercop/objective/102,Taylors Solicitors,,25/04/2016,57431,100,0,Agreement,280000,Legal Services
South Lakeland District Council,http://opendatacommunities.org/id/district-council/south-lakeland,30/04/2016,Social Enterprise Admin,Highways & Transport Services,http://opendatacommunities.org/def/concept/finance/sercop/objective/107,MOUCHEL LTD,1686040,18/04/2016,57432,26.18,0,DVLA checks from 1 April 2015 to 31,351400,Street & Traffic Traffic Control
South Lakeland District Council,http://opendatacommunities.org/id/district-council/south-lakeland,30/04/2016,Development Management,Cultural Environmental Regulatory & Planning Services,http://opendatacommunities.org/def/concept/finance/sercop/objective/104,R G PARKINS & PARTNERS LTD,4107150,18/04/2016,57433,254.1,0,"Site visits to Allhallows Chapel, Kendal",152200,Consultancy Technical & Feasibility
South Lakeland District Council,http://opendatacommunities.org/id/district-council/south-lakeland,30/04/2016,Business Support Community Services,Housing Services,http://opendatacommunities.org/def/concept/finance/sercop/objective/108,Vigilant Security Services UK Ltd,5914271,13/04/2016,57434,3430.4,0,Monthly payment for the security Guard,192213,Facilities Security Manned Guarding
South Lakeland District Council,http://opendatacommunities.org/id/district-council/south-lakeland,30/04/2016,Business Support Community Services,Internal Trading Accounts,,Driver Hire Lancaster,7762440,13/04/2016,57435,586.8,0,Agency driver - March / April 2016,380000,Vehicle Management
South Lakeland District Council,http://opendatacommunities.org/id/district-council/south-lakeland,30/04/2016,Business Support Community Services,Internal Trading Accounts,,Masterstaff Limited,2777593,25/04/2016,57436,2896.15,0,Agency staff - March 2016,261300,HR Recruitment & Assessment
South Lakeland District Council,http://opendatacommunities.org/id/district-council/south-lakeland,30/04/2016,Business Support Community Services,Internal Trading Accounts,,TAYLOR ENGINEERING & FABRICATIONS LTD,4989359,13/04/2016,57437,598.94,0,Strikers,391200,Construction Engineering
South Lakeland District Council,http://opendatacommunities.org/id/district-council/south-lakeland,30/04/2016,Business Support Community Services,Internal Trading Accounts,,TAYLOR ENGINEERING & FABRICATIONS LTD,4989359,13/04/2016,57438,93.59,0,Strikers,391200,Construction Engineering
South Lakeland District Council,http://opendatacommunities.org/id/district-council/south-lakeland,30/04/2016,Business Support Community Services,Internal Trading Accounts,,EK MOTOR FACTORS LTD,838524,13/04/2016,57439,46.7,0,Air filters,381400,Vehicle Mgt Maintenance
South Lakeland District Council,http://opendatacommunities.org/id/district-council/south-lakeland,30/04/2016,Business Support Community Services,Internal Trading Accounts,,EK MOTOR FACTORS LTD,838524,13/04/2016,57440,1.2,0,Air filters,381400,Vehicle Mgt Maintenance
South Lakeland District Council,http://opendatacommunities.org/id/district-council/south-lakeland,30/04/2016,Business Support Community Services,Internal Trading Accounts,,EK MOTOR FACTORS LTD,838524,13/04/2016,57441,36.1,0,Air filters,381400,Vehicle Mgt Maintenance
South Lakeland District Council,http://opendatacommunities.org/id/district-council/south-lakeland,30/04/2016,Business Support Community Services,Internal Trading Accounts,,EK MOTOR FACTORS LTD,838524,13/04/2016,57442,10,0,Air filters,381400,Vehicle Mgt Maintenance
South Lakeland District Council,http://opendatacommunities.org/id/district-council/south-lakeland,30/04/2016,Business Support Community Services,Internal Trading Accounts,,M G D LTD,,13/04/2016,57443,35,0,MOTs 01/04/16 - 31/03/17,381400,Vehicle Mgt Maintenance
South Lakeland District Council,http://opendatacommunities.org/id/district-council/south-lakeland,30/04/2016,Business Support Community Services,Cultural Environmental Regulatory & Planning Services,http://opendatacommunities.org/def/concept/finance/sercop/objective/104,JEWSON LIMITED,348407,13/04/2016,57444,23.8,0,Fixtures & fittings 2016/17,101400,Building General Materials
South Lakeland District Council,http://opendatacommunities.org/id/district-council/south-lakeland,30/04/2016,Business Support Community Services,Internal Trading Accounts,,DENNIS EAGLE LTD,3794455,13/04/2016,57445,762.62,0,Latch,381300,Vehicle Mgt Industrial
South Lakeland District Council,http://opendatacommunities.org/id/district-council/south-lakeland,30/04/2016,Coronation Hall,External Trading Accounts,,J S Cleaning Services,,13/04/2016,57453,1095,0,"Cleaning Ulverston Market Hall, Town",131010,Cleaning & Janitorial Cleaning Materials
South Lakeland District Council,http://opendatacommunities.org/id/district-council/south-lakeland,30/04/2016,Business Support Community Services,Cultural Environmental Regulatory & Planning Services,http://opendatacommunities.org/def/concept/finance/sercop/objective/104,INTELLIGENT DATA SYSTEMS (UK) LTD,5148878,13/04/2016,57454,17.25,0,IDS CHECKS FOR TAXIS DRIVERS,271510,ICT Application Service Provision
South Lakeland District Council,http://opendatacommunities.org/id/district-council/south-lakeland,30/04/2016,Business Support Community Services,Cultural Environmental Regulatory & Planning Services,http://opendatacommunities.org/def/concept/finance/sercop/objective/104,LANDMARK INFORMATION GROUP LIMITED,2892803,13/04/2016,57455,250,0,Historical National Grid Mapping Annual,191700,Facilities Property Management
South Lakeland District Council,http://opendatacommunities.org/id/district-council/south-lakeland,30/04/2016,Social Enterprise Admin,Central Services,http://opendatacommunities.org/def/concept/finance/sercop/objective/102,YORKSHIRE DALES NATIONAL PARK AUTHY,,13/04/2016,57456,228,0,LAND CHARGE SEARCH ENQUIRIES YDNPA,202100,Financial Services Subscriptions
South Lakeland District Council,http://opendatacommunities.org/id/district-council/south-lakeland,30/04/2016,Lake Wardens,Highways & Transport Services,http://opendatacommunities.org/def/concept/finance/sercop/objective/107,SHORROCK TRICHEM,4179799,13/04/2016,57464,347.56,0,10 x Packs of Jumbo Toilet Rolls,131312,Cleaning & Janitorial Washroom Sanitat
South Lakeland District Council,http://opendatacommunities.org/id/district-council/south-lakeland,30/04/2016,Social Enterprise Admin,Highways & Transport Services,http://opendatacommunities.org/def/concept/finance/sercop/objective/107,Masterstaff Limited,2777593,13/04/2016,57465,421.8,0,Staff for Westmorland Shopping Centre,261300,HR Recruitment & Assessment
South Lakeland District Council,http://opendatacommunities.org/id/district-council/south-lakeland,30/04/2016,Social Enterprise Admin,Highways & Transport Services,http://opendatacommunities.org/def/concept/finance/sercop/objective/107,BRITISH TELECOMMUNICATIONS PLC,1800000,13/04/2016,57466,195,0,Private circuit bill for Westmorland SC,279999,ICT Not Elsewhere Classified
South Lakeland District Council,http://opendatacommunities.org/id/district-council/south-lakeland,30/04/2016,ICT Group,Central Services,http://opendatacommunities.org/def/concept/finance/sercop/objective/102,System People Ltd,,18/04/2016,57476,666,0,Agency hire ,271100,ICT Consumables
South Lakeland District Council,http://opendatacommunities.org/id/district-council/south-lakeland,30/04/2016,Financial Services,SLDC as Agent,,KIRKLAND TRUST (KENDAL),,13/04/2016,57477,4226.05,0,15/16 Income,201700,Financial Services Grants
South Lakeland District Council,http://opendatacommunities.org/id/district-council/south-lakeland,30/04/2016,Environmental Protection,Cultural Environmental Regulatory & Planning Services,http://opendatacommunities.org/def/concept/finance/sercop/objective/104,GLASDON UK LTD,2160576,25/04/2016,57478,1610.78,0,2 off black STANFORD seats c/w bolts.,109999,Building Not Elsewhere Classified
South Lakeland District Council,http://opendatacommunities.org/id/district-council/south-lakeland,30/04/2016,Business Support Community Services,Internal Trading Accounts,,HAKO MACHINES LIMITED,1414225,20/04/2016,57479,260,0,Operator training,131000,Cleaning & Janitorial Cleaning Materials
South Lakeland District Council,http://opendatacommunities.org/id/district-council/south-lakeland,30/04/2016,Business Support Community Services,Housing Services,http://opendatacommunities.org/def/concept/finance/sercop/objective/108,James Andrews Recruitment Solutions,6834852,18/04/2016,57480,931.25,0,Payment for - Housing,261400,HR Temporary & Agency Staff
South Lakeland District Council,http://opendatacommunities.org/id/district-council/south-lakeland,30/04/2016,Social Enterprise Admin,Cultural Environmental Regulatory & Planning Services,http://opendatacommunities.org/def/concept/finance/sercop/objective/104,WINDERMERE TOWN COUNCIL,,18/04/2016,57481,3157.3,0,For contribution from SLDC for water use,908000,Public Bodies Council support services
South Lakeland District Council,http://opendatacommunities.org/id/district-council/south-lakeland,30/04/2016,Social Enterprise Admin,Cultural Environmental Regulatory & Planning Services,http://opendatacommunities.org/def/concept/finance/sercop/objective/104,ENVIRONMENT AGENCY,,18/04/2016,57482,1980,0,Egglerigg Waste permit  2016 - 2017,202100,Financial Services Subscriptions
South Lakeland District Council,http://opendatacommunities.org/id/district-council/south-lakeland,30/04/2016,Social Enterprise Admin,Cultural Environmental Regulatory & Planning Services,http://opendatacommunities.org/def/concept/finance/sercop/objective/104,ENVIRONMENT AGENCY,,18/04/2016,57483,1980,0,Ulverston Waste Permit 2016- 2017,202100,Financial Services Subscriptions
South Lakeland District Council,http://opendatacommunities.org/id/district-council/south-lakeland,30/04/2016,Development Implementation,Central Services,http://opendatacommunities.org/def/concept/finance/sercop/objective/102,NPS NORTH WEST LTD,6614601,18/04/2016,57484,38333.37,0,Professional Property Services for,391110,Construction Buildings Construction
South Lakeland District Council,http://opendatacommunities.org/id/district-council/south-lakeland,30/04/2016,Electoral Services,Central Services,http://opendatacommunities.org/def/concept/finance/sercop/objective/102,LAKELAND RADIO LTD,4031744,18/04/2016,57485,276,0,Election Advert Lakelnad Radio starting,182015,Environment Waste Mgt Waste Disposal
South Lakeland District Council,http://opendatacommunities.org/id/district-council/south-lakeland,30/04/2016,Electoral Services,Central Services,http://opendatacommunities.org/def/concept/finance/sercop/objective/102,SCI PRINT LTD,,18/04/2016,57486,2425.55,0,Printing of Poll Cards for PCC etc,191600,Facilities Printing
South Lakeland District Council,http://opendatacommunities.org/id/district-council/south-lakeland,30/04/2016,Electoral Services,Central Services,http://opendatacommunities.org/def/concept/finance/sercop/objective/102,SCI PRINT LTD,,18/04/2016,57486,25286.47,0,Printing of Poll Cards for PCC etc,191600,Facilities Printing
South Lakeland District Council,http://opendatacommunities.org/id/district-council/south-lakeland,30/04/2016,Business Support Community Services,Housing Services,http://opendatacommunities.org/def/concept/finance/sercop/objective/108,ULTRACARE PROPERTY MANAGEMENT LTD,5020554,18/04/2016,57487,1095,0,Repair work and deep clean to 33 lowther,191700,Facilities Property Management
South Lakeland District Council,http://opendatacommunities.org/id/district-council/south-lakeland,30/04/2016,Development Management,Cultural Environmental Regulatory & Planning Services,http://opendatacommunities.org/def/concept/finance/sercop/objective/104,NPS NORTH WEST LTD,6614601,18/04/2016,57488,320,0,VIABILITY AND ASSESMENT APPRAISALS FOR,391110,Construction Buildings Construction
South Lakeland District Council,http://opendatacommunities.org/id/district-council/south-lakeland,30/04/2016,Social Enterprise Admin,Culture and Related Serv,http://opendatacommunities.org/def/concept/finance/sercop/objective/104,NPS NORTH WEST LTD,6614601,18/04/2016,57489,27.92,0,Work to replace the traditional wood,391110,Construction Buildings Construction
South Lakeland District Council,http://opendatacommunities.org/id/district-council/south-lakeland,30/04/2016,Social Enterprise Admin,Culture and Related Serv,http://opendatacommunities.org/def/concept/finance/sercop/objective/104,NPS NORTH WEST LTD,6614601,18/04/2016,57490,3094,0,Structural Engineer including site visit,391110,Construction Buildings Construction
South Lakeland District Council,http://opendatacommunities.org/id/district-council/south-lakeland,30/04/2016,Development Implementation,Central Services,http://opendatacommunities.org/def/concept/finance/sercop/objective/102,NPS NORTH WEST LTD,6614601,18/04/2016,57491,4191.5,0,"Castle Dairy - Further Rescue, Survey &",391110,Construction Buildings Construction
South Lakeland District Council,http://opendatacommunities.org/id/district-council/south-lakeland,30/04/2016,Social Enterprise Admin,Transport,http://opendatacommunities.org/def/concept/finance/sercop/objective/107,NPS NORTH WEST LTD,6614601,18/04/2016,57492,1150,0,The extension for the existing,391110,Construction Buildings Construction
South Lakeland District Council,http://opendatacommunities.org/id/district-council/south-lakeland,30/04/2016,Revenues and Benefits,Central Services,http://opendatacommunities.org/def/concept/finance/sercop/objective/102,TEAM NETSOL LIMITED,3697370,18/04/2016,57493,9143,0,"Becs claims support, maintenance &",151000,Consultancy Business
South Lakeland District Council,http://opendatacommunities.org/id/district-council/south-lakeland,30/04/2016,Lake Wardens,Cultural Environmental Regulatory & Planning Services,http://opendatacommunities.org/def/concept/finance/sercop/objective/104,VODAFONE LTD (PAGING),,18/04/2016,57494,146.61,0,Annual Rental of Lake Wardens Emergency,271800,ICT Telecommunications Mobile
South Lakeland District Council,http://opendatacommunities.org/id/district-council/south-lakeland,30/04/2016,Development Implementation,Planning and Development,,P Casey (Land Reclamation) Ltd,1122137,18/04/2016,57495,97658.2,0,Waterhead Improvement Scheme -,231700,Highways Street Furniture & Ironworks
South Lakeland District Council,http://opendatacommunities.org/id/district-council/south-lakeland,30/04/2016,Development Implementation,Central Services,http://opendatacommunities.org/def/concept/finance/sercop/objective/102,ANTHONY COLLINS SOLICITORS,OC313432,18/04/2016,57496,823,0,Legal Advice,281300,Legal Services Legal Opinion
South Lakeland District Council,http://opendatacommunities.org/id/district-council/south-lakeland,30/04/2016,ICT Group,Central Services,http://opendatacommunities.org/def/concept/finance/sercop/objective/102,System People Ltd,,20/04/2016,57497,558,0,Agency hire ,271100,ICT Consumables
South Lakeland District Council,http://opendatacommunities.org/id/district-council/south-lakeland,30/04/2016,Customer Services,Cultural Environmental Regulatory & Planning Services,http://opendatacommunities.org/def/concept/finance/sercop/objective/104,RIGHT 2 WORK,,20/04/2016,57503,3423,0,bulky waste payments,321010,Social Care Adult Advice & Counselling
South Lakeland District Council,http://opendatacommunities.org/id/district-council/south-lakeland,30/04/2016,Revenues and Benefits,,,Kendal BID Ltd,8986243,18/04/2016,57504,83512.06,0,Collection figures for March 2016,201700,Financial Services Grants
South Lakeland District Council,http://opendatacommunities.org/id/district-council/south-lakeland,30/04/2016,Policy & Partnerships,Cultural Environmental Regulatory & Planning Services,http://opendatacommunities.org/def/concept/finance/sercop/objective/104,MILNTHORPE PARISH COUNCIL,,18/04/2016,57505,10000,0,2016-2017 Funding for public,908000,Public Bodies Council support services
South Lakeland District Council,http://opendatacommunities.org/id/district-council/south-lakeland,30/04/2016,Printing Section,Central Services,http://opendatacommunities.org/def/concept/finance/sercop/objective/102,Konica Minolta Bus Solutions (UK) Ltd,,18/04/2016,57506,3610.29,0,Konica Embedded License,192000,Facilities Reprographics
South Lakeland District Council,http://opendatacommunities.org/id/district-council/south-lakeland,30/04/2016,Electoral Services,Central Services,http://opendatacommunities.org/def/concept/finance/sercop/objective/102,NEWSQUEST MEDIA GROUP LTD,3102566,18/04/2016,57515,307.78,0,Advert in Westmorland Gazette 7 April.,191000,Facilities Advertising
South Lakeland District Council,http://opendatacommunities.org/id/district-council/south-lakeland,30/04/2016,Business Support Community Services,Internal Trading Accounts,,FUMEX LTD,5224923,18/04/2016,57516,98,0,COSHH test,101700,Building Heating & Air Conditioning
South Lakeland District Council,http://opendatacommunities.org/id/district-council/south-lakeland,30/04/2016,Human Resources,Central Services,http://opendatacommunities.org/def/concept/finance/sercop/objective/102,Specsavers Corporate Eyecare,,18/04/2016,57518,170,0,e-vouchers,311400,Healthcare Fees
South Lakeland District Council,http://opendatacommunities.org/id/district-council/south-lakeland,30/04/2016,Business Support Community Services,Internal Trading Accounts,,EK MOTOR FACTORS LTD,838524,18/04/2016,57519,77.65,0,Air filters,381400,Vehicle Mgt Maintenance
South Lakeland District Council,http://opendatacommunities.org/id/district-council/south-lakeland,30/04/2016,Business Support Community Services,Internal Trading Accounts,,A & W COMMERCIALS LTD,2630625,18/04/2016,57520,408.42,0,Hose,381400,Vehicle Mgt Maintenance
South Lakeland District Council,http://opendatacommunities.org/id/district-council/south-lakeland,30/04/2016,Business Support Community Services,Internal Trading Accounts,,Collett Transport Services,2843547,18/04/2016,57521,36.83,0,Damage recharges on DX64 UXZ,361000,Public Transport Fleet Management
South Lakeland District Council,http://opendatacommunities.org/id/district-council/south-lakeland,30/04/2016,Business Support Community Services,Internal Trading Accounts,,Preston Trade Parts Specialists,,18/04/2016,57522,41.34,0,Sensor,381400,Vehicle Mgt Maintenance
South Lakeland District Council,http://opendatacommunities.org/id/district-council/south-lakeland,30/04/2016,Business Support Community Services,Internal Trading Accounts,,CUMBRIA TRUCK CENTRE LTD,4298488,18/04/2016,57523,427.17,0,Socket,381300,Vehicle Mgt Industrial
South Lakeland District Council,http://opendatacommunities.org/id/district-council/south-lakeland,30/04/2016,Business Support Community Services,Internal Trading Accounts,,Harry Park Tyres Ltd,8131208,18/04/2016,57524,790,0,Tyres,381500,Vehicle Mgt Parts
South Lakeland District Council,http://opendatacommunities.org/id/district-council/south-lakeland,30/04/2016,Business Support Community Services,Internal Trading Accounts,,FAUN ZOELLER (UK) LTD,751804,18/04/2016,57525,588.78,0,Modules,381400,Vehicle Mgt Maintenance
South Lakeland District Council,http://opendatacommunities.org/id/district-council/south-lakeland,30/04/2016,Business Support Community Services,Internal Trading Accounts,,JOHNSTON SWEEPERS LTD,199841,18/04/2016,57526,378.45,0,Suction box,181600,Environment Street Cleansing
South Lakeland District Council,http://opendatacommunities.org/id/district-council/south-lakeland,30/04/2016,Business Support Community Services,Internal Trading Accounts,,Harry Park Tyres Ltd,8131208,18/04/2016,57527,12.5,0,Tyres,381500,Vehicle Mgt Parts
South Lakeland District Council,http://opendatacommunities.org/id/district-council/south-lakeland,30/04/2016,Business Support Community Services,Internal Trading Accounts,,STAGECOACH NORTHWEST,,18/04/2016,57528,225,0,Steam cleaning 01/04/16 - 31/03/17,361300,Public Transport Passenger Transport
South Lakeland District Council,http://opendatacommunities.org/id/district-council/south-lakeland,30/04/2016,Business Support Community Services,Internal Trading Accounts,,STAGECOACH NORTHWEST,,18/04/2016,57529,225,0,Steam cleaning 01/04/16 - 31/03/17,361300,Public Transport Passenger Transport
South Lakeland District Council,http://opendatacommunities.org/id/district-council/south-lakeland,30/04/2016,Business Support Community Services,Internal Trading Accounts,,STAGECOACH NORTHWEST,,18/04/2016,57530,225,0,Steam cleaning 01/04/16 - 31/03/17,361300,Public Transport Passenger Transport
South Lakeland District Council,http://opendatacommunities.org/id/district-council/south-lakeland,30/04/2016,Business Support Community Services,Internal Trading Accounts,,STAGECOACH NORTHWEST,,18/04/2016,57531,250,0,Steam cleaning 01/04/16 - 31/03/17,361300,Public Transport Passenger Transport
South Lakeland District Council,http://opendatacommunities.org/id/district-council/south-lakeland,30/04/2016,Business Support Community Services,Internal Trading Accounts,,TAYLOR ENGINEERING & FABRICATIONS LTD,4989359,18/04/2016,57532,74.59,0,Contact,391200,Construction Engineering
South Lakeland District Council,http://opendatacommunities.org/id/district-council/south-lakeland,30/04/2016,Human Resources,Central Services,http://opendatacommunities.org/def/concept/finance/sercop/objective/102,LAKES TRAINING SOLUTIONS LTD,7541345,18/04/2016,57533,500,0,Investigative Interviewing training -,261500,HR Training & Conferences
South Lakeland District Council,http://opendatacommunities.org/id/district-council/south-lakeland,30/04/2016,Business Support Community Services,Internal Trading Accounts,,Harry Park Tyres Ltd,8131208,18/04/2016,57534,20,0,Tyres,381500,Vehicle Mgt Parts
South Lakeland District Council,http://opendatacommunities.org/id/district-council/south-lakeland,30/04/2016,Business Support Community Services,Internal Trading Accounts,,M G D LTD,,18/04/2016,57535,35,0,MOTs 01/04/16 - 31/03/17,381400,Vehicle Mgt Maintenance
South Lakeland District Council,http://opendatacommunities.org/id/district-council/south-lakeland,30/04/2016,Business Support Community Services,Central Services,http://opendatacommunities.org/def/concept/finance/sercop/objective/102,ARCO LIMITED,133804,18/04/2016,57536,43.86,0,Helmets,141100,Clothing Protective
South Lakeland District Council,http://opendatacommunities.org/id/district-council/south-lakeland,30/04/2016,Business Support Community Services,Internal Trading Accounts,,Harry Park Tyres Ltd,8131208,18/04/2016,57537,1874.5,0,Tyres,381500,Vehicle Mgt Parts
South Lakeland District Council,http://opendatacommunities.org/id/district-council/south-lakeland,30/04/2016,Business Support Community Services,Internal Trading Accounts,,Harry Park Tyres Ltd,8131208,18/04/2016,57538,115,0,Tyres,381500,Vehicle Mgt Parts
South Lakeland District Council,http://opendatacommunities.org/id/district-council/south-lakeland,30/04/2016,Business Support Community Services,Internal Trading Accounts,,Harry Park Tyres Ltd,8131208,18/04/2016,57539,160,0,Tyres,381500,Vehicle Mgt Parts
South Lakeland District Council,http://opendatacommunities.org/id/district-council/south-lakeland,30/04/2016,ICT Group,Central Services,http://opendatacommunities.org/def/concept/finance/sercop/objective/102,DAISY COMMUNICATIONS LTD,4145329,18/04/2016,57542,578.23,0,Daisy Line Rental Charges,271700,ICT Telecommunications Fixed
South Lakeland District Council,http://opendatacommunities.org/id/district-council/south-lakeland,30/04/2016,Social Enterprise Admin,Highways & Transport Services,http://opendatacommunities.org/def/concept/finance/sercop/objective/107,G4S SECURE SOLUTIONS (UK) LTD,1046019,18/04/2016,57543,874.84,0,Patrol Services for South Lakeland House,192213,Facilities Security Manned Guarding
South Lakeland District Council,http://opendatacommunities.org/id/district-council/south-lakeland,30/04/2016,Kendal Town Hall,Central Services,http://opendatacommunities.org/def/concept/finance/sercop/objective/102,MOUNTAIN GOAT LTD,2862284,18/04/2016,57545,90,0,Hire of a minibus for The Queen's 90th,291100,Arts & Leisure Services Museums & Art
South Lakeland District Council,http://opendatacommunities.org/id/district-council/south-lakeland,30/04/2016,Policy & Partnerships,Cultural Environmental Regulatory & Planning Services,http://opendatacommunities.org/def/concept/finance/sercop/objective/104,GRANGE OVER SANDS TOWN COUNCIL,,18/04/2016,57546,20000,0,LIPs Grant - Redevelop and upgrade,908000,Public Bodies Council support services
South Lakeland District Council,http://opendatacommunities.org/id/district-council/south-lakeland,30/04/2016,Policy & Partnerships,Cultural Environmental Regulatory & Planning Services,http://opendatacommunities.org/def/concept/finance/sercop/objective/104,GRANGE OVER SANDS TOWN COUNCIL,,18/04/2016,57547,250,0,One year funding extension for Public,908000,Public Bodies Council support services
South Lakeland District Council,http://opendatacommunities.org/id/district-council/south-lakeland,30/04/2016,Policy & Partnerships,Cultural Environmental Regulatory & Planning Services,http://opendatacommunities.org/def/concept/finance/sercop/objective/104,GRANGE OVER SANDS TOWN COUNCIL,,18/04/2016,57547,15000,0,One year funding extension for Public,908000,Public Bodies Council support services
South Lakeland District Council,http://opendatacommunities.org/id/district-council/south-lakeland,30/04/2016,Policy & Partnerships,Cultural Environmental Regulatory & Planning Services,http://opendatacommunities.org/def/concept/finance/sercop/objective/104,GRANGE OVER SANDS TOWN COUNCIL,,18/04/2016,57548,28000,0,16/17 - Grant contribution for the,908000,Public Bodies Council support services
South Lakeland District Council,http://opendatacommunities.org/id/district-council/south-lakeland,30/04/2016,Revenues and Benefits,Central Services,http://opendatacommunities.org/def/concept/finance/sercop/objective/102,BADENOCH & CLARK,1356186,18/04/2016,57549,513.4,0,Revs and Bens May 2015,261300,HR Recruitment & Assessment
South Lakeland District Council,http://opendatacommunities.org/id/district-council/south-lakeland,30/04/2016,Revenues and Benefits,Central Services,http://opendatacommunities.org/def/concept/finance/sercop/objective/102,BADENOCH & CLARK,1356186,18/04/2016,57550,386.72,0,Revs and Bens May 2015,261300,HR Recruitment & Assessment
South Lakeland District Council,http://opendatacommunities.org/id/district-council/south-lakeland,30/04/2016,Revenues and Benefits,Central Services,http://opendatacommunities.org/def/concept/finance/sercop/objective/102,BADENOCH & CLARK,1356186,18/04/2016,57551,506.73,0,Revs and Bens May 2015,261300,HR Recruitment & Assessment
South Lakeland District Council,http://opendatacommunities.org/id/district-council/south-lakeland,30/04/2016,Revenues and Benefits,SLDC as Agent,,ROYAL MAIL GROUP PLC,,18/04/2016,57552,1647.57,0,2016 - 17  Postal Charges a/c 0198123013,301200,Mail Services� Postage
South Lakeland District Council,http://opendatacommunities.org/id/district-council/south-lakeland,30/04/2016,Policy & Partnerships,Cultural Environmental Regulatory & Planning Services,http://opendatacommunities.org/def/concept/finance/sercop/objective/104,KENDAL TOWN COUNCIL,,18/04/2016,57553,9000,0,LIPs Grant - Improvement of footpath,908000,Public Bodies Council support services
South Lakeland District Council,http://opendatacommunities.org/id/district-council/south-lakeland,30/04/2016,Business Support Community Services,Internal Trading Accounts,,STUART CANVAS PRODUCTS,,27/04/2016,57554,162,0,Nets,190000,Facilities & Management Services
South Lakeland District Council,http://opendatacommunities.org/id/district-council/south-lakeland,30/04/2016,Development Implementation,Cultural Environmental Regulatory & Planning Services,http://opendatacommunities.org/def/concept/finance/sercop/objective/104,ADECCO UK LIMITED,593232,20/04/2016,57560,127.88,0,Economic Project Officer -,261400,HR Temporary & Agency Staff
South Lakeland District Council,http://opendatacommunities.org/id/district-council/south-lakeland,30/04/2016,Business Support Community Services,Housing Services,http://opendatacommunities.org/def/concept/finance/sercop/objective/108,GATES TRAVEL SERVICE,,18/04/2016,57561,65.8,0,Train ticket ,261600,HR Travel & Subsistence
South Lakeland District Council,http://opendatacommunities.org/id/district-council/south-lakeland,30/04/2016,Human Resources,Central Services,http://opendatacommunities.org/def/concept/finance/sercop/objective/102,Taylors Solicitors,,20/04/2016,57562,100,0,Settlement Agreement,280000,Legal Services
South Lakeland District Council,http://opendatacommunities.org/id/district-council/south-lakeland,30/04/2016,Development Implementation,Cultural Environmental Regulatory & Planning Services,http://opendatacommunities.org/def/concept/finance/sercop/objective/104,CUMBRIA WASTE RECYCLING LTD,3162439,20/04/2016,57563,130.52,0,"Waste Collection @ 124 Highgate, Kendal",182012,Environment Waste Management Recycling
South Lakeland District Council,http://opendatacommunities.org/id/district-council/south-lakeland,30/04/2016,Environmental Protection,Cultural Environmental Regulatory & Planning Services,http://opendatacommunities.org/def/concept/finance/sercop/objective/104,CUMBRIA WASTE RECYCLING LTD,3162439,18/04/2016,57564,35.75,0,Cemetery Bin waste collection,182012,Environment Waste Management Recycling
South Lakeland District Council,http://opendatacommunities.org/id/district-council/south-lakeland,30/04/2016,Environmental Protection,Cultural Environmental Regulatory & Planning Services,http://opendatacommunities.org/def/concept/finance/sercop/objective/104,CUMBRIA WASTE RECYCLING LTD,3162439,18/04/2016,57565,31,0,Cemetery Bin waste collection,182012,Environment Waste Management Recycling
South Lakeland District Council,http://opendatacommunities.org/id/district-council/south-lakeland,30/04/2016,Social Enterprise Admin,Highways & Transport Services,http://opendatacommunities.org/def/concept/finance/sercop/objective/107,CUMBRIA WASTE RECYCLING LTD,3162439,20/04/2016,57566,49.61,0,Wheelie bin at Westmorland Multi-Storey,182012,Environment Waste Management Recycling
South Lakeland District Council,http://opendatacommunities.org/id/district-council/south-lakeland,30/04/2016,Kendal Town Hall,Cultural Environmental Regulatory & Planning Services,http://opendatacommunities.org/def/concept/finance/sercop/objective/104,CUMBRIA WASTE RECYCLING LTD,3162439,18/04/2016,57567,149.75,0,Weekly collection of the bins at Kendal,182012,Environment Waste Management Recycling
South Lakeland District Council,http://opendatacommunities.org/id/district-council/south-lakeland,30/04/2016,Environmental Protection,Cultural Environmental Regulatory & Planning Services,http://opendatacommunities.org/def/concept/finance/sercop/objective/104,CUMBRIA WASTE RECYCLING LTD,3162439,18/04/2016,57568,99.55,0,Cemetery Bin waste collection,182012,Environment Waste Management Recycling
South Lakeland District Council,http://opendatacommunities.org/id/district-council/south-lakeland,30/04/2016,Coronation Hall,External Trading Accounts,,CUMBRIA WASTE RECYCLING LTD,3162439,20/04/2016,57569,506.01,0,"Emptying of skips from Market Hall,",182012,Environment Waste Management Recycling
South Lakeland District Council,http://opendatacommunities.org/id/district-council/south-lakeland,30/04/2016,Environmental Protection,Cultural Environmental Regulatory & Planning Services,http://opendatacommunities.org/def/concept/finance/sercop/objective/104,CUMBRIA WASTE RECYCLING LTD,3162439,18/04/2016,57570,59.44,0,Cemetery Bin waste collection,182012,Environment Waste Management Recycling
South Lakeland District Council,http://opendatacommunities.org/id/district-council/south-lakeland,30/04/2016,Environmental Protection,Cultural Environmental Regulatory & Planning Services,http://opendatacommunities.org/def/concept/finance/sercop/objective/104,CUMBRIA WASTE RECYCLING LTD,3162439,18/04/2016,57572,68.72,0,Cemetery Bin waste collection,182012,Environment Waste Management Recycling
South Lakeland District Council,http://opendatacommunities.org/id/district-council/south-lakeland,30/04/2016,Environmental Protection,Cultural Environmental Regulatory & Planning Services,http://opendatacommunities.org/def/concept/finance/sercop/objective/104,CUMBRIA WASTE RECYCLING LTD,3162439,18/04/2016,57573,55.62,0,Cemetery Bin waste collection,182012,Environment Waste Management Recycling
South Lakeland District Council,http://opendatacommunities.org/id/district-council/south-lakeland,30/04/2016,Social Enterprise Admin,Central Services,http://opendatacommunities.org/def/concept/finance/sercop/objective/102,CUMBRIA WASTE RECYCLING LTD,3162439,20/04/2016,57574,35.75,0,Langstone House Wheelie bin collection,182012,Environment Waste Management Recycling
South Lakeland District Council,http://opendatacommunities.org/id/district-council/south-lakeland,30/04/2016,Environmental Protection,Cultural Environmental Regulatory & Planning Services,http://opendatacommunities.org/def/concept/finance/sercop/objective/104,CUMBRIA WASTE RECYCLING LTD,3162439,18/04/2016,57575,101.66,0,Cemetery Bin waste collection,182012,Environment Waste Management Recycling
South Lakeland District Council,http://opendatacommunities.org/id/district-council/south-lakeland,30/04/2016,Policy & Partnerships,Cultural Environmental Regulatory & Planning Services,http://opendatacommunities.org/def/concept/finance/sercop/objective/104,GRANTS- MISCELLANEOUS,,18/04/2016,57576,700,0,Contribute to the completion of a,201700,Financial Services Grants
South Lakeland District Council,http://opendatacommunities.org/id/district-council/south-lakeland,30/04/2016,Social Enterprise Admin,Housing,http://opendatacommunities.org/def/concept/finance/sercop/objective/108,GLASDON UK LTD,2160576,25/04/2016,57577,629.56,0,Tidy Bear novelty litter bin.,109999,Building Not Elsewhere Classified
South Lakeland District Council,http://opendatacommunities.org/id/district-council/south-lakeland,30/04/2016,Electoral Services,Central Services,http://opendatacommunities.org/def/concept/finance/sercop/objective/102,LAKELAND RADIO LTD,4031744,18/04/2016,57578,126,0,Election Advert Lakelnad Radio starting,182015,Environment Waste Mgt Waste Disposal
South Lakeland District Council,http://opendatacommunities.org/id/district-council/south-lakeland,30/04/2016,Business Support Community Services,Internal Trading Accounts,,ARCO LIMITED,133804,20/04/2016,57584,54.44,0,Cleaning materials,141100,Clothing Protective
South Lakeland District Council,http://opendatacommunities.org/id/district-council/south-lakeland,30/04/2016,Business Support Community Services,Internal Trading Accounts,,ARCO LIMITED,133804,20/04/2016,57585,89.08,0,Cleaning materials,141100,Clothing Protective
South Lakeland District Council,http://opendatacommunities.org/id/district-council/south-lakeland,30/04/2016,Business Support Community Services,Internal Trading Accounts,,ARCO LIMITED,133804,20/04/2016,57586,42.89,0,Cleaning materials,141100,Clothing Protective
South Lakeland District Council,http://opendatacommunities.org/id/district-council/south-lakeland,30/04/2016,Business Support Community Services,Internal Trading Accounts,,LANCASHIRE DAF,,25/04/2016,57587,995,0,Module,381400,Vehicle Mgt Maintenance
South Lakeland District Council,http://opendatacommunities.org/id/district-council/south-lakeland,30/04/2016,Business Support Community Services,Internal Trading Accounts,,JOHNSTON SWEEPERS LTD,199841,20/04/2016,57588,163.97,0,Cradle,181600,Environment Street Cleansing
South Lakeland District Council,http://opendatacommunities.org/id/district-council/south-lakeland,30/04/2016,Business Support Community Services,Housing Services,http://opendatacommunities.org/def/concept/finance/sercop/objective/108,Landlord,,18/04/2016,57589,890,0,Monthly rent ,250000,Housing
South Lakeland District Council,http://opendatacommunities.org/id/district-council/south-lakeland,30/04/2016,Business Support Community Services,Housing Services,http://opendatacommunities.org/def/concept/finance/sercop/objective/108,Landlord,,18/04/2016,57590,1190,0,Monthly rent ,202000,Financial Services Rents
South Lakeland District Council,http://opendatacommunities.org/id/district-council/south-lakeland,30/04/2016,Business Support Community Services,Housing Services,http://opendatacommunities.org/def/concept/finance/sercop/objective/108,Landlord,8672920,18/04/2016,57591,400,0,Monthly rent ,202000,Financial Services Rents
South Lakeland District Council,http://opendatacommunities.org/id/district-council/south-lakeland,30/04/2016,Business Support Community Services,Housing Services,http://opendatacommunities.org/def/concept/finance/sercop/objective/108,Landlord,,18/04/2016,57592,520,0,Monthly rent ,250010,Housing Letting Agents
South Lakeland District Council,http://opendatacommunities.org/id/district-council/south-lakeland,30/04/2016,Business Support Community Services,Housing Services,http://opendatacommunities.org/def/concept/finance/sercop/objective/108,GATES TRAVEL SERVICE,,18/04/2016,57593,38.9,0,Train ticket from Kendal - Halifax for,261600,HR Travel & Subsistence
South Lakeland District Council,http://opendatacommunities.org/id/district-council/south-lakeland,30/04/2016,Business Support Community Services,Housing Services,http://opendatacommunities.org/def/concept/finance/sercop/objective/108,STATION HOUSE SURGERY,,18/04/2016,57594,25,0,Medical advice ,311600,Healthcare Services
South Lakeland District Council,http://opendatacommunities.org/id/district-council/south-lakeland,30/04/2016,Policy & Partnerships,Cultural Environmental Regulatory & Planning Services,http://opendatacommunities.org/def/concept/finance/sercop/objective/104,PRESTON RICHARD PARISH COUNCIL,,20/04/2016,57595,10000,0,LIPs Grant - Creation of a footpath on,908000,Public Bodies Council support services
South Lakeland District Council,http://opendatacommunities.org/id/district-council/south-lakeland,30/04/2016,Business Support Community Services,Cultural Environmental Regulatory & Planning Services,http://opendatacommunities.org/def/concept/finance/sercop/objective/104,DR ALISTAIR MACKENZIE,,20/04/2016,57596,1200,0,Medical Checks for Taxi Drivers,311600,Healthcare Services
South Lakeland District Council,http://opendatacommunities.org/id/district-council/south-lakeland,30/04/2016,Human Resources,Central Services,http://opendatacommunities.org/def/concept/finance/sercop/objective/102,KENDAL COLLEGE,,20/04/2016,57597,350,0,29.04.15 13:3015:00 E-Forms,908999,Public Bodies Not Elsewhere Classified
South Lakeland District Council,http://opendatacommunities.org/id/district-council/south-lakeland,30/04/2016,Business Support Community Services,Internal Trading Accounts,,TRUCK TRANSMISSIONS LTD,2460094,25/04/2016,57598,2250,0,Differential unit,381500,Vehicle Mgt Parts
South Lakeland District Council,http://opendatacommunities.org/id/district-council/south-lakeland,30/04/2016,Financial Services,Central Services,http://opendatacommunities.org/def/concept/finance/sercop/objective/102,CUMBRIA COUNTY COUNCIL,,20/04/2016,57599,780,0,IAS90 Accounting disclosure pensions,908000,Public Bodies Council support services
South Lakeland District Council,http://opendatacommunities.org/id/district-council/south-lakeland,30/04/2016,Business Support Community Services,Internal Trading Accounts,,BRIAN ARMISTEAD LTD T/A SINKFALL RECYCLI,4133280,25/04/2016,57600,554.32,0,Green waste tipping - 2016/17,391110,Construction Buildings Construction
South Lakeland District Council,http://opendatacommunities.org/id/district-council/south-lakeland,30/04/2016,Business Support Community Services,Internal Trading Accounts,,LANCASHIRE DAF,,25/04/2016,57601,150,0,Module,381400,Vehicle Mgt Maintenance
South Lakeland District Council,http://opendatacommunities.org/id/district-council/south-lakeland,30/04/2016,Business Support Community Services,Internal Trading Accounts,,STAGECOACH NORTHWEST,,20/04/2016,57602,275,0,Steam cleaning 01/04/16 - 31/03/17,361300,Public Transport Passenger Transport
South Lakeland District Council,http://opendatacommunities.org/id/district-council/south-lakeland,30/04/2016,Business Support Community Services,Internal Trading Accounts,,STAGECOACH NORTHWEST,,20/04/2016,57603,300,0,Steam cleaning 01/04/16 - 31/03/17,361300,Public Transport Passenger Transport
South Lakeland District Council,http://opendatacommunities.org/id/district-council/south-lakeland,30/04/2016,Business Support Community Services,Internal Trading Accounts,,STAGECOACH NORTHWEST,,20/04/2016,57604,250,0,Steam cleaning 01/04/16 - 31/03/17,361300,Public Transport Passenger Transport
South Lakeland District Council,http://opendatacommunities.org/id/district-council/south-lakeland,30/04/2016,Business Support Community Services,Internal Trading Accounts,,STAGECOACH NORTHWEST,,20/04/2016,57605,75,0,Steam cleaning 01/04/16 - 31/03/17,361300,Public Transport Passenger Transport
South Lakeland District Council,http://opendatacommunities.org/id/district-council/south-lakeland,30/04/2016,Kendal Town Hall,Central Services,http://opendatacommunities.org/def/concept/finance/sercop/objective/102,BERENDSEN UK LTD,228604,18/04/2016,57606,79.95,0,Monthly rental of anti- slip mats for,161000,Domestic Goods Commercial
South Lakeland District Council,http://opendatacommunities.org/id/district-council/south-lakeland,30/04/2016,Kendal Town Hall,Cultural Environmental Regulatory & Planning Services,http://opendatacommunities.org/def/concept/finance/sercop/objective/104,BERENDSEN UK LTD,228604,18/04/2016,57606,19.67,0,Monthly rental of anti- slip mats for,161000,Domestic Goods Commercial
South Lakeland District Council,http://opendatacommunities.org/id/district-council/south-lakeland,30/04/2016,Business Support Community Services,Internal Trading Accounts,,S J Bargh,532272,20/04/2016,57608,121,0,MOTs 2016/17,381400,Vehicle Mgt Maintenance
South Lakeland District Council,http://opendatacommunities.org/id/district-council/south-lakeland,30/04/2016,Business Support Community Services,Internal Trading Accounts,,DENNIS EAGLE LTD,3794455,20/04/2016,57609,105.75,0,Latch,381300,Vehicle Mgt Industrial
South Lakeland District Council,http://opendatacommunities.org/id/district-council/south-lakeland,30/04/2016,Business Support Community Services,Internal Trading Accounts,,CUMBRIA WASTE MANAGEMENT LIMITED,2665973,20/04/2016,57610,130,0,COTC cover at Ulverston & Ecclerigg,182015,Environment Waste Mgt Waste Disposal
South Lakeland District Council,http://opendatacommunities.org/id/district-council/south-lakeland,30/04/2016,ICT Group,Central Services,http://opendatacommunities.org/def/concept/finance/sercop/objective/102,ITPS Professional Services Ltd (DD),,01/04/2016,57611,913.24,0,Lync Line Rental Charges,271700,ICT Telecommunications Fixed
South Lakeland District Council,http://opendatacommunities.org/id/district-council/south-lakeland,30/04/2016,ICT Group,Central Services,http://opendatacommunities.org/def/concept/finance/sercop/objective/102,ITPS Professional Services Ltd (DD),,01/04/2016,57611,701.65,0,Lync Line Rental Charges,271700,ICT Telecommunications Fixed
South Lakeland District Council,http://opendatacommunities.org/id/district-council/south-lakeland,30/04/2016,Business Support Community Services,Housing Services,http://opendatacommunities.org/def/concept/finance/sercop/objective/108,My Dream Cleaners Ltd,9839482,18/04/2016,57612,442.5,0,Cleaner at Town View Fields,131320,Cleaning & Janitorial Cleaning Service
South Lakeland District Council,http://opendatacommunities.org/id/district-council/south-lakeland,30/04/2016,Coronation Hall,Cultural Environmental Regulatory & Planning Services,http://opendatacommunities.org/def/concept/finance/sercop/objective/104,CATER-KWIK,8782836,25/04/2016,57614,21.99,0,CK0022 Glasswash detergent 4 x 5ltr,391111,Construction Buildings Repair & Mtce
South Lakeland District Council,http://opendatacommunities.org/id/district-council/south-lakeland,30/04/2016,Coronation Hall,Cultural Environmental Regulatory & Planning Services,http://opendatacommunities.org/def/concept/finance/sercop/objective/104,CATER-KWIK,8782836,20/04/2016,57615,17.99,0,CK0022 Glasswash detergent 4 x 5ltr,391111,Construction Buildings Repair & Mtce
South Lakeland District Council,http://opendatacommunities.org/id/district-council/south-lakeland,30/04/2016,Business Support Community Services,Internal Trading Accounts,,Masterstaff Limited,2777593,20/04/2016,57617,2619.73,0,Agency staff - April 2016,261300,HR Recruitment & Assessment
South Lakeland District Council,http://opendatacommunities.org/id/district-council/south-lakeland,30/04/2016,Kendal Town Hall,Transport,http://opendatacommunities.org/def/concept/finance/sercop/objective/107,AJN Refurbishment Services Ltd,8248260,20/04/2016,57618,408,0,Phase 3 (Grange-over-Sands and Kirkby,191700,Facilities Property Management
South Lakeland District Council,http://opendatacommunities.org/id/district-council/south-lakeland,30/04/2016,Business Support Community Services,Internal Trading Accounts,,VOLVO GROUP UK LTD,2190944,20/04/2016,57619,87.5,0,Sensor,381000,Vehicle Mgt Commercial
South Lakeland District Council,http://opendatacommunities.org/id/district-council/south-lakeland,30/04/2016,Business Support Community Services,Internal Trading Accounts,,TAYLOR ENGINEERING & FABRICATIONS LTD,4989359,20/04/2016,57620,570.1,0,Contact,391200,Construction Engineering
South Lakeland District Council,http://opendatacommunities.org/id/district-council/south-lakeland,30/04/2016,Business Support Community Services,Internal Trading Accounts,,VOLVO GROUP UK LTD,2190944,25/04/2016,57622,75,0,Switch,381000,Vehicle Mgt Commercial
South Lakeland District Council,http://opendatacommunities.org/id/district-council/south-lakeland,30/04/2016,Business Support Community Services,Internal Trading Accounts,,DENNIS EAGLE LTD,3794455,20/04/2016,57623,46.51,0,Latch,381300,Vehicle Mgt Industrial
South Lakeland District Council,http://opendatacommunities.org/id/district-council/south-lakeland,30/04/2016,Business Support Community Services,Internal Trading Accounts,,DENNIS EAGLE LTD,3794455,20/04/2016,57624,539.03,0,Latch,381300,Vehicle Mgt Industrial
South Lakeland District Council,http://opendatacommunities.org/id/district-council/south-lakeland,30/04/2016,Human Resources,Central Services,http://opendatacommunities.org/def/concept/finance/sercop/objective/102,UNIVERSITY OF CUMBRIA,,20/04/2016,57627,1950,0,ILM Level 7 Executive Coaching &,192110,Facilities Room Hire
South Lakeland District Council,http://opendatacommunities.org/id/district-council/south-lakeland,30/04/2016,Human Resources,Central Services,http://opendatacommunities.org/def/concept/finance/sercop/objective/102,Specsavers Corporate Eyecare,,27/04/2016,57630,80.62,0,Prescription Safety Glasses,311400,Healthcare Fees
South Lakeland District Council,http://opendatacommunities.org/id/district-council/south-lakeland,30/04/2016,Lake Wardens,Cultural Environmental Regulatory & Planning Services,http://opendatacommunities.org/def/concept/finance/sercop/objective/104,CUMBRIA WASTE RECYCLING LTD,3162439,20/04/2016,57631,135.08,0,Emptying of Refuse Wheelie Bins held at,182012,Environment Waste Management Recycling
South Lakeland District Council,http://opendatacommunities.org/id/district-council/south-lakeland,30/04/2016,Lake Wardens,Cultural Environmental Regulatory & Planning Services,http://opendatacommunities.org/def/concept/finance/sercop/objective/104,CUMBRIA WASTE RECYCLING LTD,3162439,20/04/2016,57632,145.18,0,Emptying of Refuse Wheelie Bins held at,182012,Environment Waste Management Recycling
South Lakeland District Council,http://opendatacommunities.org/id/district-council/south-lakeland,30/04/2016,Business Support Community Services,Internal Trading Accounts,,BPI RECYCLED PRODUCTS,350729,20/04/2016,57635,271,0,"FL0034. Heavy Duty Bin Liner. 27"" x 46""",182013,Environment Waste Mgt Waste Collection
South Lakeland District Council,http://opendatacommunities.org/id/district-council/south-lakeland,30/04/2016,Business Support Community Services,Internal Trading Accounts,,H WICKS (LINDAL) LTD,754590,20/04/2016,57636,300,0,"Gate fees, handling, transport & baling",182012,Environment Waste Management Recycling
South Lakeland District Council,http://opendatacommunities.org/id/district-council/south-lakeland,30/04/2016,Social Enterprise Admin,Highways & Transport Services,http://opendatacommunities.org/def/concept/finance/sercop/objective/107,Masterstaff Limited,2777593,20/04/2016,57637,333,0,Staff for Westmorland Shopping Centre,261300,HR Recruitment & Assessment
South Lakeland District Council,http://opendatacommunities.org/id/district-council/south-lakeland,30/04/2016,Business Support Community Services,Internal Trading Accounts,,COMPASS COMPONENTS,,20/04/2016,57638,106.15,0,Consumables 01/04/16 - 31/03/17,101400,Building General Materials
South Lakeland District Council,http://opendatacommunities.org/id/district-council/south-lakeland,30/04/2016,Business Support Community Services,Internal Trading Accounts,,H WICKS (LINDAL) LTD,754590,20/04/2016,57640,600,0,"Gate fees, handling & baling of",182012,Environment Waste Management Recycling
South Lakeland District Council,http://opendatacommunities.org/id/district-council/south-lakeland,30/04/2016,Business Support Community Services,Internal Trading Accounts,,H WICKS (LINDAL) LTD,754590,20/04/2016,57641,300,0,"Gate fees, handling, transport & baling",182012,Environment Waste Management Recycling
South Lakeland District Council,http://opendatacommunities.org/id/district-council/south-lakeland,30/04/2016,Business Support Community Services,Internal Trading Accounts,,ARCO LIMITED,133804,20/04/2016,57642,226.63,0,Cleaning materials,141100,Clothing Protective
South Lakeland District Council,http://opendatacommunities.org/id/district-council/south-lakeland,30/04/2016,Business Support Community Services,Internal Trading Accounts,,ARCO LIMITED,133804,20/04/2016,57643,175.5,0,Cleaning materials,141100,Clothing Protective
South Lakeland District Council,http://opendatacommunities.org/id/district-council/south-lakeland,30/04/2016,Business Support Community Services,Internal Trading Accounts,,ARCO LIMITED,133804,20/04/2016,57644,76,0,Cleaning materials,141100,Clothing Protective
South Lakeland District Council,http://opendatacommunities.org/id/district-council/south-lakeland,30/04/2016,ICT Group,Central Services,http://opendatacommunities.org/def/concept/finance/sercop/objective/102,Insight Direct (Uk) Ltd,2579852,20/04/2016,57645,51.68,0,25 x Videk Premium - patch cable - 50 cm,271200,ICT Hardware
South Lakeland District Council,http://opendatacommunities.org/id/district-council/south-lakeland,30/04/2016,Lake Wardens,Cultural Environmental Regulatory & Planning Services,http://opendatacommunities.org/def/concept/finance/sercop/objective/104,PHS GROUP PLC,,20/04/2016,57647,9.45,0,Supply of additional 2 Sanitary,131312,Cleaning & Janitorial Washroom Sanitat
South Lakeland District Council,http://opendatacommunities.org/id/district-council/south-lakeland,30/04/2016,Financial Services,Central Services,http://opendatacommunities.org/def/concept/finance/sercop/objective/102,Municipal Mutual Insurance Ltd,76678,20/04/2016,57648,199.5,0,Balderstone own solicitors cost ,201800,Financial Services Insurance
South Lakeland District Council,http://opendatacommunities.org/id/district-council/south-lakeland,30/04/2016,Printing Section,Central Services,http://opendatacommunities.org/def/concept/finance/sercop/objective/102,ROSEFOX PAPER LIMITED,1655083,20/04/2016,57649,51.18,0,SRA3 Target 100gsm,341000,Stationery Paper
South Lakeland District Council,http://opendatacommunities.org/id/district-council/south-lakeland,30/04/2016,Financial Services,Non-Service Payments,,Municipal Mutual Insurance Ltd,76678,20/04/2016,57650,26563,0,Levy due to 31st March 2016@25% Inv.,201800,Financial Services Insurance
South Lakeland District Council,http://opendatacommunities.org/id/district-council/south-lakeland,30/04/2016,Business Support Community Services,Housing Services,http://opendatacommunities.org/def/concept/finance/sercop/objective/108,G B BURROW & SON,,20/04/2016,57651,774,0,Removal and packing of furniture and,192300,Facilities Storage
South Lakeland District Council,http://opendatacommunities.org/id/district-council/south-lakeland,30/04/2016,Business Support Community Services,Housing Services,http://opendatacommunities.org/def/concept/finance/sercop/objective/108,G B BURROW & SON,,20/04/2016,57652,304,0,Removal of goods from 6 White Moss Court,192300,Facilities Storage
South Lakeland District Council,http://opendatacommunities.org/id/district-council/south-lakeland,30/04/2016,Social Enterprise Admin,Central Services,http://opendatacommunities.org/def/concept/finance/sercop/objective/102,CUMBRIA WASTE RECYCLING LTD,3162439,20/04/2016,57653,270.48,0,SLH wheelie bin and skip emptying,182012,Environment Waste Management Recycling
South Lakeland District Council,http://opendatacommunities.org/id/district-council/south-lakeland,30/04/2016,Social Enterprise Admin,Highways & Transport Services,http://opendatacommunities.org/def/concept/finance/sercop/objective/107,CONTINENTAL LANDSCAPES LTD,2108452,20/04/2016,57654,12,0,Ground maitemance contract 2015 - 2016,391310,Construction Open Spaces Construction
South Lakeland District Council,http://opendatacommunities.org/id/district-council/south-lakeland,30/04/2016,Social Enterprise Admin,Highways & Transport Services,http://opendatacommunities.org/def/concept/finance/sercop/objective/107,CONTINENTAL LANDSCAPES LTD,2108452,20/04/2016,57654,12,0,Ground maitemance contract 2015 - 2016,391310,Construction Open Spaces Construction
South Lakeland District Council,http://opendatacommunities.org/id/district-council/south-lakeland,30/04/2016,Social Enterprise Admin,Highways & Transport Services,http://opendatacommunities.org/def/concept/finance/sercop/objective/107,CONTINENTAL LANDSCAPES LTD,2108452,20/04/2016,57654,1.2,0,Ground maitemance contract 2015 - 2016,391310,Construction Open Spaces Construction
South Lakeland District Council,http://opendatacommunities.org/id/district-council/south-lakeland,30/04/2016,Social Enterprise Admin,Highways & Transport Services,http://opendatacommunities.org/def/concept/finance/sercop/objective/107,CONTINENTAL LANDSCAPES LTD,2108452,20/04/2016,57654,12,0,Ground maitemance contract 2015 - 2016,391310,Construction Open Spaces Construction
South Lakeland District Council,http://opendatacommunities.org/id/district-council/south-lakeland,30/04/2016,Social Enterprise Admin,Highways & Transport Services,http://opendatacommunities.org/def/concept/finance/sercop/objective/107,CONTINENTAL LANDSCAPES LTD,2108452,20/04/2016,57654,12,0,Ground maitemance contract 2015 - 2016,391310,Construction Open Spaces Construction
South Lakeland District Council,http://opendatacommunities.org/id/district-council/south-lakeland,30/04/2016,Social Enterprise Admin,Highways & Transport Services,http://opendatacommunities.org/def/concept/finance/sercop/objective/107,CONTINENTAL LANDSCAPES LTD,2108452,20/04/2016,57654,12,0,Ground maitemance contract 2015 - 2016,391310,Construction Open Spaces Construction
South Lakeland District Council,http://opendatacommunities.org/id/district-council/south-lakeland,30/04/2016,Social Enterprise Admin,Highways & Transport Services,http://opendatacommunities.org/def/concept/finance/sercop/objective/107,CONTINENTAL LANDSCAPES LTD,2108452,20/04/2016,57654,35.99,0,Ground maitemance contract 2015 - 2016,391310,Construction Open Spaces Construction
South Lakeland District Council,http://opendatacommunities.org/id/district-council/south-lakeland,30/04/2016,Social Enterprise Admin,Highways & Transport Services,http://opendatacommunities.org/def/concept/finance/sercop/objective/107,CONTINENTAL LANDSCAPES LTD,2108452,20/04/2016,57654,239.94,0,Ground maitemance contract 2015 - 2016,391310,Construction Open Spaces Construction
South Lakeland District Council,http://opendatacommunities.org/id/district-council/south-lakeland,30/04/2016,Social Enterprise Admin,Highways & Transport Services,http://opendatacommunities.org/def/concept/finance/sercop/objective/107,CONTINENTAL LANDSCAPES LTD,2108452,20/04/2016,57654,149.96,0,Ground maitemance contract 2015 - 2016,391310,Construction Open Spaces Construction
South Lakeland District Council,http://opendatacommunities.org/id/district-council/south-lakeland,30/04/2016,Social Enterprise Admin,Highways & Transport Services,http://opendatacommunities.org/def/concept/finance/sercop/objective/107,CONTINENTAL LANDSCAPES LTD,2108452,20/04/2016,57654,6,0,Ground maitemance contract 2015 - 2016,391310,Construction Open Spaces Construction
South Lakeland District Council,http://opendatacommunities.org/id/district-council/south-lakeland,30/04/2016,Social Enterprise Admin,Highways & Transport Services,http://opendatacommunities.org/def/concept/finance/sercop/objective/107,CONTINENTAL LANDSCAPES LTD,2108452,20/04/2016,57654,59.98,0,Ground maitemance contract 2015 - 2016,391310,Construction Open Spaces Construction
South Lakeland District Council,http://opendatacommunities.org/id/district-council/south-lakeland,30/04/2016,Social Enterprise Admin,Highways & Transport Services,http://opendatacommunities.org/def/concept/finance/sercop/objective/107,CONTINENTAL LANDSCAPES LTD,2108452,20/04/2016,57654,59.98,0,Ground maitemance contract 2015 - 2016,391310,Construction Open Spaces Construction
South Lakeland District Council,http://opendatacommunities.org/id/district-council/south-lakeland,30/04/2016,Social Enterprise Admin,Highways & Transport Services,http://opendatacommunities.org/def/concept/finance/sercop/objective/107,CONTINENTAL LANDSCAPES LTD,2108452,20/04/2016,57654,119.97,0,Ground maitemance contract 2015 - 2016,391310,Construction Open Spaces Construction
South Lakeland District Council,http://opendatacommunities.org/id/district-council/south-lakeland,30/04/2016,Social Enterprise Admin,Highways & Transport Services,http://opendatacommunities.org/def/concept/finance/sercop/objective/107,CONTINENTAL LANDSCAPES LTD,2108452,20/04/2016,57654,47.99,0,Ground maitemance contract 2015 - 2016,391310,Construction Open Spaces Construction
South Lakeland District Council,http://opendatacommunities.org/id/district-council/south-lakeland,30/04/2016,Social Enterprise Admin,Highways & Transport Services,http://opendatacommunities.org/def/concept/finance/sercop/objective/107,CONTINENTAL LANDSCAPES LTD,2108452,20/04/2016,57654,6,0,Ground maitemance contract 2015 - 2016,391310,Construction Open Spaces Construction
South Lakeland District Council,http://opendatacommunities.org/id/district-council/south-lakeland,30/04/2016,Social Enterprise Admin,Highways & Transport Services,http://opendatacommunities.org/def/concept/finance/sercop/objective/107,CONTINENTAL LANDSCAPES LTD,2108452,20/04/2016,57654,6,0,Ground maitemance contract 2015 - 2016,391310,Construction Open Spaces Construction
South Lakeland District Council,http://opendatacommunities.org/id/district-council/south-lakeland,30/04/2016,Social Enterprise Admin,Highways & Transport Services,http://opendatacommunities.org/def/concept/finance/sercop/objective/107,CONTINENTAL LANDSCAPES LTD,2108452,20/04/2016,57654,3,0,Ground maitemance contract 2015 - 2016,391310,Construction Open Spaces Construction
South Lakeland District Council,http://opendatacommunities.org/id/district-council/south-lakeland,30/04/2016,Social Enterprise Admin,Highways & Transport Services,http://opendatacommunities.org/def/concept/finance/sercop/objective/107,CONTINENTAL LANDSCAPES LTD,2108452,20/04/2016,57654,59.98,0,Ground maitemance contract 2015 - 2016,391310,Construction Open Spaces Construction
South Lakeland District Council,http://opendatacommunities.org/id/district-council/south-lakeland,30/04/2016,Social Enterprise Admin,Highways & Transport Services,http://opendatacommunities.org/def/concept/finance/sercop/objective/107,CONTINENTAL LANDSCAPES LTD,2108452,20/04/2016,57654,53.99,0,Ground maitemance contract 2015 - 2016,391310,Construction Open Spaces Construction
South Lakeland District Council,http://opendatacommunities.org/id/district-council/south-lakeland,30/04/2016,Social Enterprise Admin,Highways & Transport Services,http://opendatacommunities.org/def/concept/finance/sercop/objective/107,CONTINENTAL LANDSCAPES LTD,2108452,20/04/2016,57654,65.98,0,Ground maitemance contract 2015 - 2016,391310,Construction Open Spaces Construction
South Lakeland District Council,http://opendatacommunities.org/id/district-council/south-lakeland,30/04/2016,Social Enterprise Admin,Highways & Transport Services,http://opendatacommunities.org/def/concept/finance/sercop/objective/107,CONTINENTAL LANDSCAPES LTD,2108452,20/04/2016,57654,125.97,0,Ground maitemance contract 2015 - 2016,391310,Construction Open Spaces Construction
South Lakeland District Council,http://opendatacommunities.org/id/district-council/south-lakeland,30/04/2016,Social Enterprise Admin,Highways & Transport Services,http://opendatacommunities.org/def/concept/finance/sercop/objective/107,CONTINENTAL LANDSCAPES LTD,2108452,20/04/2016,57654,119.97,0,Ground maitemance contract 2015 - 2016,391310,Construction Open Spaces Construction
South Lakeland District Council,http://opendatacommunities.org/id/district-council/south-lakeland,30/04/2016,Social Enterprise Admin,Highways & Transport Services,http://opendatacommunities.org/def/concept/finance/sercop/objective/107,CONTINENTAL LANDSCAPES LTD,2108452,20/04/2016,57654,12,0,Ground maitemance contract 2015 - 2016,391310,Construction Open Spaces Construction
South Lakeland District Council,http://opendatacommunities.org/id/district-council/south-lakeland,30/04/2016,Social Enterprise Admin,Highways & Transport Services,http://opendatacommunities.org/def/concept/finance/sercop/objective/107,CONTINENTAL LANDSCAPES LTD,2108452,20/04/2016,57654,12,0,Ground maitemance contract 2015 - 2016,391310,Construction Open Spaces Construction
South Lakeland District Council,http://opendatacommunities.org/id/district-council/south-lakeland,30/04/2016,Social Enterprise Admin,Highways & Transport Services,http://opendatacommunities.org/def/concept/finance/sercop/objective/107,CONTINENTAL LANDSCAPES LTD,2108452,20/04/2016,57654,36.05,0,Ground maitemance contract 2015 - 2016,391310,Construction Open Spaces Construction
South Lakeland District Council,http://opendatacommunities.org/id/district-council/south-lakeland,30/04/2016,Social Enterprise Admin,Highways & Transport Services,http://opendatacommunities.org/def/concept/finance/sercop/objective/107,CONTINENTAL LANDSCAPES LTD,2108452,20/04/2016,57654,59.98,0,Ground maitemance contract 2015 - 2016,391310,Construction Open Spaces Construction
South Lakeland District Council,http://opendatacommunities.org/id/district-council/south-lakeland,30/04/2016,Social Enterprise Admin,Highways & Transport Services,http://opendatacommunities.org/def/concept/finance/sercop/objective/107,CONTINENTAL LANDSCAPES LTD,2108452,20/04/2016,57654,106.71,0,Ground maitemance contract 2015 - 2016,391310,Construction Open Spaces Construction
South Lakeland District Council,http://opendatacommunities.org/id/district-council/south-lakeland,30/04/2016,Social Enterprise Admin,Highways & Transport Services,http://opendatacommunities.org/def/concept/finance/sercop/objective/107,CONTINENTAL LANDSCAPES LTD,2108452,20/04/2016,57654,119.97,0,Ground maitemance contract 2015 - 2016,391310,Construction Open Spaces Construction
South Lakeland District Council,http://opendatacommunities.org/id/district-council/south-lakeland,30/04/2016,Social Enterprise Admin,Highways & Transport Services,http://opendatacommunities.org/def/concept/finance/sercop/objective/107,CONTINENTAL LANDSCAPES LTD,2108452,20/04/2016,57654,221.94,0,Ground maitemance contract 2015 - 2016,391310,Construction Open Spaces Construction
South Lakeland District Council,http://opendatacommunities.org/id/district-council/south-lakeland,30/04/2016,Social Enterprise Admin,Highways & Transport Services,http://opendatacommunities.org/def/concept/finance/sercop/objective/107,CONTINENTAL LANDSCAPES LTD,2108452,20/04/2016,57654,119.97,0,Ground maitemance contract 2015 - 2016,391310,Construction Open Spaces Construction
South Lakeland District Council,http://opendatacommunities.org/id/district-council/south-lakeland,30/04/2016,Social Enterprise Admin,Highways & Transport Services,http://opendatacommunities.org/def/concept/finance/sercop/objective/107,CONTINENTAL LANDSCAPES LTD,2108452,20/04/2016,57654,179.95,0,Ground maitemance contract 2015 - 2016,391310,Construction Open Spaces Construction
South Lakeland District Council,http://opendatacommunities.org/id/district-council/south-lakeland,30/04/2016,Social Enterprise Admin,Cultural Environmental Regulatory & Planning Services,http://opendatacommunities.org/def/concept/finance/sercop/objective/104,CONTINENTAL LANDSCAPES LTD,2108452,20/04/2016,57654,9597.41,0,Ground maitemance contract 2015 - 2016,391310,Construction Open Spaces Construction
South Lakeland District Council,http://opendatacommunities.org/id/district-council/south-lakeland,30/04/2016,Social Enterprise Admin,Cultural Environmental Regulatory & Planning Services,http://opendatacommunities.org/def/concept/finance/sercop/objective/104,CONTINENTAL LANDSCAPES LTD,2108452,20/04/2016,57654,1388.96,0,Ground maitemance contract 2015 - 2016,391310,Construction Open Spaces Construction
South Lakeland District Council,http://opendatacommunities.org/id/district-council/south-lakeland,30/04/2016,Social Enterprise Admin,Cultural Environmental Regulatory & Planning Services,http://opendatacommunities.org/def/concept/finance/sercop/objective/104,CONTINENTAL LANDSCAPES LTD,2108452,20/04/2016,57654,23.99,0,Ground maitemance contract 2015 - 2016,391310,Construction Open Spaces Construction
South Lakeland District Council,http://opendatacommunities.org/id/district-council/south-lakeland,30/04/2016,Social Enterprise Admin,Cultural Environmental Regulatory & Planning Services,http://opendatacommunities.org/def/concept/finance/sercop/objective/104,CONTINENTAL LANDSCAPES LTD,2108452,20/04/2016,57654,44527.71,0,Ground maitemance contract 2015 - 2016,391310,Construction Open Spaces Construction
South Lakeland District Council,http://opendatacommunities.org/id/district-council/south-lakeland,30/04/2016,Social Enterprise Admin,Cultural Environmental Regulatory & Planning Services,http://opendatacommunities.org/def/concept/finance/sercop/objective/104,CONTINENTAL LANDSCAPES LTD,2108452,20/04/2016,57654,359.9,0,Ground maitemance contract 2015 - 2016,391310,Construction Open Spaces Construction
South Lakeland District Council,http://opendatacommunities.org/id/district-council/south-lakeland,30/04/2016,Social Enterprise Admin,Cultural Environmental Regulatory & Planning Services,http://opendatacommunities.org/def/concept/finance/sercop/objective/104,CONTINENTAL LANDSCAPES LTD,2108452,20/04/2016,57654,2279.38,0,Ground maitemance contract 2015 - 2016,391310,Construction Open Spaces Construction
South Lakeland District Council,http://opendatacommunities.org/id/district-council/south-lakeland,30/04/2016,Social Enterprise Admin,External Trading Accounts,,CONTINENTAL LANDSCAPES LTD,2108452,20/04/2016,57654,104.97,0,Ground maitemance contract 2015 - 2016,391310,Construction Open Spaces Construction
South Lakeland District Council,http://opendatacommunities.org/id/district-council/south-lakeland,30/04/2016,Social Enterprise Admin,Cultural Environmental Regulatory & Planning Services,http://opendatacommunities.org/def/concept/finance/sercop/objective/104,CONTINENTAL LANDSCAPES LTD,2108452,20/04/2016,57655,1000,0,Wildflower plugs to be planted at Kendal,391310,Construction Open Spaces Construction
South Lakeland District Council,http://opendatacommunities.org/id/district-council/south-lakeland,30/04/2016,Social Enterprise Admin,Highways & Transport Services,http://opendatacommunities.org/def/concept/finance/sercop/objective/107,GATES TRAVEL SERVICE,,20/04/2016,57657,101.7,0,Cost of rail journey from Oxenholme to,261600,HR Travel & Subsistence
South Lakeland District Council,http://opendatacommunities.org/id/district-council/south-lakeland,30/04/2016,Social Enterprise Admin,Highways & Transport Services,http://opendatacommunities.org/def/concept/finance/sercop/objective/107,GATES TRAVEL SERVICE,,20/04/2016,57658,34,0,Train travel to attend Seminar at,261600,HR Travel & Subsistence
South Lakeland District Council,http://opendatacommunities.org/id/district-council/south-lakeland,30/04/2016,Business Support Community Services,Internal Trading Accounts,,FREIGHT TRANSPORT ASSOCIATION,,20/04/2016,57660,963,0,Membership fee 2016/17,361100,Public Transport Haulage
South Lakeland District Council,http://opendatacommunities.org/id/district-council/south-lakeland,30/04/2016,Business Support Community Services,Internal Trading Accounts,,HAKO MACHINES LIMITED,1414225,20/04/2016,57661,216.5,0,Ram,131000,Cleaning & Janitorial Cleaning Materials
South Lakeland District Council,http://opendatacommunities.org/id/district-council/south-lakeland,30/04/2016,Business Support Community Services,Internal Trading Accounts,,CUMBRIA WASTE RECYCLING LTD,3162439,20/04/2016,57662,216,0,Skip emptying at Ecclerigg & Ulverston,182012,Environment Waste Management Recycling
South Lakeland District Council,http://opendatacommunities.org/id/district-council/south-lakeland,30/04/2016,Business Support Community Services,Internal Trading Accounts,,CUMBRIA WASTE RECYCLING LTD,3162439,25/04/2016,57663,1131.06,0,Skip emptying at Ecclerigg & Ulverston,182012,Environment Waste Management Recycling
South Lakeland District Council,http://opendatacommunities.org/id/district-council/south-lakeland,30/04/2016,Business Support Community Services,Internal Trading Accounts,,M G D LTD,,20/04/2016,57664,35,0,MOTs 01/04/16 - 31/03/17,381400,Vehicle Mgt Maintenance
South Lakeland District Council,http://opendatacommunities.org/id/district-council/south-lakeland,30/04/2016,Business Support Community Services,Internal Trading Accounts,,Driver Hire Lancaster,7762440,20/04/2016,57665,570,0,Agency driver - March / April 2016,380000,Vehicle Management
South Lakeland District Council,http://opendatacommunities.org/id/district-council/south-lakeland,30/04/2016,Business Support Community Services,Internal Trading Accounts,,HAKO MACHINES LIMITED,1414225,20/04/2016,57666,67.32,0,Ram,131000,Cleaning & Janitorial Cleaning Materials
South Lakeland District Council,http://opendatacommunities.org/id/district-council/south-lakeland,30/04/2016,Business Support Community Services,Internal Trading Accounts,,Preston Trade Parts Specialists,,20/04/2016,57667,32.59,0,Indicator,381400,Vehicle Mgt Maintenance
South Lakeland District Council,http://opendatacommunities.org/id/district-council/south-lakeland,30/04/2016,Legal Services,Central Services,http://opendatacommunities.org/def/concept/finance/sercop/objective/102,WEIGHTMANS LLP,OC326117,20/04/2016,57669,835.5,0,Fees re: Bankruptcy Proceedings ,281300,Legal Services Legal Opinion
South Lakeland District Council,http://opendatacommunities.org/id/district-council/south-lakeland,30/04/2016,Technical Team,Central Services,http://opendatacommunities.org/def/concept/finance/sercop/objective/102,CUMBRIA COUNTY COUNCIL,,20/04/2016,57670,4487,0,MARCH 2016 SEARCH ENQUIRIES,908000,Public Bodies Council support services
South Lakeland District Council,http://opendatacommunities.org/id/district-council/south-lakeland,30/04/2016,Social Enterprise Admin,Central Services,http://opendatacommunities.org/def/concept/finance/sercop/objective/102,CUMBRIA COUNTY COUNCIL,,20/04/2016,57671,4547.3,0,LAND SEARCH CHARGE SEARCH ENQUIRIES CCC,908000,Public Bodies Council support services
South Lakeland District Council,http://opendatacommunities.org/id/district-council/south-lakeland,30/04/2016,Social Enterprise Admin,Cultural Environmental Regulatory & Planning Services,http://opendatacommunities.org/def/concept/finance/sercop/objective/104,FURNESS NEWSPAPERS LTD,1155841,27/04/2016,57672,129.5,0,PUBLIC NOTICES FOR PLANNING 1 APRIL 2015,191000,Facilities Advertising
South Lakeland District Council,http://opendatacommunities.org/id/district-council/south-lakeland,30/04/2016,Business Support Community Services,Housing Services,http://opendatacommunities.org/def/concept/finance/sercop/objective/108,Landlord,7803122,20/04/2016,57674,500,0,Monthly rent ,250000,Housing
South Lakeland District Council,http://opendatacommunities.org/id/district-council/south-lakeland,30/04/2016,Business Support Community Services,Housing Services,http://opendatacommunities.org/def/concept/finance/sercop/objective/108,Landlord,,20/04/2016,57675,500,0,Monthly rent ,202000,Financial Services Rents
South Lakeland District Council,http://opendatacommunities.org/id/district-council/south-lakeland,30/04/2016,Business Support Community Services,Housing Services,http://opendatacommunities.org/def/concept/finance/sercop/objective/108,Landlord,,20/04/2016,57676,625,0,Monthly rent ,250000,Housing
South Lakeland District Council,http://opendatacommunities.org/id/district-council/south-lakeland,30/04/2016,Business Support Community Services,Housing Services,http://opendatacommunities.org/def/concept/finance/sercop/objective/108,Landlord,,20/04/2016,57677,520,0,Monthly rent ,202000,Financial Services Rents
South Lakeland District Council,http://opendatacommunities.org/id/district-council/south-lakeland,30/04/2016,Business Support Community Services,Housing Services,http://opendatacommunities.org/def/concept/finance/sercop/objective/108,KENDAL HOSTEL,,20/04/2016,57678,144,0,Accommodation ,261000,HR Accommodation
South Lakeland District Council,http://opendatacommunities.org/id/district-council/south-lakeland,30/04/2016,Business Support Community Services,Housing Services,http://opendatacommunities.org/def/concept/finance/sercop/objective/108,KENDAL HOSTEL,,20/04/2016,57679,1260,0,Accommodation at Kendal Hostel ,261000,HR Accommodation
South Lakeland District Council,http://opendatacommunities.org/id/district-council/south-lakeland,30/04/2016,Legal Services,Central Services,http://opendatacommunities.org/def/concept/finance/sercop/objective/102,Freeths LLP,,20/04/2016,57680,67.5,0,Fees relating to various matters-,280000,Legal Services
South Lakeland District Council,http://opendatacommunities.org/id/district-council/south-lakeland,30/04/2016,Legal Services,Central Services,http://opendatacommunities.org/def/concept/finance/sercop/objective/102,Freeths LLP,,20/04/2016,57681,60,0,Fees relating to various matters-,280000,Legal Services
South Lakeland District Council,http://opendatacommunities.org/id/district-council/south-lakeland,30/04/2016,Legal Services,Central Services,http://opendatacommunities.org/def/concept/finance/sercop/objective/102,Freeths LLP,,20/04/2016,57682,52.5,0,Fees relating to various matters-,280000,Legal Services
South Lakeland District Council,http://opendatacommunities.org/id/district-council/south-lakeland,30/04/2016,Legal Services,Central Services,http://opendatacommunities.org/def/concept/finance/sercop/objective/102,Freeths LLP,,20/04/2016,57683,210,0,Fees relating to various matters-,280000,Legal Services
South Lakeland District Council,http://opendatacommunities.org/id/district-council/south-lakeland,30/04/2016,Legal Services,Central Services,http://opendatacommunities.org/def/concept/finance/sercop/objective/102,Freeths LLP,,20/04/2016,57684,90,0,Fees relating to various matters-,280000,Legal Services
South Lakeland District Council,http://opendatacommunities.org/id/district-council/south-lakeland,30/04/2016,Legal Services,Central Services,http://opendatacommunities.org/def/concept/finance/sercop/objective/102,Napthens Solicitors,OC325775,20/04/2016,57685,770,0,Fees re:  Grant Agreement Cumbria CC and,280000,Legal Services
South Lakeland District Council,http://opendatacommunities.org/id/district-council/south-lakeland,30/04/2016,Environment and Housing,Housing,http://opendatacommunities.org/def/concept/finance/sercop/objective/108,Mr & Mrs RW Hogben (Property Account),,20/04/2016,57686,58012.5,0,Affordable Housing Grant in respect of,250000,Housing
South Lakeland District Council,http://opendatacommunities.org/id/district-council/south-lakeland,30/04/2016,Environment and Housing,Housing,http://opendatacommunities.org/def/concept/finance/sercop/objective/108,ENVIRONMENT & HOUSING GRANTS,,20/04/2016,57691,913.86,0,"Lyth, Kendal,",201700,Financial Services Grants
South Lakeland District Council,http://opendatacommunities.org/id/district-council/south-lakeland,30/04/2016,Development Implementation,Cultural Environmental Regulatory & Planning Services,http://opendatacommunities.org/def/concept/finance/sercop/objective/104,KENDAL COLLEGE,,20/04/2016,57692,52231,0,Management Fee for Kendal Museum,908999,Public Bodies Not Elsewhere Classified
South Lakeland District Council,http://opendatacommunities.org/id/district-council/south-lakeland,30/04/2016,Development Implementation,Cultural Environmental Regulatory & Planning Services,http://opendatacommunities.org/def/concept/finance/sercop/objective/104,Frazer PA Services,,25/04/2016,57693,133.18,0,Reception Duties at 124 Highgate,150000,Consultancy
South Lakeland District Council,http://opendatacommunities.org/id/district-council/south-lakeland,30/04/2016,Development Implementation,Cultural Environmental Regulatory & Planning Services,http://opendatacommunities.org/def/concept/finance/sercop/objective/104,Frazer PA Services,,25/04/2016,57693,66.82,0,Reception Duties at 124 Highgate,150000,Consultancy
South Lakeland District Council,http://opendatacommunities.org/id/district-council/south-lakeland,30/04/2016,Revenues and Benefits,Central Services,http://opendatacommunities.org/def/concept/finance/sercop/objective/102,BADENOCH & CLARK,1356186,20/04/2016,57694,426.72,0,Revs and Bens  (April & May 2016),261300,HR Recruitment & Assessment
South Lakeland District Council,http://opendatacommunities.org/id/district-council/south-lakeland,30/04/2016,Business Support Community Services,Housing Services,http://opendatacommunities.org/def/concept/finance/sercop/objective/108,James Andrews Recruitment Solutions,6834852,25/04/2016,57695,800,0,Payment for  - Housing,261400,HR Temporary & Agency Staff
South Lakeland District Council,http://opendatacommunities.org/id/district-council/south-lakeland,30/04/2016,Financial Services,Non-Service Payments,,CYCLESCHEME LTD,5363678,20/04/2016,57696,749.17,0,Cyclescheme W314567,389999,Vehicle Mgt Not Else Class
South Lakeland District Council,http://opendatacommunities.org/id/district-council/south-lakeland,30/04/2016,Business Support Community Services,Internal Trading Accounts,,HAKO MACHINES LIMITED,1414225,25/04/2016,57697,17.92,0,Hose,131000,Cleaning & Janitorial Cleaning Materials
South Lakeland District Council,http://opendatacommunities.org/id/district-council/south-lakeland,30/04/2016,Electoral Services,Central Services,http://opendatacommunities.org/def/concept/finance/sercop/objective/102,THOMSON REUTERS (PROFESSIONAL) UK LTD,1679046,27/04/2016,57698,187,0,Schofields Election Law Issue 28.,202100,Financial Services Subscriptions
South Lakeland District Council,http://opendatacommunities.org/id/district-council/south-lakeland,30/04/2016,Development Implementation,Central Services,http://opendatacommunities.org/def/concept/finance/sercop/objective/102,NPS NORTH WEST LTD,6614601,20/04/2016,57700,1500,0,"Feasibility, Design & Budget Costings",391110,Construction Buildings Construction
South Lakeland District Council,http://opendatacommunities.org/id/district-council/south-lakeland,30/04/2016,Business Support Community Services,Internal Trading Accounts,,Preston Trade Parts Specialists,,20/04/2016,57701,32.59,0,Lens,381400,Vehicle Mgt Maintenance
South Lakeland District Council,http://opendatacommunities.org/id/district-council/south-lakeland,30/04/2016,Business Support Community Services,Internal Trading Accounts,,EK MOTOR FACTORS LTD,838524,20/04/2016,57702,47.52,0,Headlight transporter (30443),381400,Vehicle Mgt Maintenance
South Lakeland District Council,http://opendatacommunities.org/id/district-council/south-lakeland,30/04/2016,Business Support Community Services,Internal Trading Accounts,,RIBBLESDALE AUTO ELECTRICS 1992 LTD,2732686,20/04/2016,57703,348.14,0,Lenses,381500,Vehicle Mgt Parts
South Lakeland District Council,http://opendatacommunities.org/id/district-council/south-lakeland,30/04/2016,Business Support Community Services,Internal Trading Accounts,,EK MOTOR FACTORS LTD,838524,25/04/2016,57704,34.01,0,Headlight transporter (30443),381400,Vehicle Mgt Maintenance
South Lakeland District Council,http://opendatacommunities.org/id/district-council/south-lakeland,30/04/2016,Business Support Community Services,Internal Trading Accounts,,HYDRAIR TRUCK & TRAILER PARTS LTD,,25/04/2016,57705,96.41,0,Brake,381500,Vehicle Mgt Parts
South Lakeland District Council,http://opendatacommunities.org/id/district-council/south-lakeland,30/04/2016,Business Support Community Services,Internal Trading Accounts,,RIBBLESDALE AUTO ELECTRICS 1992 LTD,2732686,25/04/2016,57706,21.98,0,Lenses,381500,Vehicle Mgt Parts
South Lakeland District Council,http://opendatacommunities.org/id/district-council/south-lakeland,30/04/2016,Business Support Community Services,Internal Trading Accounts,,EK MOTOR FACTORS LTD,838524,25/04/2016,57707,36.85,0,Headlight transporter (30443),381400,Vehicle Mgt Maintenance
South Lakeland District Council,http://opendatacommunities.org/id/district-council/south-lakeland,30/04/2016,Business Support Community Services,Internal Trading Accounts,,EK MOTOR FACTORS LTD,838524,25/04/2016,57708,32.28,0,Headlight transporter (30443),381400,Vehicle Mgt Maintenance
South Lakeland District Council,http://opendatacommunities.org/id/district-council/south-lakeland,30/04/2016,Business Support Community Services,Internal Trading Accounts,,HYDRAIR TRUCK & TRAILER PARTS LTD,,25/04/2016,57709,348.36,0,Brake,381500,Vehicle Mgt Parts
South Lakeland District Council,http://opendatacommunities.org/id/district-council/south-lakeland,30/04/2016,Business Support Community Services,Internal Trading Accounts,,K S INTERNATIONAL LTD,2703321,25/04/2016,57710,37,0,Fuel filters,381500,Vehicle Mgt Parts
South Lakeland District Council,http://opendatacommunities.org/id/district-council/south-lakeland,30/04/2016,Business Support Community Services,Internal Trading Accounts,,HYDRAIR TRUCK & TRAILER PARTS LTD,,25/04/2016,57711,29.64,0,Brake,381500,Vehicle Mgt Parts
South Lakeland District Council,http://opendatacommunities.org/id/district-council/south-lakeland,30/04/2016,Business Support Community Services,Internal Trading Accounts,,RIBBLESDALE AUTO ELECTRICS 1992 LTD,2732686,25/04/2016,57712,150,0,Lenses,381500,Vehicle Mgt Parts
South Lakeland District Council,http://opendatacommunities.org/id/district-council/south-lakeland,30/04/2016,Business Support Community Services,Internal Trading Accounts,,K S INTERNATIONAL LTD,2703321,25/04/2016,57713,160,0,Fuel filters,381500,Vehicle Mgt Parts
South Lakeland District Council,http://opendatacommunities.org/id/district-council/south-lakeland,30/04/2016,Business Support Community Services,Internal Trading Accounts,,K S INTERNATIONAL LTD,2703321,25/04/2016,57714,90,0,Fuel filters,381500,Vehicle Mgt Parts
South Lakeland District Council,http://opendatacommunities.org/id/district-council/south-lakeland,30/04/2016,Business Support Community Services,Central Services,http://opendatacommunities.org/def/concept/finance/sercop/objective/102,ARCO LIMITED,133804,25/04/2016,57715,147.41,0,Uvex spectacles,141100,Clothing Protective
South Lakeland District Council,http://opendatacommunities.org/id/district-council/south-lakeland,30/04/2016,Business Support Community Services,Internal Trading Accounts,,K S INTERNATIONAL LTD,2703321,25/04/2016,57716,37,0,Fuel filters,381500,Vehicle Mgt Parts
South Lakeland District Council,http://opendatacommunities.org/id/district-council/south-lakeland,30/04/2016,Business Support Community Services,Internal Trading Accounts,,Harry Park Tyres Ltd,8131208,25/04/2016,57717,25,0,Tyres,381500,Vehicle Mgt Parts
South Lakeland District Council,http://opendatacommunities.org/id/district-council/south-lakeland,30/04/2016,Business Support Community Services,Transport Planning Policy,http://opendatacommunities.org/def/concept/finance/sercop/objective/107,ARCO LIMITED,133804,25/04/2016,57718,3.78,0,Cleaning materials,141100,Clothing Protective
South Lakeland District Council,http://opendatacommunities.org/id/district-council/south-lakeland,30/04/2016,Business Support Community Services,Internal Trading Accounts,,ARCO LIMITED,133804,25/04/2016,57718,11.98,0,Cleaning materials,141100,Clothing Protective
South Lakeland District Council,http://opendatacommunities.org/id/district-council/south-lakeland,30/04/2016,Development Implementation,Cultural Environmental Regulatory & Planning Services,http://opendatacommunities.org/def/concept/finance/sercop/objective/104,Les Selby (Alba Associates),,25/04/2016,57719,200,0,Wired Event @ Mintworks - Thursday 17th,111200,Catering Food & Beverages
South Lakeland District Council,http://opendatacommunities.org/id/district-council/south-lakeland,30/04/2016,Development Implementation,Central Services,http://opendatacommunities.org/def/concept/finance/sercop/objective/102,Drain Doctor Plumbing & Drainage,,25/04/2016,57720,480,0,"Castle Dairy, Kendal - Drain Survey",201400,Financial Services C Tax & Bus Rates
South Lakeland District Council,http://opendatacommunities.org/id/district-council/south-lakeland,30/04/2016,Development Implementation,Cultural Environmental Regulatory & Planning Services,http://opendatacommunities.org/def/concept/finance/sercop/objective/104,Lingwood Security Management Ltd,4170839,27/04/2016,57721,35,0,"Security Services for Mintworks, 124",192210,Facilities Security Access Control
South Lakeland District Council,http://opendatacommunities.org/id/district-council/south-lakeland,30/04/2016,Policy & Partnerships,Central Services,http://opendatacommunities.org/def/concept/finance/sercop/objective/102,LOCAL GOVERNMENT ASSOCIATION,,25/04/2016,57722,495,0,Confrence fees for LGA Annual Confrence,202100,Financial Services Subscriptions
South Lakeland District Council,http://opendatacommunities.org/id/district-council/south-lakeland,30/04/2016,Policy & Partnerships,Central Services,http://opendatacommunities.org/def/concept/finance/sercop/objective/102,LOCAL GOVERNMENT ASSOCIATION,,25/04/2016,57722,495,0,Confrence fees for LGA Annual Confrence,202100,Financial Services Subscriptions
South Lakeland District Council,http://opendatacommunities.org/id/district-council/south-lakeland,30/04/2016,Revenues and Benefits,Central Services,http://opendatacommunities.org/def/concept/finance/sercop/objective/102,CAPITA BUSINESS SERVICES LTD,2299747,25/04/2016,57725,1045,0,Quotation AMT06541v2,261500,HR Training & Conferences
South Lakeland District Council,http://opendatacommunities.org/id/district-council/south-lakeland,30/04/2016,Revenues and Benefits,Central Services,http://opendatacommunities.org/def/concept/finance/sercop/objective/102,HER MAJESTY'S COURTS & TRIBUNAL SERVICE,,25/04/2016,57726,174,0,2016 - 2017 Council Tax Liability Orders,908001,Public Bodies Other Public Bodies
South Lakeland District Council,http://opendatacommunities.org/id/district-council/south-lakeland,30/04/2016,Revenues and Benefits,Central Services,http://opendatacommunities.org/def/concept/finance/sercop/objective/102,HER MAJESTY'S COURTS & TRIBUNAL SERVICE,,25/04/2016,57726,1647,0,2016 - 2017 Council Tax Liability Orders,908001,Public Bodies Other Public Bodies
South Lakeland District Council,http://opendatacommunities.org/id/district-council/south-lakeland,30/04/2016,Revenues and Benefits,Central Services,http://opendatacommunities.org/def/concept/finance/sercop/objective/102,MERITEC LTD,3224622,25/04/2016,57727,139.5,0,2016 - 2017  RAB Processing Contract and,391200,Construction Engineering
South Lakeland District Council,http://opendatacommunities.org/id/district-council/south-lakeland,30/04/2016,Revenues and Benefits,Central Services,http://opendatacommunities.org/def/concept/finance/sercop/objective/102,JACOBS,,25/04/2016,57730,150,0,2016-2017 Vat only,152200,Consultancy Technical & Feasibility
South Lakeland District Council,http://opendatacommunities.org/id/district-council/south-lakeland,30/04/2016,Revenues and Benefits,Central Services,http://opendatacommunities.org/def/concept/finance/sercop/objective/102,LOOMIS UK LTD,3200432,25/04/2016,57731,105.52,0,Langstone House Surcharge 2016 - 2017,192200,Facilities Security
South Lakeland District Council,http://opendatacommunities.org/id/district-council/south-lakeland,30/04/2016,Revenues and Benefits,Highways & Transport Services,http://opendatacommunities.org/def/concept/finance/sercop/objective/107,LOOMIS UK LTD,3200432,25/04/2016,57731,951.26,0,Langstone House Surcharge 2016 - 2017,192200,Facilities Security
South Lakeland District Council,http://opendatacommunities.org/id/district-council/south-lakeland,30/04/2016,Kendal Town Hall,Cultural Environmental Regulatory & Planning Services,http://opendatacommunities.org/def/concept/finance/sercop/objective/104,NPS NORTH WEST LTD,6614601,25/04/2016,57732,345.49,0,Design work associated with Windermere,391110,Construction Buildings Construction
South Lakeland District Council,http://opendatacommunities.org/id/district-council/south-lakeland,30/04/2016,Business Support Community Services,Internal Trading Accounts,,EK MOTOR FACTORS LTD,838524,25/04/2016,57733,-3.64,0,Headlight transporter (30443),381400,Vehicle Mgt Maintenance
South Lakeland District Council,http://opendatacommunities.org/id/district-council/south-lakeland,30/04/2016,Development Strategy,Transport Planning Policy,http://opendatacommunities.org/def/concept/finance/sercop/objective/107,KENDAL TOWN COUNCIL,,25/04/2016,57738,43.42,0,CIL - Neighbourhood Funding Portion from,908000,Public Bodies Council support services
South Lakeland District Council,http://opendatacommunities.org/id/district-council/south-lakeland,30/04/2016,Development Implementation,Cultural Environmental Regulatory & Planning Services,http://opendatacommunities.org/def/concept/finance/sercop/objective/104,KBS Business Consultancy,,25/04/2016,57740,725,0,Continuation of Business Support,150000,Consultancy
South Lakeland District Council,http://opendatacommunities.org/id/district-council/south-lakeland,30/04/2016,Business Support Community Services,Transport Planning Policy,http://opendatacommunities.org/def/concept/finance/sercop/objective/107,ARCO LIMITED,133804,25/04/2016,57741,45.36,0,Cleaning materials,141100,Clothing Protective
South Lakeland District Council,http://opendatacommunities.org/id/district-council/south-lakeland,30/04/2016,Business Support Community Services,Internal Trading Accounts,,ARCO LIMITED,133804,25/04/2016,57741,584.13,0,Cleaning materials,141100,Clothing Protective
South Lakeland District Council,http://opendatacommunities.org/id/district-council/south-lakeland,30/04/2016,Social Enterprise Admin,Highways & Transport Services,http://opendatacommunities.org/def/concept/finance/sercop/objective/107,PATROL,,25/04/2016,57745,661.95,0,Charges for Traffic Penalty Tribunal,192214,Facilities Security Street Wardens
South Lakeland District Council,http://opendatacommunities.org/id/district-council/south-lakeland,30/04/2016,Revenues and Benefits,SLDC as Agent,,ROYAL MAIL GROUP PLC,,25/04/2016,57746,1909,0,2016 - 17  Postal Charges a/c 0198123013,301200,Mail Services� Postage
South Lakeland District Council,http://opendatacommunities.org/id/district-council/south-lakeland,30/04/2016,Revenues and Benefits,Central Services,http://opendatacommunities.org/def/concept/finance/sercop/objective/102,ROYAL MAIL GROUP PLC,,25/04/2016,57747,117.13,0,2016 - 2017  Postal Charges a/c,301200,Mail Services� Postage
South Lakeland District Council,http://opendatacommunities.org/id/district-council/south-lakeland,30/04/2016,Coronation Hall,Cultural Environmental Regulatory & Planning Services,http://opendatacommunities.org/def/concept/finance/sercop/objective/104,The Sun Inn,,25/04/2016,57749,154,0,Two SIA trained staff for 5.5 hours @,192200,Facilities Security
South Lakeland District Council,http://opendatacommunities.org/id/district-council/south-lakeland,30/04/2016,Business Support Community Services,Housing Services,http://opendatacommunities.org/def/concept/finance/sercop/objective/108,KENDAL SECURITY CENTRE LTD,3179893,25/04/2016,57751,6.25,0,"Key cut for Flat, The Court Yard,",192212,Facilities Security Equipment
South Lakeland District Council,http://opendatacommunities.org/id/district-council/south-lakeland,30/04/2016,Business Support Community Services,Internal Trading Accounts,,CUMBRIA TRUCK CENTRE LTD,4298488,27/04/2016,57752,566.51,0,Repair gearbox,381300,Vehicle Mgt Industrial
South Lakeland District Council,http://opendatacommunities.org/id/district-council/south-lakeland,30/04/2016,Business Support Community Services,Internal Trading Accounts,,BRIAN ARMISTEAD LTD T/A SINKFALL RECYCLI,4133280,27/04/2016,57754,1320.61,0,Green waste tipping - 2016/17,391110,Construction Buildings Construction
South Lakeland District Council,http://opendatacommunities.org/id/district-council/south-lakeland,30/04/2016,Business Support Community Services,Internal Trading Accounts,,ARCO LIMITED,133804,27/04/2016,57755,19.5,0,Cleaning materials,141100,Clothing Protective
South Lakeland District Council,http://opendatacommunities.org/id/district-council/south-lakeland,30/04/2016,Printing Section,Central Services,http://opendatacommunities.org/def/concept/finance/sercop/objective/102,GANDLAKE TECHNOLOGY LTD,,25/04/2016,57756,2231.52,0,Gandlake Rental License per quarter,271440,ICT Software
South Lakeland District Council,http://opendatacommunities.org/id/district-council/south-lakeland,30/04/2016,Business Support Community Services,Cultural Environmental Regulatory & Planning Services,http://opendatacommunities.org/def/concept/finance/sercop/objective/104,GLASDON UK LTD,2160576,25/04/2016,57757,-332.24,0,Glasdon Jubilee Litter Bins,109999,Building Not Elsewhere Classified
South Lakeland District Council,http://opendatacommunities.org/id/district-council/south-lakeland,30/04/2016,Coronation Hall,Cultural Environmental Regulatory & Planning Services,http://opendatacommunities.org/def/concept/finance/sercop/objective/104,SHORROCK TRICHEM,4179799,25/04/2016,57761,139.56,0,Green C-fold hand towels (3600) code,131312,Cleaning & Janitorial Washroom Sanitat
South Lakeland District Council,http://opendatacommunities.org/id/district-council/south-lakeland,30/04/2016,Business Support Community Services,Cultural Environmental Regulatory & Planning Services,http://opendatacommunities.org/def/concept/finance/sercop/objective/104,RICARDO-AEA,8229264,25/04/2016,57762,1255,0,EMAQ - 6 Seminar Places,159999,Consultancy Not Elsewhere Classified
South Lakeland District Council,http://opendatacommunities.org/id/district-council/south-lakeland,30/04/2016,Kendal Town Hall,Cultural Environmental Regulatory & Planning Services,http://opendatacommunities.org/def/concept/finance/sercop/objective/104,UNDERHILL SERVICES LIMITED,6442130,25/04/2016,57765,65,0,Spot clean the carpet in the Georgian,131310,Cleaning & Janitorial Cleaning Service
South Lakeland District Council,http://opendatacommunities.org/id/district-council/south-lakeland,30/04/2016,Social Enterprise Admin,Cultural Environmental Regulatory & Planning Services,http://opendatacommunities.org/def/concept/finance/sercop/objective/104,Cleartrack (EvL) Ltd,3881690,25/04/2016,57766,300,0,"Removal of Beech with Ganoderma, by",199999,Facilities Not Elsewhere Classified
South Lakeland District Council,http://opendatacommunities.org/id/district-council/south-lakeland,30/04/2016,Social Enterprise Admin,Cultural Environmental Regulatory & Planning Services,http://opendatacommunities.org/def/concept/finance/sercop/objective/104,CONTINENTAL LANDSCAPES LTD,2108452,25/04/2016,57767,424,0,"Prunus avium - standard form tree, x 2",391310,Construction Open Spaces Construction
South Lakeland District Council,http://opendatacommunities.org/id/district-council/south-lakeland,30/04/2016,Social Enterprise Admin,Housing,http://opendatacommunities.org/def/concept/finance/sercop/objective/108,KOMPAN Scotland Ltd,SC127228,25/04/2016,57768,33188.19,0,To supply and install playground at,331000,Sports Playground Equipment
South Lakeland District Council,http://opendatacommunities.org/id/district-council/south-lakeland,30/04/2016,Business Support Community Services,Cultural Environmental Regulatory & Planning Services,http://opendatacommunities.org/def/concept/finance/sercop/objective/104,LAVAHOUSE ASSOCIATES LTD,5147789,25/04/2016,57770,6.99,0,"Licence for ""Go Easy"" Domain Name - 1",202100,Financial Services Subscriptions
South Lakeland District Council,http://opendatacommunities.org/id/district-council/south-lakeland,30/04/2016,ICT Group,Central Services,http://opendatacommunities.org/def/concept/finance/sercop/objective/102,System People Ltd,,25/04/2016,57771,666,0,Agency hire ,271100,ICT Consumables
South Lakeland District Council,http://opendatacommunities.org/id/district-council/south-lakeland,30/04/2016,Development Implementation,Cultural Environmental Regulatory & Planning Services,http://opendatacommunities.org/def/concept/finance/sercop/objective/104,Lingwood Security Management Ltd,4170839,25/04/2016,57772,260,0,"Security Services for Mintworks, 124",192210,Facilities Security Access Control
South Lakeland District Council,http://opendatacommunities.org/id/district-council/south-lakeland,30/04/2016,Development Implementation,SLDC as Agent,,DHE ASSOCIATES,,25/04/2016,57773,2300,0,Admin Work for Japan Forum 1st April,202100,Financial Services Subscriptions
South Lakeland District Council,http://opendatacommunities.org/id/district-council/south-lakeland,30/04/2016,Financial Services,Central Services,http://opendatacommunities.org/def/concept/finance/sercop/objective/102,Creditsafe Business Solutions Ltd,3836192,25/04/2016,57774,420,0,Creditsafe for the period 14 April 2016,209999,Financial Services Not Elsewhere Classif
South Lakeland District Council,http://opendatacommunities.org/id/district-council/south-lakeland,30/04/2016,Business Support Community Services,Cultural Environmental Regulatory & Planning Services,http://opendatacommunities.org/def/concept/finance/sercop/objective/104,PIER 1 METALWORKS LTD,4291520,25/04/2016,57775,225,0,Repair recycling banks 2016/17,391200,Construction Engineering
South Lakeland District Council,http://opendatacommunities.org/id/district-council/south-lakeland,30/04/2016,Business Support Community Services,Internal Trading Accounts,,M G D LTD,,25/04/2016,57776,35,0,MOTs 01/04/16 - 31/03/17,381400,Vehicle Mgt Maintenance
South Lakeland District Council,http://opendatacommunities.org/id/district-council/south-lakeland,30/04/2016,Business Support Community Services,Internal Trading Accounts,,RIBBLESDALE AUTO ELECTRICS 1992 LTD,2732686,25/04/2016,57777,63.4,0,Lenses,381500,Vehicle Mgt Parts
South Lakeland District Council,http://opendatacommunities.org/id/district-council/south-lakeland,30/04/2016,Business Support Community Services,Cultural Environmental Regulatory & Planning Services,http://opendatacommunities.org/def/concept/finance/sercop/objective/104,CUMBRIA WASTE RECYCLING LTD,3162439,25/04/2016,57778,12017.3,0,Empty recycling banks in 2015/16,182012,Environment Waste Management Recycling
South Lakeland District Council,http://opendatacommunities.org/id/district-council/south-lakeland,30/04/2016,Business Support Community Services,Internal Trading Accounts,,RIBBLE FUEL OILS,,25/04/2016,57779,1032.02,0,Gas oil - Ulverston,381100,Vehicle Mgt Fuel
South Lakeland District Council,http://opendatacommunities.org/id/district-council/south-lakeland,30/04/2016,Business Support Community Services,Internal Trading Accounts,,ARCO LIMITED,133804,25/04/2016,57780,56.9,0,Cleaning materials,141100,Clothing Protective
South Lakeland District Council,http://opendatacommunities.org/id/district-council/south-lakeland,30/04/2016,Business Support Community Services,Internal Trading Accounts,,HAKO MACHINES LIMITED,1414225,25/04/2016,57781,46.06,0,Ram,131000,Cleaning & Janitorial Cleaning Materials
South Lakeland District Council,http://opendatacommunities.org/id/district-council/south-lakeland,30/04/2016,Business Support Community Services,Internal Trading Accounts,,HYDRAIR TRUCK & TRAILER PARTS LTD,,25/04/2016,57782,348.36,0,Brake,381500,Vehicle Mgt Parts
South Lakeland District Council,http://opendatacommunities.org/id/district-council/south-lakeland,30/04/2016,Business Support Community Services,Internal Trading Accounts,,LAKELAND TRUCKS LTD,2464423,25/04/2016,57783,291.12,0,Repair AdBlue fault,381400,Vehicle Mgt Maintenance
South Lakeland District Council,http://opendatacommunities.org/id/district-council/south-lakeland,30/04/2016,Business Support Community Services,Internal Trading Accounts,,PYE MOTORS LIMITED,204727,25/04/2016,57784,3.98,0,Bolt,381400,Vehicle Mgt Maintenance
South Lakeland District Council,http://opendatacommunities.org/id/district-council/south-lakeland,30/04/2016,Business Support Community Services,Internal Trading Accounts,,S J Bargh,532272,25/04/2016,57785,121,0,MOTs 2016/17,381400,Vehicle Mgt Maintenance
South Lakeland District Council,http://opendatacommunities.org/id/district-council/south-lakeland,30/04/2016,Business Support Community Services,Internal Trading Accounts,,CUMBRIA COUNTY COUNCIL,,25/04/2016,57786,16571.03,0,"Tipping & disposal charges, recyclables",908000,Public Bodies Council support services
South Lakeland District Council,http://opendatacommunities.org/id/district-council/south-lakeland,30/04/2016,Development Management,Cultural Environmental Regulatory & Planning Services,http://opendatacommunities.org/def/concept/finance/sercop/objective/104,Ronnie Haddow Chimney Services,,25/04/2016,57795,100,0,Checking Stoves in connection with Part,131310,Cleaning & Janitorial Cleaning Service
South Lakeland District Council,http://opendatacommunities.org/id/district-council/south-lakeland,30/04/2016,ICT Group,Central Services,http://opendatacommunities.org/def/concept/finance/sercop/objective/102,IT PROFESSIONAL SERVICES (ITPS),,27/04/2016,57796,325,0,Renewal of Wildcard Certificate,279999,ICT Not Elsewhere Classified
South Lakeland District Council,http://opendatacommunities.org/id/district-council/south-lakeland,30/04/2016,Social Enterprise Admin,Cultural Environmental Regulatory & Planning Services,http://opendatacommunities.org/def/concept/finance/sercop/objective/104,INST OF CEMETERY & CREMATORIUM MANGMT,,25/04/2016,57797,90,0,Annual membership for 2016/17,202100,Financial Services Subscriptions
South Lakeland District Council,http://opendatacommunities.org/id/district-council/south-lakeland,30/04/2016,Environmental Protection,Cultural Environmental Regulatory & Planning Services,http://opendatacommunities.org/def/concept/finance/sercop/objective/104,COOPER ENGRAVING,,25/04/2016,57798,35,0,1 off solid brass seat plaque as copy,102400,Building Signage
South Lakeland District Council,http://opendatacommunities.org/id/district-council/south-lakeland,30/04/2016,Business Support Community Services,Internal Trading Accounts,,ARCO LIMITED,133804,27/04/2016,57799,16.93,0,Cleaning materials,141100,Clothing Protective
South Lakeland District Council,http://opendatacommunities.org/id/district-council/south-lakeland,30/04/2016,Environment and Housing,Housing Services,http://opendatacommunities.org/def/concept/finance/sercop/objective/108,GATES TRAVEL SERVICE,,25/04/2016,57800,101.7,0,Train ticket to London - Ferret training,261600,HR Travel & Subsistence
South Lakeland District Council,http://opendatacommunities.org/id/district-council/south-lakeland,30/04/2016,Business Support Community Services,Cultural Environmental Regulatory & Planning Services,http://opendatacommunities.org/def/concept/finance/sercop/objective/104,GLASDON UK LTD,2160576,27/04/2016,57801,1818.36,0,"Futuro litter bin, black with metal",109999,Building Not Elsewhere Classified
South Lakeland District Council,http://opendatacommunities.org/id/district-council/south-lakeland,30/04/2016,Policy & Partnerships,Cultural Environmental Regulatory & Planning Services,http://opendatacommunities.org/def/concept/finance/sercop/objective/104,BOWNESS THEATRE FESTIVAL LTD,4168289,25/04/2016,57894,1750,0,Arts & Events funding 2015-2017 (Year1),291300,Arts & Leisure Services Performing Arts
South Lakeland District Council,http://opendatacommunities.org/id/district-council/south-lakeland,30/04/2016,Development Implementation,Cultural Environmental Regulatory & Planning Services,http://opendatacommunities.org/def/concept/finance/sercop/objective/104,ADECCO UK LIMITED,593232,27/04/2016,57901,630.85,0,Economic Project Officer - ,261400,HR Temporary & Agency Staff
South Lakeland District Council,http://opendatacommunities.org/id/district-council/south-lakeland,30/04/2016,Coronation Hall,Cultural Environmental Regulatory & Planning Services,http://opendatacommunities.org/def/concept/finance/sercop/objective/104,Acrobat Marketing Solutions,7332318,25/04/2016,57905,2253,0,Brochure Mailing.  A5 x 12 pages (self,191000,Facilities Advertising
South Lakeland District Council,http://opendatacommunities.org/id/district-council/south-lakeland,30/04/2016,Legal Services,Cultural Environmental Regulatory & Planning Services,http://opendatacommunities.org/def/concept/finance/sercop/objective/104,ANTHONY COLLINS SOLICITORS,OC313432,25/04/2016,57912,1500,0,Costs re:  Proposed Community Transfer,281300,Legal Services Legal Opinion
South Lakeland District Council,http://opendatacommunities.org/id/district-council/south-lakeland,30/04/2016,Kendal Town Hall,Central Services,http://opendatacommunities.org/def/concept/finance/sercop/objective/102,LTT VENDING GROUP LTD,3021756,27/04/2016,57915,597.21,0,3 x Rich Roast for the Vending machines,111400,Catering Vending Machines & Dispensers
South Lakeland District Council,http://opendatacommunities.org/id/district-council/south-lakeland,30/04/2016,Kendal Town Hall,Central Services,http://opendatacommunities.org/def/concept/finance/sercop/objective/102,RIVERBANK HOSPITALITY CATERING,,27/04/2016,57924,150,0,Buffet for the Queen's 90th Birthday,111000,Catering Banquet & Catering
South Lakeland District Council,http://opendatacommunities.org/id/district-council/south-lakeland,30/04/2016,Environment and Housing,Housing Services,http://opendatacommunities.org/def/concept/finance/sercop/objective/108,NORTHERN HOUSING CONSORTIUM LTD,4361009,27/04/2016,57927,885,0,Subscription for 16/17,250000,Housing
South Lakeland District Council,http://opendatacommunities.org/id/district-council/south-lakeland,30/04/2016,Development Strategy,Cultural Environmental Regulatory & Planning Services,http://opendatacommunities.org/def/concept/finance/sercop/objective/104,WOOLERTON DODWELL ASSOCIATES,3025266,27/04/2016,57928,4600,0,Landscape assessment of allocated sites:,180000,Environmental Services
South Lakeland District Council,http://opendatacommunities.org/id/district-council/south-lakeland,30/04/2016,Coronation Hall,Cultural Environmental Regulatory & Planning Services,http://opendatacommunities.org/def/concept/finance/sercop/objective/104,FURNESS PLASTICS LTD,966727,27/04/2016,57933,190,0,Banner for Frank Bruno on 26 August 2016,101400,Building General Materials
South Lakeland District Council,http://opendatacommunities.org/id/district-council/south-lakeland,30/04/2016,Human Resources,Central Services,http://opendatacommunities.org/def/concept/finance/sercop/objective/102,GBS Corporate Training,6452080,27/04/2016,57937,995,0,18 April 2016 Effective customer service,261500,HR Training & Conferences
South Lakeland District Council,http://opendatacommunities.org/id/district-council/south-lakeland,30/04/2016,Human Resources,Central Services,http://opendatacommunities.org/def/concept/finance/sercop/objective/102,KENTDALE FIRST AID TRAINING,,27/04/2016,57938,360,0,19/07/2016 Requalification for,261500,HR Training & Conferences
South Lakeland District Council,http://opendatacommunities.org/id/district-council/south-lakeland,30/04/2016,Human Resources,Highways & Transport Services,http://opendatacommunities.org/def/concept/finance/sercop/objective/107,KENTDALE FIRST AID TRAINING,,27/04/2016,57939,90,0,19/07/2016 Requalification for,261500,HR Training & Conferences
South Lakeland District Council,http://opendatacommunities.org/id/district-council/south-lakeland,30/04/2016,Kendal Town Hall,External Trading Accounts,,NUMATIC INTERNATIONAL LIMITED,773331,27/04/2016,57940,26.21,0,1 - TTB 1840 replacement blade set for,131011,Cleaning & Janitorial Cleaning Materials
South Lakeland District Council,http://opendatacommunities.org/id/district-council/south-lakeland,30/04/2016,Financial Services,Central Services,http://opendatacommunities.org/def/concept/finance/sercop/objective/102,Capita Secure Information Solutions Ltd,1593831,27/04/2016,57941,12977.28,0,Purchase Ordering software maintenance,271600,ICT Software Customised & Bespoke
South Lakeland District Council,http://opendatacommunities.org/id/district-council/south-lakeland,30/04/2016,Human Resources,Central Services,http://opendatacommunities.org/def/concept/finance/sercop/objective/102,IOSH SERVICES LTD,1816826,27/04/2016,57942,350,0,Course notification ref: tbc,221100,Health & Safety� Maintenance
South Lakeland District Council,http://opendatacommunities.org/id/district-council/south-lakeland,30/04/2016,Social Enterprise Admin,Highways & Transport Services,http://opendatacommunities.org/def/concept/finance/sercop/objective/107,LIBERTY SERVICES,2920033,27/04/2016,57943,215,0,5 x 1000 PCN Bags - S2466,191600,Facilities Printing
South Lakeland District Council,http://opendatacommunities.org/id/district-council/south-lakeland,30/04/2016,ICT Group,Central Services,http://opendatacommunities.org/def/concept/finance/sercop/objective/102,SYMANTEC.CLOUD,,27/04/2016,57945,2310,0,Renewal for Sync email protect cloud per,271600,ICT Software Customised & Bespoke
South Lakeland District Council,http://opendatacommunities.org/id/district-council/south-lakeland,30/04/2016,Business Support Community Services,Central Services,http://opendatacommunities.org/def/concept/finance/sercop/objective/102,Romaquip Ltd,,27/04/2016,57946,129265,0,Kerbsort Recycling Collection Vehicle,381000,Vehicle Mgt Commercial
South Lakeland District Council,http://opendatacommunities.org/id/district-council/south-lakeland,30/04/2016,Business Support Community Services,Central Services,http://opendatacommunities.org/def/concept/finance/sercop/objective/102,Romaquip Ltd,,27/04/2016,57947,129265,0,Kerbsort Recycling Collection Vehicle,381000,Vehicle Mgt Commercial
South Lakeland District Council,http://opendatacommunities.org/id/district-council/south-lakeland,30/04/2016,Business Support Community Services,Central Services,http://opendatacommunities.org/def/concept/finance/sercop/objective/102,Romaquip Ltd,,27/04/2016,57948,129265,0,Kerbsort Recycling Collection Vehicle,381000,Vehicle Mgt Commercial
South Lakeland District Council,http://opendatacommunities.org/id/district-council/south-lakeland,30/04/2016,Business Support Community Services,Internal Trading Accounts,,FAUN ZOELLER (UK) LTD,751804,27/04/2016,57950,290.95,0,Valve,381400,Vehicle Mgt Maintenance
South Lakeland District Council,http://opendatacommunities.org/id/district-council/south-lakeland,30/04/2016,Business Support Community Services,Internal Trading Accounts,,FAUN ZOELLER (UK) LTD,751804,27/04/2016,57951,231.5,0,Core,381400,Vehicle Mgt Maintenance
South Lakeland District Council,http://opendatacommunities.org/id/district-council/south-lakeland,30/04/2016,Business Support Community Services,Internal Trading Accounts,,FAUN ZOELLER (UK) LTD,751804,27/04/2016,57952,599,0,Mobile controller,381400,Vehicle Mgt Maintenance
South Lakeland District Council,http://opendatacommunities.org/id/district-council/south-lakeland,30/04/2016,Business Support Community Services,Internal Trading Accounts,,RIBBLESDALE AUTO ELECTRICS 1992 LTD,2732686,27/04/2016,57954,100,0,Lenses,381500,Vehicle Mgt Parts
South Lakeland District Council,http://opendatacommunities.org/id/district-council/south-lakeland,30/04/2016,Business Support Community Services,Internal Trading Accounts,,DENNIS EAGLE LTD,3794455,27/04/2016,57956,228.33,0,Lens,381300,Vehicle Mgt Industrial
South Lakeland District Council,http://opendatacommunities.org/id/district-council/south-lakeland,30/04/2016,Business Support Community Services,Internal Trading Accounts,,DENNIS EAGLE LTD,3794455,27/04/2016,57957,10.43,0,Lens,381300,Vehicle Mgt Industrial
South Lakeland District Council,http://opendatacommunities.org/id/district-council/south-lakeland,30/04/2016,Business Support Community Services,Internal Trading Accounts,,DENNIS EAGLE LTD,3794455,27/04/2016,57958,23.04,0,Lens,381300,Vehicle Mgt Industrial
South Lakeland District Council,http://opendatacommunities.org/id/district-council/south-lakeland,30/04/2016,Business Support Community Services,Internal Trading Accounts,,DENNIS EAGLE LTD,3794455,27/04/2016,57959,249.24,0,Lens,381300,Vehicle Mgt Industrial
South Lakeland District Council,http://opendatacommunities.org/id/district-council/south-lakeland,30/04/2016,Business Support Community Services,Internal Trading Accounts,,DENNIS EAGLE LTD,3794455,27/04/2016,57960,28.12,0,Lens,381300,Vehicle Mgt Industrial
South Lakeland District Council,http://opendatacommunities.org/id/district-council/south-lakeland,30/04/2016,Business Support Community Services,Internal Trading Accounts,,DENNIS EAGLE LTD,3794455,27/04/2016,57961,38.74,0,Lens,381300,Vehicle Mgt Industrial
South Lakeland District Council,http://opendatacommunities.org/id/district-council/south-lakeland,30/04/2016,Business Support Community Services,Internal Trading Accounts,,DENNIS EAGLE LTD,3794455,27/04/2016,57962,141.42,0,Lens,381300,Vehicle Mgt Industrial
South Lakeland District Council,http://opendatacommunities.org/id/district-council/south-lakeland,30/04/2016,Business Support Community Services,Internal Trading Accounts,,DENNIS EAGLE LTD,3794455,27/04/2016,57963,1486.18,0,Lens,381300,Vehicle Mgt Industrial
South Lakeland District Council,http://opendatacommunities.org/id/district-council/south-lakeland,30/04/2016,Business Support Community Services,Internal Trading Accounts,,EK MOTOR FACTORS LTD,838524,27/04/2016,57964,29.08,0,Headlight transporter (30443),381400,Vehicle Mgt Maintenance
South Lakeland District Council,http://opendatacommunities.org/id/district-council/south-lakeland,30/04/2016,Business Support Community Services,Internal Trading Accounts,,EK MOTOR FACTORS LTD,838524,27/04/2016,57965,71.27,0,Headlight transporter (30443),381400,Vehicle Mgt Maintenance
South Lakeland District Council,http://opendatacommunities.org/id/district-council/south-lakeland,30/04/2016,Business Support Community Services,Internal Trading Accounts,,APSE,6735100,27/04/2016,57966,399,0,Health & Safety - Working on the,202100,Financial Services Subscriptions
South Lakeland District Council,http://opendatacommunities.org/id/district-council/south-lakeland,30/04/2016,Business Support Community Services,Internal Trading Accounts,,Masterstaff Limited,2777593,27/04/2016,57967,2528.61,0,Agency staff - April 2016,261300,HR Recruitment & Assessment
South Lakeland District Council,http://opendatacommunities.org/id/district-council/south-lakeland,30/04/2016,Business Support Community Services,Internal Trading Accounts,,RIBBLE FUEL OILS,,27/04/2016,57968,963.29,0,Gas oil for Canal Head,381100,Vehicle Mgt Fuel
South Lakeland District Council,http://opendatacommunities.org/id/district-council/south-lakeland,30/04/2016,Business Support Community Services,Internal Trading Accounts,,EK MOTOR FACTORS LTD,838524,27/04/2016,57969,5.95,0,Headlight transporter (30443),381400,Vehicle Mgt Maintenance
South Lakeland District Council,http://opendatacommunities.org/id/district-council/south-lakeland,30/04/2016,Business Support Community Services,Internal Trading Accounts,,DENNIS EAGLE LTD,3794455,27/04/2016,57970,128.15,0,Lens,381300,Vehicle Mgt Industrial
South Lakeland District Council,http://opendatacommunities.org/id/district-council/south-lakeland,30/04/2016,Business Support Community Services,Internal Trading Accounts,,DENNIS EAGLE LTD,3794455,27/04/2016,57971,90.24,0,Lens,381300,Vehicle Mgt Industrial
South Lakeland District Council,http://opendatacommunities.org/id/district-council/south-lakeland,30/04/2016,Business Support Community Services,Internal Trading Accounts,,HYDRAIR TRUCK & TRAILER PARTS LTD,,27/04/2016,57972,29.64,0,Brake,381500,Vehicle Mgt Parts
South Lakeland District Council,http://opendatacommunities.org/id/district-council/south-lakeland,30/04/2016,Business Support Community Services,Internal Trading Accounts,,HAKO MACHINES LIMITED,1414225,27/04/2016,58003,48.46,0,Hose,131000,Cleaning & Janitorial Cleaning Materials
South Lakeland District Council,http://opendatacommunities.org/id/district-council/south-lakeland,30/04/2016,Business Support Community Services,Internal Trading Accounts,,HAKO MACHINES LIMITED,1414225,27/04/2016,58033,17.92,0,Hose,131000,Cleaning & Janitorial Cleaning Materials
South Lakeland District Council,http://opendatacommunities.org/id/district-council/south-lakeland,30/04/2016,Business Support Community Services,Internal Trading Accounts,,Driver Hire Lancaster,7762440,27/04/2016,58034,570,0,Agency driver - March / April 2016,380000,Vehicle Management
South Lakeland District Council,http://opendatacommunities.org/id/district-council/south-lakeland,30/04/2016,Business Support Community Services,Internal Trading Accounts,,HYDRAIR TRUCK & TRAILER PARTS LTD,,27/04/2016,58037,14.82,0,Brake,381500,Vehicle Mgt Parts
South Lakeland District Council,http://opendatacommunities.org/id/district-council/south-lakeland,30/04/2016,Business Support Community Services,Transport Planning Policy,http://opendatacommunities.org/def/concept/finance/sercop/objective/107,ARCO LIMITED,133804,27/04/2016,58038,11.86,0,Cleaning materials,141100,Clothing Protective
South Lakeland District Council,http://opendatacommunities.org/id/district-council/south-lakeland,30/04/2016,Business Support Community Services,Transport Planning Policy,http://opendatacommunities.org/def/concept/finance/sercop/objective/107,ARCO LIMITED,133804,27/04/2016,58039,14.66,0,Cleaning materials,141100,Clothing Protective
South Lakeland District Council,http://opendatacommunities.org/id/district-council/south-lakeland,30/04/2016,Revenues and Benefits,Central Services,http://opendatacommunities.org/def/concept/finance/sercop/objective/102,THE WELFARE BENEFITS UNIT,,27/04/2016,58216,19.5,0,3 Copies x Advisers Guide to Benefits,321010,Social Care Adult Advice & Counselling
South Lakeland District Council,http://opendatacommunities.org/id/district-council/south-lakeland,30/04/2016,Customer Services,Central Services,http://opendatacommunities.org/def/concept/finance/sercop/objective/102,Giles Brown,,27/04/2016,58227,220,0,Covering comms desk,261400,HR Temporary & Agency Staff
South Lakeland District Council,http://opendatacommunities.org/id/district-council/south-lakeland,30/04/2016,Human Resources,Central Services,http://opendatacommunities.org/def/concept/finance/sercop/objective/102,Wiz Training & Development Ltd,4310176,27/04/2016,58228,1390,0,21 and 22 April training Political,261520,Human Resources Training
South Lakeland District Council,http://opendatacommunities.org/id/district-council/south-lakeland,30/04/2016,Business Support Community Services,Cultural Environmental Regulatory & Planning Services,http://opendatacommunities.org/def/concept/finance/sercop/objective/104,CAMPDEN TECHNOLOGY LTD,,27/04/2016,58230,364,0,Membership fee for the year commencing,181900,Environment Testing & Inspection
South Lakeland District Council,http://opendatacommunities.org/id/district-council/south-lakeland,30/04/2016,Business Support Community Services,Housing Services,http://opendatacommunities.org/def/concept/finance/sercop/objective/108,Robinson Property Servs & Joinery Cntrs,,27/04/2016,58232,33,0,"Fixing the toilet at Camden Buildings,",192210,Facilities Security Access Control
South Lakeland District Council,http://opendatacommunities.org/id/district-council/south-lakeland,30/04/2016,Social Enterprise Admin,Cultural Environmental Regulatory & Planning Services,http://opendatacommunities.org/def/concept/finance/sercop/objective/104,NEWSQUEST MEDIA GROUP LTD,3102566,27/04/2016,58233,131,0,PUBLIC NOTICES FOR PLANNING 1 APRIL - 31,191000,Facilities Advertising
South Lakeland District Council,http://opendatacommunities.org/id/district-council/south-lakeland,30/04/2016,Development Implementation,Planning and Development,,LEANDER ARCHITECTURAL,,27/04/2016,58234,1066.86,0,1 x Fingerpost (2 Arms) for Ambleside,102400,Building Signage
South Lakeland District Council,http://opendatacommunities.org/id/district-council/south-lakeland,30/04/2016,Business Support Community Services,Housing Services,http://opendatacommunities.org/def/concept/finance/sercop/objective/108,Landlord,7009105,27/04/2016,58235,480,0,Monthly rent ,250000,Housing
South Lakeland District Council,http://opendatacommunities.org/id/district-council/south-lakeland,30/04/2016,Business Support Community Services,Housing Services,http://opendatacommunities.org/def/concept/finance/sercop/objective/108,Landlord,,27/04/2016,58236,400,0,Monthly rent ,250000,Housing
South Lakeland District Council,http://opendatacommunities.org/id/district-council/south-lakeland,30/04/2016,Business Support Community Services,Housing Services,http://opendatacommunities.org/def/concept/finance/sercop/objective/108,Landlord,,27/04/2016,58237,520,0,Monthly rent ,250000,Housing
South Lakeland District Council,http://opendatacommunities.org/id/district-council/south-lakeland,30/04/2016,Business Support Community Services,Housing Services,http://opendatacommunities.org/def/concept/finance/sercop/objective/108,Landlord,,27/04/2016,58238,475,0,Monthly rent ,250000,Housing
South Lakeland District Council,http://opendatacommunities.org/id/district-council/south-lakeland,30/04/2016,Business Support Community Services,Housing Services,http://opendatacommunities.org/def/concept/finance/sercop/objective/108,Landlord,,27/04/2016,58239,500,0,Monthly rent ,250000,Housing
South Lakeland District Council,http://opendatacommunities.org/id/district-council/south-lakeland,30/04/2016,Business Support Community Services,Housing Services,http://opendatacommunities.org/def/concept/finance/sercop/objective/108,Landlord,,27/04/2016,58240,625,0,Monthly rent ,202000,Financial Services Rents
South Lakeland District Council,http://opendatacommunities.org/id/district-council/south-lakeland,30/04/2016,Business Support Community Services,Housing Services,http://opendatacommunities.org/def/concept/finance/sercop/objective/108,Landlord,,27/04/2016,58241,500,0,Monthly rent ,250010,Housing Letting Agents
South Lakeland District Council,http://opendatacommunities.org/id/district-council/south-lakeland,30/04/2016,Business Support Community Services,Housing Services,http://opendatacommunities.org/def/concept/finance/sercop/objective/108,Landlord,,27/04/2016,58242,410,0,Monthly rent ,250000,Housing
South Lakeland District Council,http://opendatacommunities.org/id/district-council/south-lakeland,30/04/2016,Business Support Community Services,Housing Services,http://opendatacommunities.org/def/concept/finance/sercop/objective/108,Landlord,,27/04/2016,58243,625,0,Monthly rent ,202000,Financial Services Rents
South Lakeland District Council,http://opendatacommunities.org/id/district-council/south-lakeland,30/04/2016,Business Support Community Services,Housing Services,http://opendatacommunities.org/def/concept/finance/sercop/objective/108,Landlord,,27/04/2016,58244,500,0,Monthly rent ,202000,Financial Services Rents
South Lakeland District Council,http://opendatacommunities.org/id/district-council/south-lakeland,30/04/2016,Business Support Community Services,Housing Services,http://opendatacommunities.org/def/concept/finance/sercop/objective/108,Landlord,,27/04/2016,58245,415,0,Monthly rent ,250010,Housing Letting Agents
South Lakeland District Council,http://opendatacommunities.org/id/district-council/south-lakeland,30/04/2016,Financial Services,Central Services,http://opendatacommunities.org/def/concept/finance/sercop/objective/102,CAPITA BUSINESS SERVICES LTD (NCR),,01/04/2016,58306,2974.89,0,Inv. 6003278388 07.03.16 internet,261500,HR Training & Conferences
South Lakeland District Council,http://opendatacommunities.org/id/district-council/south-lakeland,30/04/2016,Financial Services,Central Services,http://opendatacommunities.org/def/concept/finance/sercop/objective/102,CAPITA BUSINESS SERVICES LTD (NCR),,01/04/2016,58307,1374.6,0,Inv. 6003278388 07.03.16 internet,261500,HR Training & Conferences
South Lakeland District Council,http://opendatacommunities.org/id/district-council/south-lakeland,30/04/2016,Financial Services,Central Services,http://opendatacommunities.org/def/concept/finance/sercop/objective/102,ALLPAY.NET LTD (NCR),6871069,01/04/2016,58310,10.69,0,Inv 426511 31.03.16 SLBO,209999,Financial Services Not Elsewhere Classif
South Lakeland District Council,http://opendatacommunities.org/id/district-council/south-lakeland,30/04/2016,Financial Services,Central Services,http://opendatacommunities.org/def/concept/finance/sercop/objective/102,ALLPAY.NET LTD (NCR),6871069,01/04/2016,58311,18.45,0,Inv 426511 31.03.16 SLBO,209999,Financial Services Not Elsewhere Classif
